Workbook

Sheet (1) Main Menu
A1: Battery Capacity Tool
A3: INPUT | C3: Generators | G3: Load | K3: Battery | O3: Calculation Interface | S3: Exchange Interface
C5: Solar | D5: 20 | E5: kWp | G5: General | H5: 3334 | I5: kWh/a | K5: Capacity useable | L5: =bat_cap_total*(1-bat_soc*0.01) -> 40 | M5: kWh
C7: Wind | D7: 0 | E7: kWp | G7: Car | H7: 3333 | I7: kWh/a | K7: Capacity total | L7: 40 | M7: kWh
C9: CHP | D9: 0 | E9: kWp | G9: Heat Pump | H9: 3333 | I9: kWh/a | K9: SoC min | L9: 0 | M9: % | S9: Gen_GenX
C11: GENX | D11: 0 | E11: kWp | G11: LOADX | H11: 0 | I11: kWh/a | K11: DoD max | L11: =100-bat_soc -> 100 | M11: %
A14: OUTPUT | C14: Generation | G14: Self-Sustainability | K14: Internal Consumption | O14: Emission and Power | S14: Battery
C16: PV | D16: ='(4) One Year Data Calculation'!K1 -> 18178.34595 | E16: kWh | G16: no battery | H16: ='(4) One Year Data Calculation'!Y2/('(4) One Year Data Calculation'!R1) -> 0.1608889117 | K16: no battery | L16: ='(4) One Year Data Calculation'!Y2/('(4) One Year Data Calculation'!R1)*load_data_total/'(1) Main Menu'!D16 -> 0.08850580364 | O16: Saved Emissions | P16: =(D16+D18+D20+D22)*0.59 -> 10725.22411 | Q16: kgCO2 | S16: SoC Average | U16: ='(4) One Year Data Calculation'!AC1 -> 0.6197012575
C18: Wind | D18: ='(4) One Year Data Calculation'!M1 -> 0 | E18: kWh | G18: with battery | H18: =('(4) One Year Data Calculation'!R1-'(4) One Year Data Calculation'!W1-'(4) One Year Data Calculation'!Z1+'(4) One Year Data Calculation'!U35043*0.001)/('(4) One Year Data Calculation'!R1-'(4) One Year Data Calculation'!W1+'(4) One Year Data Calculation'!U35043*0.001) -> 0.8106058581 | K18: with battery | L18: =(D16-H20)/D16 -> 0.4577709926 | O18: average load | P18: =load_data_total/365/24*1000 -> 1141.552511 | Q18: W | S18: Cycles per year | U18: ='(4) One Year Data Calculation'!X1/bat_cap_use -> 167.8166045
C20: CHP | D20: ='(4) One Year Data Calculation'!O1 -> 0 | E20: kWh | G20: Feed in Grid | H20: ='(4) One Year Data Calculation'!AB1 -> 9856.82648 | I20: kWh | O20: feed in max | P20: ='(4) One Year Data Calculation'!AB2 -> 9968.605004 | Q20: W | S20: Lifetime in years | U20: =bat_data_lifetime_cycles/('(4) One Year Data Calculation'!X1/bat_cap_use) -> 14.89721478
C22: GENX | D22: ='(4) One Year Data Calculation'!Q1 -> 0 | E22: kWh | G22: Consumption | H22: ='(4) One Year Data Calculation'!Z1 -> 1944.292234 | I22: kWh | O22: grid load max | P22: ='(4) One Year Data Calculation'!Z2 -> 5147.588455 | Q22: W | S22: Battery Losses | U22: =-'(4) One Year Data Calculation'!W1 -> 265.8117015
A25: Charts
B45: ICQ | C45: =D16-H20 -> 8321.519468
B46: ICQ | C46: =C45/D16 -> 0.4577709926 | F46: 0.2
C47: =IF(C46>0.3,0.3,C46) -> 0.3 | D47: =IF(C46>0.3,C46-0.3,0) -> 0.1577709926
C48: =D16 -> 18178.34595 | D48: =D16 -> 18178.34595
C49: 1.19 | D49: 1.19
C50: =0.24-0.08 -> 0.16 | D50: =0.24-0.12 -> 0.12
C51: =C50*C49*C48*C47 -> 1038.347121 | D51: =D50*D49*D48*D47 -> 409.5526396 | E51: ICQ | F51: ESC
E52: =D51+C51 -> 1447.89976 | F52: =C45*F46 -> 1664.303894

Sheet (2) Profile Overview
A2: General Load | AA2: Month | AB2: Load_EX | AC2: Car_EX | AD2: HP_EX | AE2: Loadx_EX
Z3: January | AA3: 1 | AB3: =SUMIF('(4) One Year Data Calculation'!$AE$4:$AE$35043,$AA3,'(4) One Year Data Calculation'!$C$4:$C$35043)*0.001 -> 284.6355671 | AC3: =SUMIF('(4) One Year Data Calculation'!$AE$4:$AE$35043,$AA3,'(4) One Year Data Calculation'!$E$4:$E$35043)*0.001 -> 283.0767123 | AD3: =SUMIF('(4) One Year Data Calculation'!$AE$4:$AE$35043,$AA3,'(4) One Year Data Calculation'!$G$4:$G$35043)*0.001 -> 566.61 | AE3: =SUMIF('(4) One Year Data Calculation'!$AE$4:$AE$35043,$AA3,'(4) One Year Data Calculation'!$I$4:$I$35043)*0.001 -> 0
Z4: February | AA4: 2 | AB4: =SUMIF('(4) One Year Data Calculation'!$AE$4:$AE$35043,$AA4,'(4) One Year Data Calculation'!$C$4:$C$35043)*0.001 -> 251.6467429 | AC4: =SUMIF('(4) One Year Data Calculation'!$AE$4:$AE$35043,$AA4,'(4) One Year Data Calculation'!$E$4:$E$35043)*0.001 -> 255.6821918 | AD4: =SUMIF('(4) One Year Data Calculation'!$AE$4:$AE$35043,$AA4,'(4) One Year Data Calculation'!$G$4:$G$35043)*0.001 -> 499.95 | AE4: =SUMIF('(4) One Year Data Calculation'!$AE$4:$AE$35043,$AA4,'(4) One Year Data Calculation'!$I$4:$I$35043)*0.001 -> 0
A5: Car | Z5: March | AA5: 3 | AB5: =SUMIF('(4) One Year Data Calculation'!$AE$4:$AE$35043,$AA5,'(4) One Year Data Calculation'!$C$4:$C$35043)*0.001 -> 283.7996754 | AC5: =SUMIF('(4) One Year Data Calculation'!$AE$4:$AE$35043,$AA5,'(4) One Year Data Calculation'!$E$4:$E$35043)*0.001 -> 283.0767123 | AD5: =SUMIF('(4) One Year Data Calculation'!$AE$4:$AE$35043,$AA5,'(4) One Year Data Calculation'!$G$4:$G$35043)*0.001 -> 433.29 | AE5: =SUMIF('(4) One Year Data Calculation'!$AE$4:$AE$35043,$AA5,'(4) One Year Data Calculation'!$I$4:$I$35043)*0.001 -> 0
Z6: April | AA6: 4 | AB6: =SUMIF('(4) One Year Data Calculation'!$AE$4:$AE$35043,$AA6,'(4) One Year Data Calculation'!$C$4:$C$35043)*0.001 -> 272.7193832 | AC6: =SUMIF('(4) One Year Data Calculation'!$AE$4:$AE$35043,$AA6,'(4) One Year Data Calculation'!$E$4:$E$35043)*0.001 -> 273.9452055 | AD6: =SUMIF('(4) One Year Data Calculation'!$AE$4:$AE$35043,$AA6,'(4) One Year Data Calculation'!$G$4:$G$35043)*0.001 -> 266.64 | AE6: =SUMIF('(4) One Year Data Calculation'!$AE$4:$AE$35043,$AA6,'(4) One Year Data Calculation'!$I$4:$I$35043)*0.001 -> 0
Z7: May | AA7: 5 | AB7: =SUMIF('(4) One Year Data Calculation'!$AE$4:$AE$35043,$AA7,'(4) One Year Data Calculation'!$C$4:$C$35043)*0.001 -> 290.820559 | AC7: =SUMIF('(4) One Year Data Calculation'!$AE$4:$AE$35043,$AA7,'(4) One Year Data Calculation'!$E$4:$E$35043)*0.001 -> 283.0767123 | AD7: =SUMIF('(4) One Year Data Calculation'!$AE$4:$AE$35043,$AA7,'(4) One Year Data Calculation'!$G$4:$G$35043)*0.001 -> 133.32 | AE7: =SUMIF('(4) One Year Data Calculation'!$AE$4:$AE$35043,$AA7,'(4) One Year Data Calculation'!$I$4:$I$35043)*0.001 -> 0
A8: Heatpump | Z8: June | AA8: 6 | AB8: =SUMIF('(4) One Year Data Calculation'!$AE$4:$AE$35043,$AA8,'(4) One Year Data Calculation'!$C$4:$C$35043)*0.001 -> 262.6590718 | AC8: =SUMIF('(4) One Year Data Calculation'!$AE$4:$AE$35043,$AA8,'(4) One Year Data Calculation'!$E$4:$E$35043)*0.001 -> 273.9452055 | AD8: =SUMIF('(4) One Year Data Calculation'!$AE$4:$AE$35043,$AA8,'(4) One Year Data Calculation'!$G$4:$G$35043)*0.001 -> 49.995 | AE8: =SUMIF('(4) One Year Data Calculation'!$AE$4:$AE$35043,$AA8,'(4) One Year Data Calculation'!$I$4:$I$35043)*0.001 -> 0
Z9: July | AA9: 7 | AB9: =SUMIF('(4) One Year Data Calculation'!$AE$4:$AE$35043,$AA9,'(4) One Year Data Calculation'!$C$4:$C$35043)*0.001 -> 297.7240681 | AC9: =SUMIF('(4) One Year Data Calculation'!$AE$4:$AE$35043,$AA9,'(4) One Year Data Calculation'!$E$4:$E$35043)*0.001 -> 283.0767123 | AD9: =SUMIF('(4) One Year Data Calculation'!$AE$4:$AE$35043,$AA9,'(4) One Year Data Calculation'!$G$4:$G$35043)*0.001 -> 49.995 | AE9: =SUMIF('(4) One Year Data Calculation'!$AE$4:$AE$35043,$AA9,'(4) One Year Data Calculation'!$I$4:$I$35043)*0.001 -> 0
Z10: August | AA10: 8 | AB10: =SUMIF('(4) One Year Data Calculation'!$AE$4:$AE$35043,$AA10,'(4) One Year Data Calculation'!$C$4:$C$35043)*0.001 -> 266.3413835 | AC10: =SUMIF('(4) One Year Data Calculation'!$AE$4:$AE$35043,$AA10,'(4) One Year Data Calculation'!$E$4:$E$35043)*0.001 -> 283.0767123 | AD10: =SUMIF('(4) One Year Data Calculation'!$AE$4:$AE$35043,$AA10,'(4) One Year Data Calculation'!$G$4:$G$35043)*0.001 -> 33.33 | AE10: =SUMIF('(4) One Year Data Calculation'!$AE$4:$AE$35043,$AA10,'(4) One Year Data Calculation'!$I$4:$I$35043)*0.001 -> 0
A11: LOADX | Z11: September | AA11: 9 | AB11: =SUMIF('(4) One Year Data Calculation'!$AE$4:$AE$35043,$AA11,'(4) One Year Data Calculation'!$C$4:$C$35043)*0.001 -> 291.2563428 | AC11: =SUMIF('(4) One Year Data Calculation'!$AE$4:$AE$35043,$AA11,'(4) One Year Data Calculation'!$E$4:$E$35043)*0.001 -> 273.9452055 | AD11: =SUMIF('(4) One Year Data Calculation'!$AE$4:$AE$35043,$AA11,'(4) One Year Data Calculation'!$G$4:$G$35043)*0.001 -> 99.99 | AE11: =SUMIF('(4) One Year Data Calculation'!$AE$4:$AE$35043,$AA11,'(4) One Year Data Calculation'!$I$4:$I$35043)*0.001 -> 0
Z12: October | AA12: 10 | AB12: =SUMIF('(4) One Year Data Calculation'!$AE$4:$AE$35043,$AA12,'(4) One Year Data Calculation'!$C$4:$C$35043)*0.001 -> 267.9576905 | AC12: =SUMIF('(4) One Year Data Calculation'!$AE$4:$AE$35043,$AA12,'(4) One Year Data Calculation'!$E$4:$E$35043)*0.001 -> 283.0767123 | AD12: =SUMIF('(4) One Year Data Calculation'!$AE$4:$AE$35043,$AA12,'(4) One Year Data Calculation'!$G$4:$G$35043)*0.001 -> 266.64 | AE12: =SUMIF('(4) One Year Data Calculation'!$AE$4:$AE$35043,$AA12,'(4) One Year Data Calculation'!$I$4:$I$35043)*0.001 -> 0
Z13: November | AA13: 11 | AB13: =SUMIF('(4) One Year Data Calculation'!$AE$4:$AE$35043,$AA13,'(4) One Year Data Calculation'!$C$4:$C$35043)*0.001 -> 283.1091638 | AC13: =SUMIF('(4) One Year Data Calculation'!$AE$4:$AE$35043,$AA13,'(4) One Year Data Calculation'!$E$4:$E$35043)*0.001 -> 273.9452055 | AD13: =SUMIF('(4) One Year Data Calculation'!$AE$4:$AE$35043,$AA13,'(4) One Year Data Calculation'!$G$4:$G$35043)*0.001 -> 399.96 | AE13: =SUMIF('(4) One Year Data Calculation'!$AE$4:$AE$35043,$AA13,'(4) One Year Data Calculation'!$I$4:$I$35043)*0.001 -> 0
A14: All | Z14: December | AA14: 12 | AB14: =SUMIF('(4) One Year Data Calculation'!$AE$4:$AE$35043,$AA14,'(4) One Year Data Calculation'!$C$4:$C$35043)*0.001 -> 281.370666 | AC14: =SUMIF('(4) One Year Data Calculation'!$AE$4:$AE$35043,$AA14,'(4) One Year Data Calculation'!$E$4:$E$35043)*0.001 -> 283.0767123 | AD14: =SUMIF('(4) One Year Data Calculation'!$AE$4:$AE$35043,$AA14,'(4) One Year Data Calculation'!$G$4:$G$35043)*0.001 -> 533.28 | AE14: =SUMIF('(4) One Year Data Calculation'!$AE$4:$AE$35043,$AA14,'(4) One Year Data Calculation'!$I$4:$I$35043)*0.001 -> 0
AB15: =SUM(AB3:AB14) -> 3334.040314 | AC15: =SUM(AC3:AC14) -> 3333 | AD15: 3333 | AE15: 0
A19: PV | AA19: Month | AB19: Gen_PV | AC19: Gen_Wind | AD19: Gen_CHP | AE19: Gen_Genx
Z20: January | AA20: 1 | AB20: =SUMIF('(4) One Year Data Calculation'!$AE$4:$AE$35043,$AA3,'(4) One Year Data Calculation'!$K$4:$K$35043)*0.001 -> 505.8705383 | AC20: =SUMIF('(4) One Year Data Calculation'!$AE$4:$AE$35043,$AA3,'(4) One Year Data Calculation'!$M$4:$M$35043)*0.001 -> 0 | AD20: =SUMIF('(4) One Year Data Calculation'!$AE$4:$AE$35043,$AA3,'(4) One Year Data Calculation'!$O$4:$O$35043)*0.001 -> 0 | AE20: =SUMIF('(4) One Year Data Calculation'!$AE$4:$AE$35043,$AA3,'(4) One Year Data Calculation'!$Q$4:$Q$35043)*0.001 -> 0
Z21: February | AA21: 2 | AB21: =SUMIF('(4) One Year Data Calculation'!$AE$4:$AE$35043,$AA4,'(4) One Year Data Calculation'!$K$4:$K$35043)*0.001 -> 866.9277331 | AC21: =SUMIF('(4) One Year Data Calculation'!$AE$4:$AE$35043,$AA4,'(4) One Year Data Calculation'!$M$4:$M$35043)*0.001 -> 0 | AD21: =SUMIF('(4) One Year Data Calculation'!$AE$4:$AE$35043,$AA4,'(4) One Year Data Calculation'!$O$4:$O$35043)*0.001 -> 0 | AE21: =SUMIF('(4) One Year Data Calculation'!$AE$4:$AE$35043,$AA4,'(4) One Year Data Calculation'!$Q$4:$Q$35043)*0.001 -> 0
A22: Wind | Z22: March | AA22: 3 | AB22: =SUMIF('(4) One Year Data Calculation'!$AE$4:$AE$35043,$AA5,'(4) One Year Data Calculation'!$K$4:$K$35043)*0.001 -> 1756.061984 | AC22: =SUMIF('(4) One Year Data Calculation'!$AE$4:$AE$35043,$AA5,'(4) One Year Data Calculation'!$M$4:$M$35043)*0.001 -> 0 | AD22: =SUMIF('(4) One Year Data Calculation'!$AE$4:$AE$35043,$AA5,'(4) One Year Data Calculation'!$O$4:$O$35043)*0.001 -> 0 | AE22: =SUMIF('(4) One Year Data Calculation'!$AE$4:$AE$35043,$AA5,'(4) One Year Data Calculation'!$Q$4:$Q$35043)*0.001 -> 0
Z23: April | AA23: 4 | AB23: =SUMIF('(4) One Year Data Calculation'!$AE$4:$AE$35043,$AA6,'(4) One Year Data Calculation'!$K$4:$K$35043)*0.001 -> 2245.493104 | AC23: =SUMIF('(4) One Year Data Calculation'!$AE$4:$AE$35043,$AA6,'(4) One Year Data Calculation'!$M$4:$M$35043)*0.001 -> 0 | AD23: =SUMIF('(4) One Year Data Calculation'!$AE$4:$AE$35043,$AA6,'(4) One Year Data Calculation'!$O$4:$O$35043)*0.001 -> 0 | AE23: =SUMIF('(4) One Year Data Calculation'!$AE$4:$AE$35043,$AA6,'(4) One Year Data Calculation'!$Q$4:$Q$35043)*0.001 -> 0
Z24: May | AA24: 5 | AB24: =SUMIF('(4) One Year Data Calculation'!$AE$4:$AE$35043,$AA7,'(4) One Year Data Calculation'!$K$4:$K$35043)*0.001 -> 1798.713513 | AC24: =SUMIF('(4) One Year Data Calculation'!$AE$4:$AE$35043,$AA7,'(4) One Year Data Calculation'!$M$4:$M$35043)*0.001 -> 0 | AD24: =SUMIF('(4) One Year Data Calculation'!$AE$4:$AE$35043,$AA7,'(4) One Year Data Calculation'!$O$4:$O$35043)*0.001 -> 0 | AE24: =SUMIF('(4) One Year Data Calculation'!$AE$4:$AE$35043,$AA7,'(4) One Year Data Calculation'!$Q$4:$Q$35043)*0.001 -> 0
A25: Combined | Z25: June | AA25: 6 | AB25: =SUMIF('(4) One Year Data Calculation'!$AE$4:$AE$35043,$AA8,'(4) One Year Data Calculation'!$K$4:$K$35043)*0.001 -> 2198.696962 | AC25: =SUMIF('(4) One Year Data Calculation'!$AE$4:$AE$35043,$AA8,'(4) One Year Data Calculation'!$M$4:$M$35043)*0.001 -> 0 | AD25: =SUMIF('(4) One Year Data Calculation'!$AE$4:$AE$35043,$AA8,'(4) One Year Data Calculation'!$O$4:$O$35043)*0.001 -> 0 | AE25: =SUMIF('(4) One Year Data Calculation'!$AE$4:$AE$35043,$AA8,'(4) One Year Data Calculation'!$Q$4:$Q$35043)*0.001 -> 0
A26: Heat/Power | Z26: July | AA26: 7 | AB26: =SUMIF('(4) One Year Data Calculation'!$AE$4:$AE$35043,$AA9,'(4) One Year Data Calculation'!$K$4:$K$35043)*0.001 -> 2715.438605 | AC26: =SUMIF('(4) One Year Data Calculation'!$AE$4:$AE$35043,$AA9,'(4) One Year Data Calculation'!$M$4:$M$35043)*0.001 -> 0 | AD26: =SUMIF('(4) One Year Data Calculation'!$AE$4:$AE$35043,$AA9,'(4) One Year Data Calculation'!$O$4:$O$35043)*0.001 -> 0 | AE26: =SUMIF('(4) One Year Data Calculation'!$AE$4:$AE$35043,$AA9,'(4) One Year Data Calculation'!$Q$4:$Q$35043)*0.001 -> 0
Z27: August | AA27: 8 | AB27: =SUMIF('(4) One Year Data Calculation'!$AE$4:$AE$35043,$AA10,'(4) One Year Data Calculation'!$K$4:$K$35043)*0.001 -> 2115.509927 | AC27: =SUMIF('(4) One Year Data Calculation'!$AE$4:$AE$35043,$AA10,'(4) One Year Data Calculation'!$M$4:$M$35043)*0.001 -> 0 | AD27: =SUMIF('(4) One Year Data Calculation'!$AE$4:$AE$35043,$AA10,'(4) One Year Data Calculation'!$O$4:$O$35043)*0.001 -> 0 | AE27: =SUMIF('(4) One Year Data Calculation'!$AE$4:$AE$35043,$AA10,'(4) One Year Data Calculation'!$Q$4:$Q$35043)*0.001 -> 0
Z28: September | AA28: 9 | AB28: =SUMIF('(4) One Year Data Calculation'!$AE$4:$AE$35043,$AA11,'(4) One Year Data Calculation'!$K$4:$K$35043)*0.001 -> 1743.31925 | AC28: =SUMIF('(4) One Year Data Calculation'!$AE$4:$AE$35043,$AA11,'(4) One Year Data Calculation'!$M$4:$M$35043)*0.001 -> 0 | AD28: =SUMIF('(4) One Year Data Calculation'!$AE$4:$AE$35043,$AA11,'(4) One Year Data Calculation'!$O$4:$O$35043)*0.001 -> 0 | AE28: =SUMIF('(4) One Year Data Calculation'!$AE$4:$AE$35043,$AA11,'(4) One Year Data Calculation'!$Q$4:$Q$35043)*0.001 -> 0
A29: Genx | Z29: October | AA29: 10 | AB29: =SUMIF('(4) One Year Data Calculation'!$AE$4:$AE$35043,$AA12,'(4) One Year Data Calculation'!$K$4:$K$35043)*0.001 -> 1100.842346 | AC29: =SUMIF('(4) One Year Data Calculation'!$AE$4:$AE$35043,$AA12,'(4) One Year Data Calculation'!$M$4:$M$35043)*0.001 -> 0 | AD29: =SUMIF('(4) One Year Data Calculation'!$AE$4:$AE$35043,$AA12,'(4) One Year Data Calculation'!$O$4:$O$35043)*0.001 -> 0 | AE29: =SUMIF('(4) One Year Data Calculation'!$AE$4:$AE$35043,$AA12,'(4) One Year Data Calculation'!$Q$4:$Q$35043)*0.001 -> 0
Z30: November | AA30: 11 | AB30: =SUMIF('(4) One Year Data Calculation'!$AE$4:$AE$35043,$AA13,'(4) One Year Data Calculation'!$K$4:$K$35043)*0.001 -> 643.5459411 | AC30: =SUMIF('(4) One Year Data Calculation'!$AE$4:$AE$35043,$AA13,'(4) One Year Data Calculation'!$M$4:$M$35043)*0.001 -> 0 | AD30: =SUMIF('(4) One Year Data Calculation'!$AE$4:$AE$35043,$AA13,'(4) One Year Data Calculation'!$O$4:$O$35043)*0.001 -> 0 | AE30: =SUMIF('(4) One Year Data Calculation'!$AE$4:$AE$35043,$AA13,'(4) One Year Data Calculation'!$Q$4:$Q$35043)*0.001 -> 0
Z31: December | AA31: 12 | AB31: =SUMIF('(4) One Year Data Calculation'!$AE$4:$AE$35043,$AA14,'(4) One Year Data Calculation'!$K$4:$K$35043)*0.001 -> 487.9260453 | AC31: =SUMIF('(4) One Year Data Calculation'!$AE$4:$AE$35043,$AA14,'(4) One Year Data Calculation'!$M$4:$M$35043)*0.001 -> 0 | AD31: =SUMIF('(4) One Year Data Calculation'!$AE$4:$AE$35043,$AA14,'(4) One Year Data Calculation'!$O$4:$O$35043)*0.001 -> 0 | AE31: =SUMIF('(4) One Year Data Calculation'!$AE$4:$AE$35043,$AA14,'(4) One Year Data Calculation'!$Q$4:$Q$35043)*0.001 -> 0
A32: All
AE36: Battery In | AF36: Soc
AE37: =SUMIF('(4) One Year Data Calculation'!$AE$4:$AE$35043,$AA3,'(4) One Year Data Calculation'!$X$4:$X$35043)*0.001 -> 416.216999 | AF37: =SUMIF('(4) One Year Data Calculation'!$AE$4:$AE$35043,$AA3,'(4) One Year Data Calculation'!$AC$4:$AC$35043)/24/4/AG37 -> 0.1545235457 | AG37: 31
AE38: =SUMIF('(4) One Year Data Calculation'!$AE$4:$AE$35043,$AA4,'(4) One Year Data Calculation'!$X$4:$X$35043)*0.001 -> 667.8885857 | AF38: =SUMIF('(4) One Year Data Calculation'!$AE$4:$AE$35043,$AA4,'(4) One Year Data Calculation'!$AC$4:$AC$35043)/24/4/AG38 -> 0.3827975405 | AG38: 28
AE39: =SUMIF('(4) One Year Data Calculation'!$AE$4:$AE$35043,$AA5,'(4) One Year Data Calculation'!$X$4:$X$35043)*0.001 -> 915.6958636 | AF39: =SUMIF('(4) One Year Data Calculation'!$AE$4:$AE$35043,$AA5,'(4) One Year Data Calculation'!$AC$4:$AC$35043)/24/4/AG39 -> 0.7173008922 | AG39: 31
AE40: =SUMIF('(4) One Year Data Calculation'!$AE$4:$AE$35043,$AA6,'(4) One Year Data Calculation'!$X$4:$X$35043)*0.001 -> 682.8050907 | AF40: =SUMIF('(4) One Year Data Calculation'!$AE$4:$AE$35043,$AA6,'(4) One Year Data Calculation'!$AC$4:$AC$35043)/24/4/AG40 -> 0.8093929422 | AG40: 30
AE41: =SUMIF('(4) One Year Data Calculation'!$AE$4:$AE$35043,$AA7,'(4) One Year Data Calculation'!$X$4:$X$35043)*0.001 -> 560.4248744 | AF41: =SUMIF('(4) One Year Data Calculation'!$AE$4:$AE$35043,$AA7,'(4) One Year Data Calculation'!$AC$4:$AC$35043)/24/4/AG41 -> 0.8347903983 | AG41: 31
AE42: =SUMIF('(4) One Year Data Calculation'!$AE$4:$AE$35043,$AA8,'(4) One Year Data Calculation'!$X$4:$X$35043)*0.001 -> 437.4808625 | AF42: =SUMIF('(4) One Year Data Calculation'!$AE$4:$AE$35043,$AA8,'(4) One Year Data Calculation'!$AC$4:$AC$35043)/24/4/AG42 -> 0.8645891988 | AG42: 30
AE43: =SUMIF('(4) One Year Data Calculation'!$AE$4:$AE$35043,$AA9,'(4) One Year Data Calculation'!$X$4:$X$35043)*0.001 -> 455.8068284 | AF43: =SUMIF('(4) One Year Data Calculation'!$AE$4:$AE$35043,$AA9,'(4) One Year Data Calculation'!$AC$4:$AC$35043)/24/4/AG43 -> 0.8982992162 | AG43: 31
AE44: =SUMIF('(4) One Year Data Calculation'!$AE$4:$AE$35043,$AA10,'(4) One Year Data Calculation'!$X$4:$X$35043)*0.001 -> 446.2938915 | AF44: =SUMIF('(4) One Year Data Calculation'!$AE$4:$AE$35043,$AA10,'(4) One Year Data Calculation'!$AC$4:$AC$35043)/24/4/AG44 -> 0.8860716442 | AG44: 31
AE45: =SUMIF('(4) One Year Data Calculation'!$AE$4:$AE$35043,$AA11,'(4) One Year Data Calculation'!$X$4:$X$35043)*0.001 -> 535.2963463 | AF45: =SUMIF('(4) One Year Data Calculation'!$AE$4:$AE$35043,$AA11,'(4) One Year Data Calculation'!$AC$4:$AC$35043)/24/4/AG45 -> 0.8470147745 | AG45: 30
AE46: =SUMIF('(4) One Year Data Calculation'!$AE$4:$AE$35043,$AA12,'(4) One Year Data Calculation'!$X$4:$X$35043)*0.001 -> 658.3047386 | AF46: =SUMIF('(4) One Year Data Calculation'!$AE$4:$AE$35043,$AA12,'(4) One Year Data Calculation'!$AC$4:$AC$35043)/24/4/AG46 -> 0.5922319777 | AG46: 31
AE47: =SUMIF('(4) One Year Data Calculation'!$AE$4:$AE$35043,$AA13,'(4) One Year Data Calculation'!$X$4:$X$35043)*0.001 -> 544.116961 | AF47: =SUMIF('(4) One Year Data Calculation'!$AE$4:$AE$35043,$AA13,'(4) One Year Data Calculation'!$AC$4:$AC$35043)/24/4/AG47 -> 0.2818731993 | AG47: 30
AE48: =SUMIF('(4) One Year Data Calculation'!$AE$4:$AE$35043,$AA14,'(4) One Year Data Calculation'!$X$4:$X$35043)*0.001 -> 392.3331372 | AF48: =SUMIF('(4) One Year Data Calculation'!$AE$4:$AE$35043,$AA14,'(4) One Year Data Calculation'!$AC$4:$AC$35043)/24/4/AG48 -> 0.1550573069 | AG48: 31
A53: Load_total
AA55: Month | AB55: Load | AC55: Generation | AD55: Load-Generation | AE55: Factor between Load and Generation
A56: Gen_total | Z56: January | AA56: 1 | AB56: =SUMIF('(4) One Year Data Calculation'!$AE$4:$AE$35043,$AA71,'(4) One Year Data Calculation'!R4:R35043)*0.001 -> 1134.322279 | AC56: =SUMIF('(4) One Year Data Calculation'!$AE$4:$AE$35043,$AA71,'(4) One Year Data Calculation'!S4:S35043)*0.001 -> 505.8705383 | AD56: =AB56-AC56 -> 628.4517411 | AE56: =AB56/AC56 -> 2.242317339
Z57: February | AA57: 2 | AB57: =SUMIF('(4) One Year Data Calculation'!$AE$4:$AE$35043,$AA72,'(4) One Year Data Calculation'!R5:R35044)*0.001 -> 1007.272156 | AC57: =SUMIF('(4) One Year Data Calculation'!$AE$4:$AE$35043,$AA72,'(4) One Year Data Calculation'!S5:S35044)*0.001 -> 866.9277331 | AD57: 140.3444231 | AE57: =AB57/AC57 -> 1.161887107
Z58: March | AA58: 3 | AB58: =SUMIF('(4) One Year Data Calculation'!$AE$4:$AE$35043,$AA73,'(4) One Year Data Calculation'!R6:R35045)*0.001 -> 999.9734288 | AC58: =SUMIF('(4) One Year Data Calculation'!$AE$4:$AE$35043,$AA73,'(4) One Year Data Calculation'!S6:S35045)*0.001 -> 1756.061984 | AD58: -756.0885548 | AE58: 0.5694408501
A59: Load | Z59: April | AA59: 4 | AB59: =SUMIF('(4) One Year Data Calculation'!$AE$4:$AE$35043,$AA74,'(4) One Year Data Calculation'!R7:R35046)*0.001 -> 812.9984776 | AC59: =SUMIF('(4) One Year Data Calculation'!$AE$4:$AE$35043,$AA74,'(4) One Year Data Calculation'!S7:S35046)*0.001 -> 2245.493104 | AD59: -1432.494627 | AE59: 0.3620578821
A60: - | Z60: May | AA60: 5 | AB60: =SUMIF('(4) One Year Data Calculation'!$AE$4:$AE$35043,$AA75,'(4) One Year Data Calculation'!R8:R35047)*0.001 -> 706.9045926 | AC60: =SUMIF('(4) One Year Data Calculation'!$AE$4:$AE$35043,$AA75,'(4) One Year Data Calculation'!S8:S35047)*0.001 -> 1798.713513 | AD60: -1091.80892 | AE60: 0.3930056608
A61: Generation | Z61: June | AA61: 6 | AB61: =SUMIF('(4) One Year Data Calculation'!$AE$4:$AE$35043,$AA76,'(4) One Year Data Calculation'!R9:R35048)*0.001 -> 586.4797216 | AC61: =SUMIF('(4) One Year Data Calculation'!$AE$4:$AE$35043,$AA76,'(4) One Year Data Calculation'!S9:S35048)*0.001 -> 2198.696962 | AD61: -1612.21724 | AE61: 0.2667396789
Z62: July | AA62: 7 | AB62: =SUMIF('(4) One Year Data Calculation'!$AE$4:$AE$35043,$AA77,'(4) One Year Data Calculation'!R10:R35049)*0.001 -> 630.7863534 | AC62: =SUMIF('(4) One Year Data Calculation'!$AE$4:$AE$35043,$AA77,'(4) One Year Data Calculation'!S10:S35049)*0.001 -> 2715.438605 | AD62: -2084.652252 | AE62: 0.2322963046
Z63: August | AA63: 8 | AB63: =SUMIF('(4) One Year Data Calculation'!$AE$4:$AE$35043,$AA78,'(4) One Year Data Calculation'!R11:R35050)*0.001 -> 583.3457343 | AC63: =SUMIF('(4) One Year Data Calculation'!$AE$4:$AE$35043,$AA78,'(4) One Year Data Calculation'!S11:S35050)*0.001 -> 2115.509927 | AD63: -1532.164193 | AE63: 0.2757471032
Z64: September | AA64: 9 | AB64: =SUMIF('(4) One Year Data Calculation'!$AE$4:$AE$35043,$AA79,'(4) One Year Data Calculation'!R12:R35051)*0.001 -> 666.5306656 | AC64: =SUMIF('(4) One Year Data Calculation'!$AE$4:$AE$35043,$AA79,'(4) One Year Data Calculation'!S12:S35051)*0.001 -> 1743.31925 | AD64: -1076.788585 | AE64: 0.3823342543
Z65: October | AA65: 10 | AB65: =SUMIF('(4) One Year Data Calculation'!$AE$4:$AE$35043,$AA80,'(4) One Year Data Calculation'!R13:R35052)*0.001 -> 819.3080311 | AC65: =SUMIF('(4) One Year Data Calculation'!$AE$4:$AE$35043,$AA80,'(4) One Year Data Calculation'!S13:S35052)*0.001 -> 1100.842346 | AD65: -281.5343149 | AE65: 0.7442555549
Z66: November | AA66: 11 | AB66: =SUMIF('(4) One Year Data Calculation'!$AE$4:$AE$35043,$AA81,'(4) One Year Data Calculation'!R14:R35053)*0.001 -> 958.3966253 | AC66: =SUMIF('(4) One Year Data Calculation'!$AE$4:$AE$35043,$AA81,'(4) One Year Data Calculation'!S14:S35053)*0.001 -> 643.5459411 | AD66: 314.8506842 | AE66: 1.489243524
Z67: December | AA67: 12 | AB67: =SUMIF('(4) One Year Data Calculation'!$AE$4:$AE$35043,$AA82,'(4) One Year Data Calculation'!R15:R35054)*0.001 -> 1086.141926 | AC67: =SUMIF('(4) One Year Data Calculation'!$AE$4:$AE$35043,$AA82,'(4) One Year Data Calculation'!S15:S35054)*0.001 -> 487.9260453 | AD67: 598.2158808 | AE67: 2.226038017
A70: Battery | AA70: Month | AB70: Energy from ESC | AC70: Feed into Grid | AD70: Battery Input
A71: Load | Z71: January | AA71: 1 | AB71: =SUMIF('(4) One Year Data Calculation'!$AE$4:$AE$35043,$AA71,'(4) One Year Data Calculation'!$Z$4:$Z$35043)*0.001 -> 676.7995192 | AC71: =SUMIF('(4) One Year Data Calculation'!$AE$4:$AE$35043,$AA71,'(4) One Year Data Calculation'!AB4:AB35043)*0.001 -> 0 | AD71: =SUMIF('(4) One Year Data Calculation'!$AE$4:$AE$35043,$AA71,'(4) One Year Data Calculation'!X4:X35043)*0.001 -> 416.216999
Z72: February | AA72: 2 | AB72: =SUMIF('(4) One Year Data Calculation'!$AE$4:$AE$35043,$AA72,'(4) One Year Data Calculation'!$Z$4:$Z$35043)*0.001 -> 251.0877225 | AC72: =SUMIF('(4) One Year Data Calculation'!$AE$4:$AE$35043,$AA72,'(4) One Year Data Calculation'!AB5:AB35044)*0.001 -> 98.46840325 | AD72: =SUMIF('(4) One Year Data Calculation'!$AE$4:$AE$35043,$AA72,'(4) One Year Data Calculation'!X5:X35044)*0.001 -> 667.8885857
Z73: March | AA73: 3 | AB73: =SUMIF('(4) One Year Data Calculation'!$AE$4:$AE$35043,$AA73,'(4) One Year Data Calculation'!$Z$4:$Z$35043)*0.001 -> 9.564004881 | AC73: =SUMIF('(4) One Year Data Calculation'!$AE$4:$AE$35043,$AA73,'(4) One Year Data Calculation'!AB6:AB35045)*0.001 -> 709.2417007 | AD73: =SUMIF('(4) One Year Data Calculation'!$AE$4:$AE$35043,$AA73,'(4) One Year Data Calculation'!X6:X35045)*0.001 -> 915.6958636
A74: Battery | Z74: April | AA74: 4 | AB74: =SUMIF('(4) One Year Data Calculation'!$AE$4:$AE$35043,$AA74,'(4) One Year Data Calculation'!$Z$4:$Z$35043)*0.001 -> 0 | AC74: =SUMIF('(4) One Year Data Calculation'!$AE$4:$AE$35043,$AA74,'(4) One Year Data Calculation'!AB7:AB35046)*0.001 -> 1405.581936 | AD74: =SUMIF('(4) One Year Data Calculation'!$AE$4:$AE$35043,$AA74,'(4) One Year Data Calculation'!X7:X35046)*0.001 -> 682.8050907
A75: inclusive eff | Z75: May | AA75: 5 | AB75: =SUMIF('(4) One Year Data Calculation'!$AE$4:$AE$35043,$AA75,'(4) One Year Data Calculation'!$Z$4:$Z$35043)*0.001 -> 0 | AC75: =SUMIF('(4) One Year Data Calculation'!$AE$4:$AE$35043,$AA75,'(4) One Year Data Calculation'!AB8:AB35047)*0.001 -> 1069.96433 | AD75: =SUMIF('(4) One Year Data Calculation'!$AE$4:$AE$35043,$AA75,'(4) One Year Data Calculation'!X8:X35047)*0.001 -> 560.4248744
Z76: June | AA76: 6 | AB76: =SUMIF('(4) One Year Data Calculation'!$AE$4:$AE$35043,$AA76,'(4) One Year Data Calculation'!$Z$4:$Z$35043)*0.001 -> 0 | AC76: =SUMIF('(4) One Year Data Calculation'!$AE$4:$AE$35043,$AA76,'(4) One Year Data Calculation'!AB9:AB35048)*0.001 -> 1593.304958 | AD76: =SUMIF('(4) One Year Data Calculation'!$AE$4:$AE$35043,$AA76,'(4) One Year Data Calculation'!X9:X35048)*0.001 -> 437.4808625
Z77: July | AA77: 7 | AB77: =SUMIF('(4) One Year Data Calculation'!$AE$4:$AE$35043,$AA77,'(4) One Year Data Calculation'!$Z$4:$Z$35043)*0.001 -> 0 | AC77: =SUMIF('(4) One Year Data Calculation'!$AE$4:$AE$35043,$AA77,'(4) One Year Data Calculation'!AB10:AB35049)*0.001 -> 2066.28926 | AD77: =SUMIF('(4) One Year Data Calculation'!$AE$4:$AE$35043,$AA77,'(4) One Year Data Calculation'!X10:X35049)*0.001 -> 455.8068284
A78: Battery In | Z78: August | AA78: 8 | AB78: =SUMIF('(4) One Year Data Calculation'!$AE$4:$AE$35043,$AA78,'(4) One Year Data Calculation'!$Z$4:$Z$35043)*0.001 -> 0 | AC78: =SUMIF('(4) One Year Data Calculation'!$AE$4:$AE$35043,$AA78,'(4) One Year Data Calculation'!AB11:AB35050)*0.001 -> 1517.909957 | AD78: =SUMIF('(4) One Year Data Calculation'!$AE$4:$AE$35043,$AA78,'(4) One Year Data Calculation'!X11:X35050)*0.001 -> 446.2938915
Z79: September | AA79: 9 | AB79: =SUMIF('(4) One Year Data Calculation'!$AE$4:$AE$35043,$AA79,'(4) One Year Data Calculation'!$Z$4:$Z$35043)*0.001 -> 0 | AC79: =SUMIF('(4) One Year Data Calculation'!$AE$4:$AE$35043,$AA79,'(4) One Year Data Calculation'!AB12:AB35051)*0.001 -> 1057.365661 | AD79: =SUMIF('(4) One Year Data Calculation'!$AE$4:$AE$35043,$AA79,'(4) One Year Data Calculation'!X12:X35051)*0.001 -> 535.2963463
Z80: October | AA80: 10 | AB80: =SUMIF('(4) One Year Data Calculation'!$AE$4:$AE$35043,$AA80,'(4) One Year Data Calculation'!$Z$4:$Z$35043)*0.001 -> 71.57218685 | AC80: =SUMIF('(4) One Year Data Calculation'!$AE$4:$AE$35043,$AA80,'(4) One Year Data Calculation'!AB13:AB35052)*0.001 -> 331.6532424 | AD80: =SUMIF('(4) One Year Data Calculation'!$AE$4:$AE$35043,$AA80,'(4) One Year Data Calculation'!X13:X35052)*0.001 -> 658.3047386
Z81: November | AA81: 11 | AB81: =SUMIF('(4) One Year Data Calculation'!$AE$4:$AE$35043,$AA81,'(4) One Year Data Calculation'!$Z$4:$Z$35043)*0.001 -> 339.6224197 | AC81: =SUMIF('(4) One Year Data Calculation'!$AE$4:$AE$35043,$AA81,'(4) One Year Data Calculation'!AB14:AB35053)*0.001 -> 7.047032461 | AD81: =SUMIF('(4) One Year Data Calculation'!$AE$4:$AE$35043,$AA81,'(4) One Year Data Calculation'!X14:X35053)*0.001 -> 544.116961
Z82: December | AA82: 12 | AB82: =SUMIF('(4) One Year Data Calculation'!$AE$4:$AE$35043,$AA82,'(4) One Year Data Calculation'!$Z$4:$Z$35043)*0.001 -> 595.6463805 | AC82: =SUMIF('(4) One Year Data Calculation'!$AE$4:$AE$35043,$AA82,'(4) One Year Data Calculation'!AB15:AB35054)*0.001 -> 0 | AD82: =SUMIF('(4) One Year Data Calculation'!$AE$4:$AE$35043,$AA82,'(4) One Year Data Calculation'!X15:X35054)*0.001 -> 392.3331372

Sheet (3) Parameter Settings
B2: Generators | E2: DATA | I2: Cost and Subsidies | M2: Abbreviations
B3: PV | C3: =gen_pv -> 20 | D3: kWp | E3: 70% cut of control installed? | F3: FALSE | G3: Unit | I3: PV exclusive Tax | J3: =cost_pv -> 2200 | K3: €/ kWp | M3: 0 | N3: initial
E4: Hours (specific Yield) | F4: 1000 | G4: kWh/kWp | I4: grid in < 30 kWp | J4: 0.2443 | K4: €/kWh | M4: a | N4: year
E5: Berlin 942 München 1050 | I5: SC < 30% | J5: 0.0805 | K5: €/kWh | M5: E | N5: Energy
E6: PV to Inverter Ratio | F6: 2 | I6: SC > 30% | J6: 0.1243 | K6: €/kWh | M6: el | N6: electric
E7: Pmax | F7: =IF(1/F6<0.7,1/F6,IF(F3=FALSE,1/F6,0.7)) -> 0.5 | G7: kW/kWp | I7: Tax | J7: =J3*C33*0.01 -> 418 | K7: €/kWp | M7: ESC | N7: a --> EVU
B8: Wind | C8: =gen_wind -> 0 | D8: kWp | I8: Wind | J8: =cost_wind -> 1500 | K8: €/kWp | M8: ESC | N8: Energy Supply Company
F9: /gen_data_pv_hours*1000 | M9: EVU | N9: Energieversorgungsunternehmen
M10: h | N10: hour(s)
B11: CHP | C11: =gen_chp -> 0 | D11: kWp | E11: Start date | F11: 10 | I11: CHP | J11: =cost_chp -> 2000 | K11: €/kWp | M11: HP | N11: heatpump
E12: Duration in month | F12: 6 | I12: CHP electric cost | J12: =0.07*F13 -> 0.28 | K12: €/kWhel | M12: IC | N12: Internal Consumption
E13: CHP 1/η | F13: 4 | I13: KWK | J13: 0.055 | K13: €/kWh | M13: kWh | N13: kilo watt hour
M14: max | N14: maximum
B15: GENX | C15: =gen_genx -> 0 | D15: kWp | I15: GENX | K15: €/kWp | M15: SOC | N15: State of charge
I16: specific cost | K16: €/kWhel | M16: th | N16: thermal
M17: X | N17: x-times or self defineable
B19: Load | I19: Cost
B20: General | C20: =load_load -> 3334 | D20: kWh | I20: EVU / ESC | J20: 0.2443 | K20: €/kWh
B21: Heat Pump | C21: =load_heatpump -> 3333 | D21: kWh
B22: Electric Car | C22: =load_car -> 3333 | D22: kWh
B23: LOADX | C23: =load_loadx -> 0 | D23: kWh
B24: load_data_load | C24: =SUM(C20:C23) -> 10000 | D24: kWh
B26: Battery Data | E26: Lifetime Cycles | F26: 2500
B27: DODmax | C27: =1-bat_soc*0.01 -> 1 | E27: Effiency charge | F27: 0.98 | G27: Eff_total
B28: Capacity in Wh | C28: =bat_cap_use*1000 -> 40000 | D28: Wh | E28: Effiency discharge | F28: 0.98 | G28: =bat_data_eff_charge*bat_data_eff_discharge -> 0.9604
B29: Pmax | C29: =C28/F29 -> 40000 | D29: Wh/15min | E29: factor Wh/(Whbat*15min) | F29: 1
B30: Capacity Total Wh | C30: =bat_cap_total*1000 -> 40000 | D30: Wh | E30: Maximum Charge | F30: 1
B32: Special Data
B33: Tax | C33: 19 | D33: Germany

Sheet (4) One Year Data Calculation
A1: Sums kWh* | B1: =SUM(B4:B35043)*0.001 -> 1000.012092 | C1: =SUM(C4:C35043)*0.001 -> 3334.040314 | D1: =SUM(D15:D35054)*0.001 -> 998.8584475 | E1: 3333 | F1: 1000 | G1: 3333 | H1: =P1/$P$1*1000 -> 1000 | I1: =H1*$I$2 -> 0 | J1: =MAX(J4:J35043) -> 237.0190334 | K1: 18178.34595 | L1: 0 | M1: 0 | N1: 5088 | O1: 0 | P1: =1/SUM(P4:P35043)*0.001 -> 5.489516514e-10 | Q1: 0 | R1: 10000.04031 | S1: 18178.34595 | T1: =MAX(X3:X35042) -> 2474.669949 | U1: =MAX(U4:U35043) -> 40000 | V1: =SUM(V4:V35043)*0.001 -> 0.01 | W1: =SUM(W4:W35043)*0.001 -> -265.8117015 | X1: =SUM(X4:X35043)*0.001 -> 6712.664179 | Y1: =S1-AB1-X1 -> 1608.855289 | Z1: =SUM(Z4:Z35043)*0.001 -> 1944.292234 | AA1: =SUM(AA4:AA35043)*0.001 -> -7912.534247 | AB1: 9856.82648 | AC1: =AVERAGE(AC4:AC35043) -> 0.6197012575 | AE1: *except output fields | AF1: PV (assume 850 kWh/kWp)
A2: Calculation Values | C2: =load_load*0.001 -> 3.334 | E2: =load_car*0.001 -> 3.333 | G2: =load_heatpump*0.001 -> 3.333 | H2: Heatelement | I2: =load_loadx*0.001 -> 0 | J2: =gen_data_pv_ratio2 -> 0.5 | K2: =gen_pv*gen_data_pv_hours*0.001 -> 20 | M2: =gen_wind -> 0 | O2: =gen_chp -> 0 | P2: HeatElement | Q2: =gen_genx -> 0 | U2: =bat_cap_use*1000*'(3) Parameter Settings'!F30 -> 40000 | V2: =bat_data_eff_charge -> 0.98 | W2: =bat_data_eff_discharge -> 0.98 | Y2: =R1-Z1-X1-W1 -> 1608.895603 | Z2: =MAX(Z5:Z35044)*4 -> 5147.588455 | AA2: =MAX(AA5:AA35044)*4 -> 5147.588455 | AB2: =MAX(AB4:AB35043)*4 -> 9968.605004 | AF2: Values Calculated
A3: Time | B3: LoadE0 | C3: Load_EX | D3: CarE0 | E3: Car_EX | F3: HPE0 | G3: HP_EX | H3: LoadX_E0 | I3: LoadX_EX | J3: PVE0 | K3: PV_EX | L3: WE0 | M3: W_EX | N3: CHPE0 | O3: CHP_EX | P3: GenXE0 | Q3: GenX_EX | R3: Load_total_EX | S3: Gen_total_EX | T3: Load-Generation | U3: SoC_EX *SoCmin := 0 Wh | V3: battery load_Wh/15min | W3: battery_inc_eff | X3: battery input | Y3: gen total | Z3: Grid - | AA3: grid +/- | AB3: feed_grid | AC3: SoC | AD3: ToD (hrs) | AE3: Month
A4: 2010-01-01 | B4: 12.09178902 | C4: =B4*$C$2 -> 40.31402459 | D4: 0 | E4: =D4*$E$2 -> 0 | F4: 0 | G4: =F4*$G$2 -> 0 | J4: 0 | K4: =IF(J4>(250*$J$2),250*$J$2*$K$2,J4 * $K$2) -> 0 | M4: =$M$2*L4 -> 0 | N4: 250 | O4: =N4*$O$2 -> 0 | P4: =J4*$K$2-K4 -> 0 | Q4: =P4*$Q$2 -> 0 | R4: =C4+E4+G4+I4 -> 40.31402459 | S4: =K4+M4+O4+Q4 -> 0 | T4: 0 | U4: 10 | V4: =IF(T4>0, IF((U4-T4/$W$2)>0,T4/$W$2,U4), IF((U4-T4*$V$2)<($U$2),T4*$V$2,-$U$2+U4)) -> 0 | W4: =IF(T4>0,IF((U4-T4/$W$2)>0,T4,U4*$W$2),IF((U4-T4*$V$2)<$U$2,T4,(-$U$2+U4)/$V$2)) -> 0 | X4: =IF(W4<0,-W4,0) -> 0 | Y4: - | Z4: =IF(AA4>0,AA4,0) -> 0 | AA4: =T4-W4 -> 0 | AB4: =IF(AA4<0,-AA4,0) -> 0 | AC4: =U4*(1-bat_soc*0.01)/bat_cap_use/1000+bat_soc*0.01 -> 0.00025 | AD4: =MINUTE(A4)/60 + HOUR(A4) -> 0 | AE4: =MONTH(A4) -> 1
A5: 2010-01-01T00:15:00 | B5: 17.76315965 | C5: =B5*$C$2 -> 59.22237428 | D5: 114.1552511 | E5: =D5*$E$2 -> 380.4794521 | F5: 228.4946237 | G5: 761.5725806 | J5: 0 | K5: =IF(J5>(250*$J$2),250*$J$2*$K$2,J5 * $K$2) -> 0 | M5: =$M$2*L5 -> 0 | N5: 250 | O5: 0 | P5: =J5*$K$2-K5 -> 0 | Q5: =P5*$Q$2 -> 0 | R5: =C5+E5+G5+I5 -> 1201.274407 | S5: =K5+M5+O5+Q5 -> 0 | T5: =R5-S5 -> 1201.274407 | U5: =U4-V4 -> 10 | V5: =IF(T5>0, IF((U5-T5/$W$2)>0,T5/$W$2,U5), IF((U5-T5*$V$2)<($U$2),T5*$V$2,-$U$2+U5)) -> 10 | W5: =IF(T5>0,IF((U5-T5/$W$2)>0,T5,U5*$W$2),IF((U5-T5*$V$2)<$U$2,T5,(-$U$2+U5)/$V$2)) -> 9.8 | X5: 0 | Y5: feed in | Z5: 1191.474407 | AA5: 1191.474407 | AB5: 0 | AC5: 0.00025 | AD5: 0.25 | AE5: 1
A6: 2010-01-01T00:30:00 | B6: 14.44594311 | C6: 48.16277433 | D6: 114.1552511 | E6: 380.4794521 | F6: 228.4946237 | G6: 761.5725806 | J6: 0 | K6: 0 | M6: 0 | N6: 250 | O6: 0 | P6: 0 | Q6: 0 | R6: 1190.214807 | S6: =K6+M6+O6+Q6 -> 0 | T6: 1190.214807 | U6: 0 | V6: 0 | W6: 0 | X6: 0 | Y6: - | Z6: 1190.214807 | AA6: 1190.214807 | AB6: 0 | AC6: 0 | AD6: 0.5 | AE6: 1
A7: 2010-01-01T00:45:00 | B7: 15.03448178 | C7: 50.12496227 | D7: 114.1552511 | E7: 380.4794521 | F7: 228.4946237 | G7: 761.5725806 | J7: 0 | K7: 0 | M7: 0 | N7: 250 | O7: 0 | P7: 0 | Q7: 0 | R7: 1192.176995 | S7: 0 | T7: 1192.176995 | U7: 0 | V7: 0 | W7: 0 | X7: 0 | Y7: battery input | Z7: 1192.176995 | AA7: 1192.176995 | AB7: 0 | AC7: 0 | AD7: 0.75 | AE7: 1
A8: 2010-01-01T01:00:00 | B8: 14.98097796 | C8: 49.94658052 | D8: 114.1552511 | E8: 380.4794521 | F8: 228.4946237 | G8: 761.5725806 | J8: 0 | K8: 0 | M8: 0 | N8: 250 | O8: 0 | P8: 0 | Q8: 0 | R8: 1191.998613 | S8: 0 | T8: 1191.998613 | U8: 0 | V8: 0 | W8: 0 | X8: 0 | Z8: 1191.998613 | AA8: 1191.998613 | AB8: 0 | AC8: 0 | AD8: 1 | AE8: 1
A9: 2010-01-01T01:15:00 | B9: 13.64338994 | C9: 45.48706206 | D9: 114.1552511 | E9: 380.4794521 | F9: 228.4946237 | G9: 761.5725806 | J9: 0 | K9: 0 | M9: 0 | N9: 250 | O9: 0 | P9: 0 | Q9: 0 | R9: 1187.539095 | S9: 0 | T9: 1187.539095 | U9: 0 | V9: 0 | W9: 0 | X9: 0 | Y9: =S1 -> 18178.34595 | Z9: 1187.539095 | AA9: 1187.539095 | AB9: 0 | AC9: 0 | AD9: 1.25 | AE9: 1
A10: 2010-01-01T01:30:00 | B10: 13.16185892 | C10: 43.88163762 | D10: 114.1552511 | E10: 380.4794521 | F10: 228.4946237 | G10: 761.5725806 | J10: 0 | K10: 0 | M10: 0 | N10: 250 | O10: 0 | P10: 0 | Q10: 0 | R10: 1185.93367 | S10: 0 | T10: 1185.93367 | U10: 0 | V10: 0 | W10: 0 | X10: 0 | Y10: =AB1 -> 9856.82648 | Z10: 1185.93367 | AA10: 1185.93367 | AB10: 0 | AC10: 0 | AD10: 1.5 | AE10: 1
A11: 2010-01-01T01:45:00 | B11: 13.48288006 | C11: 44.95192213 | D11: 114.1552511 | E11: 380.4794521 | F11: 228.4946237 | G11: 761.5725806 | J11: 0 | K11: 0 | M11: 0 | N11: 250 | O11: 0 | P11: 0 | Q11: 0 | R11: 1187.003955 | S11: 0 | T11: 1187.003955 | U11: 0 | V11: 0 | W11: 0 | X11: 0 | Y11: =X1 -> 6712.664179 | Z11: 1187.003955 | AA11: 1187.003955 | AB11: 0 | AC11: 0 | AD11: 1.75 | AE11: 1
A12: 2010-01-01T02:00:00 | B12: 14.44594291 | C12: 48.16277367 | D12: 114.1552511 | E12: 380.4794521 | F12: 228.4946237 | G12: 761.5725806 | J12: 0 | K12: 0 | M12: 0 | N12: 250 | O12: 0 | P12: 0 | Q12: 0 | R12: 1190.214806 | S12: 0 | T12: 1190.214806 | U12: 0 | V12: 0 | W12: 0 | X12: 0 | Y12: =Y9-Y10-Y11 -> 1608.855289 | Z12: 1190.214806 | AA12: 1190.214806 | AB12: 0 | AC12: 0 | AD12: 2 | AE12: 1
A13: 2010-01-01T02:15:00 | B13: 12.03828559 | C13: 40.13564417 | D13: 114.1552511 | E13: 380.4794521 | F13: 228.4946237 | G13: 761.5725806 | J13: 0 | K13: 0 | M13: 0 | N13: 250 | O13: 0 | P13: 0 | Q13: 0 | R13: 1182.187677 | S13: 0 | T13: 1182.187677 | U13: 0 | V13: 0 | W13: 0 | X13: 0 | Z13: 1182.187677 | AA13: 1182.187677 | AB13: 0 | AC13: 0 | AD13: 2.25 | AE13: 1
A14: 2010-01-01T02:30:00 | B14: 16.74659298 | C14: 55.833141 | D14: 114.1552511 | E14: 380.4794521 | F14: 228.4946237 | G14: 761.5725806 | J14: 0 | K14: 0 | M14: 0 | N14: 250 | O14: 0 | P14: 0 | Q14: 0 | R14: 1197.885174 | S14: 0 | T14: 1197.885174 | U14: 0 | V14: 0 | W14: 0 | X14: 0 | Y14: load total | Z14: 1197.885174 | AA14: 1197.885174 | AB14: 0 | AC14: 0 | AD14: 2.5 | AE14: 1
A15: 2010-01-01T02:45:00 | B15: 12.41280957 | C15: 41.3843071 | D15: 114.1552511 | E15: 380.4794521 | F15: 228.4946237 | G15: 761.5725806 | J15: 0 | K15: 0 | M15: 0 | N15: 250 | O15: 0 | P15: 0 | Q15: 0 | R15: 1183.43634 | S15: 0 | T15: 1183.43634 | U15: 0 | V15: 0 | W15: 0 | X15: 0 | Y15: - | Z15: 1183.43634 | AA15: 1183.43634 | AB15: 0 | AC15: 0 | AD15: 2.75 | AE15: 1
A16: 2010-01-01T03:00:00 | B16: 14.23192861 | C16: 47.44925 | D16: 114.1552511 | E16: 380.4794521 | F16: 228.4946237 | G16: 761.5725806 | J16: 0 | K16: 0 | M16: 0 | N16: 250 | O16: 0 | P16: 0 | Q16: 0 | R16: 1189.501283 | S16: 0 | T16: 1189.501283 | U16: 0 | V16: 0 | W16: 0 | X16: 0 | Y16: battery input | Z16: 1189.501283 | AA16: 1189.501283 | AB16: 0 | AC16: 0 | AD16: 3 | AE16: 1
A17: 2010-01-01T03:15:00 | B17: 11.98478157 | C17: 39.95726175 | D17: 114.1552511 | E17: 380.4794521 | F17: 228.4946237 | G17: 761.5725806 | J17: 0 | K17: 0 | M17: 0 | N17: 250 | O17: 0 | P17: 0 | Q17: 0 | R17: 1182.009294 | S17: 0 | T17: 1182.009294 | U17: 0 | V17: 0 | W17: 0 | X17: 0 | Y17: - | Z17: 1182.009294 | AA17: 1182.009294 | AB17: 0 | AC17: 0 | AD17: 3.25 | AE17: 1
A18: 2010-01-01T03:30:00 | B18: 13.26886557 | C18: 44.2383978 | D18: 114.1552511 | E18: 380.4794521 | F18: 228.4946237 | G18: 761.5725806 | J18: 0 | K18: 0 | M18: 0 | N18: 250 | O18: 0 | P18: 0 | Q18: 0 | R18: 1186.29043 | S18: 0 | T18: 1186.29043 | U18: 0 | V18: 0 | W18: 0 | X18: 0 | Y18: grid | Z18: 1186.29043 | AA18: 1186.29043 | AB18: 0 | AC18: 0 | AD18: 3.5 | AE18: 1
A19: 2010-01-01T03:45:00 | B19: 11.77076807 | C19: 39.24374074 | D19: 114.1552511 | E19: 380.4794521 | F19: 228.4946237 | G19: 761.5725806 | J19: 0 | K19: 0 | M19: 0 | N19: 250 | O19: 0 | P19: 0 | Q19: 0 | R19: 1181.295773 | S19: 0 | T19: 1181.295773 | U19: 0 | V19: 0 | W19: 0 | X19: 0 | Y19: - | Z19: 1181.295773 | AA19: 1181.295773 | AB19: 0 | AC19: 0 | AD19: 3.75 | AE19: 1
A20: 2010-01-01T04:00:00 | B20: 10.64719395 | C20: 35.49774463 | D20: 114.1552511 | E20: 380.4794521 | F20: 228.4946237 | G20: 761.5725806 | J20: 0 | K20: 0 | M20: 0 | N20: 250 | O20: 0 | P20: 0 | Q20: 0 | R20: 1177.549777 | S20: 0 | T20: 1177.549777 | U20: 0 | V20: 0 | W20: 0 | X20: 0 | Y20: battery_ink_eff | Z20: 1177.549777 | AA20: 1177.549777 | AB20: 0 | AC20: 0 | AD20: 4 | AE20: 1
A21: 2010-01-01T04:15:00 | B21: 14.01791412 | C21: 46.73572566 | D21: 114.1552511 | E21: 380.4794521 | F21: 228.4946237 | G21: 761.5725806 | J21: 0 | K21: 0 | M21: 0 | N21: 250 | O21: 0 | P21: 0 | Q21: 0 | R21: 1188.787758 | S21: 0 | T21: 1188.787758 | U21: 0 | V21: 0 | W21: 0 | X21: 0 | Z21: 1188.787758 | AA21: 1188.787758 | AB21: 0 | AC21: 0 | AD21: 4.25 | AE21: 1
A22: 2010-01-01T04:30:00 | B22: 10.43317985 | C22: 34.78422162 | D22: 114.1552511 | E22: 380.4794521 | F22: 228.4946237 | G22: 761.5725806 | J22: 0 | K22: 0 | M22: 0 | N22: 250 | O22: 0 | P22: 0 | Q22: 0 | R22: 1176.836254 | S22: 0 | T22: 1176.836254 | U22: 0 | V22: 0 | W22: 0 | X22: 0 | Y22: =R1 -> 10000.04031 | Z22: 1176.836254 | AA22: 1176.836254 | AB22: 0 | AC22: 0 | AD22: 4.5 | AE22: 1
A23: 2010-01-01T04:45:00 | B23: 12.14529185 | C23: 40.49240301 | D23: 114.1552511 | E23: 380.4794521 | F23: 228.4946237 | G23: 761.5725806 | J23: 0 | K23: 0 | M23: 0 | N23: 250 | O23: 0 | P23: 0 | Q23: 0 | R23: 1182.544436 | S23: 0 | T23: 1182.544436 | U23: 0 | V23: 0 | W23: 0 | X23: 0 | Y23: =Z1 -> 1944.292234 | Z23: 1182.544436 | AA23: 1182.544436 | AB23: 0 | AC23: 0 | AD23: 4.75 | AE23: 1
A24: 2010-01-01T05:00:00 | B24: 11.6102574 | C24: 38.70859816 | D24: 114.1552511 | E24: 380.4794521 | F24: 228.4946237 | G24: 761.5725806 | J24: 0 | K24: 0 | M24: 0 | N24: 250 | O24: 0 | P24: 0 | Q24: 0 | R24: 1180.760631 | S24: 0 | T24: 1180.760631 | U24: 0 | V24: 0 | W24: 0 | X24: 0 | Y24: =X1 -> 6712.664179 | Z24: 1180.760631 | AA24: 1180.760631 | AB24: 0 | AC24: 0 | AD24: 5 | AE24: 1
A25: 2010-01-01T05:15:00 | B25: 11.87777492 | C25: 39.60050158 | D25: 114.1552511 | E25: 380.4794521 | F25: 228.4946237 | G25: 761.5725806 | J25: 0 | K25: 0 | M25: 0 | N25: 250 | O25: 0 | P25: 0 | Q25: 0 | R25: 1181.652534 | S25: 0 | T25: 1181.652534 | U25: 0 | V25: 0 | W25: 0 | X25: 0 | Y25: =W1 -> -265.8117015 | Z25: 1181.652534 | AA25: 1181.652534 | AB25: 0 | AC25: 0 | AD25: 5.25 | AE25: 1
A26: 2010-01-01T05:30:00 | B26: 10.91471127 | C26: 36.38964739 | D26: 114.1552511 | E26: 380.4794521 | F26: 228.4946237 | G26: 761.5725806 | J26: 0 | K26: 0 | M26: 0 | N26: 250 | O26: 0 | P26: 0 | Q26: 0 | R26: 1178.44168 | S26: 0 | T26: 1178.44168 | U26: 0 | V26: 0 | W26: 0 | X26: 0 | Y26: =Y22-Y23-Y24-Y25 -> 1608.895603 | Z26: 1178.44168 | AA26: 1178.44168 | AB26: 0 | AC26: 0 | AD26: 5.5 | AE26: 1
A27: 2010-01-01T05:45:00 | B27: 12.30580272 | C27: 41.02754626 | D27: 114.1552511 | E27: 380.4794521 | F27: 228.4946237 | G27: 761.5725806 | J27: 0 | K27: 0 | M27: 0 | N27: 250 | O27: 0 | P27: 0 | Q27: 0 | R27: 1183.079579 | S27: 0 | T27: 1183.079579 | U27: 0 | V27: 0 | W27: 0 | X27: 0 | Z27: 1183.079579 | AA27: 1183.079579 | AB27: 0 | AC27: 0 | AD27: 5.75 | AE27: 1
A28: 2010-01-01T06:00:00 | B28: 11.77076727 | C28: 39.24373808 | D28: 114.1552511 | E28: 380.4794521 | F28: 228.4946237 | G28: 761.5725806 | J28: 0 | K28: 0 | M28: 0 | N28: 250 | O28: 0 | P28: 0 | Q28: 0 | R28: 1181.295771 | S28: 0 | T28: 1181.295771 | U28: 0 | V28: 0 | W28: 0 | X28: 0 | Z28: 1181.295771 | AA28: 1181.295771 | AB28: 0 | AC28: 0 | AD28: 6 | AE28: 1
A29: 2010-01-01T06:15:00 | B29: 10.43317985 | C29: 34.78422162 | D29: 0 | E29: 0 | F29: 0 | G29: 0 | J29: 0 | K29: 0 | M29: 0 | N29: 250 | O29: 0 | P29: 0 | Q29: 0 | R29: 34.78422162 | S29: 0 | T29: 34.78422162 | U29: 0 | V29: 0 | W29: 0 | X29: 0 | Z29: 34.78422162 | AA29: 34.78422162 | AB29: 0 | AC29: 0 | AD29: 6.25 | AE29: 1
A30: 2010-01-01T06:30:00 | B30: 14.92747374 | C30: 49.76819744 | D30: 0 | E30: 0 | F30: 0 | G30: 0 | J30: 0 | K30: 0 | M30: 0 | N30: 250 | O30: 0 | P30: 0 | Q30: 0 | R30: 49.76819744 | S30: 0 | T30: 49.76819744 | U30: 0 | V30: 0 | W30: 0 | X30: 0 | Z30: 49.76819744 | AA30: 49.76819744 | AB30: 0 | AC30: 0 | AD30: 6.5 | AE30: 1
A31: 2010-01-01T06:45:00 | B31: 10.80770462 | C31: 36.03288722 | D31: 0 | E31: 0 | F31: 0 | G31: 0 | J31: 0 | K31: 0 | M31: 0 | N31: 250 | O31: 0 | P31: 0 | Q31: 0 | R31: 36.03288722 | S31: 0 | T31: 36.03288722 | U31: 0 | V31: 0 | W31: 0 | X31: 0 | Z31: 36.03288722 | AA31: 36.03288722 | AB31: 0 | AC31: 0 | AD31: 6.75 | AE31: 1
A32: 2010-01-01T07:00:00 | B32: 12.19879527 | C32: 40.67078343 | D32: 0 | E32: 0 | F32: 0 | G32: 0 | J32: 0 | K32: 0 | M32: 0 | N32: 250 | O32: 0 | P32: 0 | Q32: 0 | R32: 40.67078343 | S32: 0 | T32: 40.67078343 | U32: 0 | V32: 0 | W32: 0 | X32: 0 | Z32: 40.67078343 | AA32: 40.67078343 | AB32: 0 | AC32: 0 | AD32: 7 | AE32: 1
A33: 2010-01-01T07:15:00 | B33: 11.55675397 | C33: 38.53021774 | D33: 0 | E33: 0 | F33: 0 | G33: 0 | J33: 0 | K33: 0 | M33: 0 | N33: 250 | O33: 0 | P33: 0 | Q33: 0 | R33: 38.53021774 | S33: 0 | T33: 38.53021774 | U33: 0 | V33: 0 | W33: 0 | X33: 0 | Z33: 38.53021774 | AA33: 38.53021774 | AB33: 0 | AC33: 0 | AD33: 7.25 | AE33: 1
A34: 2010-01-01T07:30:00 | B34: 17.28162723 | C34: 57.61694519 | D34: 0 | E34: 0 | F34: 0 | G34: 0 | J34: 0 | K34: 0 | M34: 0 | N34: 250 | O34: 0 | P34: 0 | Q34: 0 | R34: 57.61694519 | S34: 0 | T34: 57.61694519 | U34: 0 | V34: 0 | W34: 0 | X34: 0 | Z34: 57.61694519 | AA34: 57.61694519 | AB34: 0 | AC34: 0 | AD34: 7.5 | AE34: 1
A35: 2010-01-01T07:45:00 | B35: 49.65124027 | C35: 165.5372351 | D35: 0 | E35: 0 | F35: 0 | G35: 0 | J35: 0.0002964106027 | K35: 0.005928212054 | M35: 0 | N35: 250 | O35: 0 | P35: 0 | Q35: 0 | R35: 165.5372351 | S35: 0.005928212054 | T35: 165.5313068 | U35: 0 | V35: 0 | W35: 0 | X35: 0 | Z35: 165.5313068 | AA35: 165.5313068 | AB35: 0 | AC35: 0 | AD35: 7.75 | AE35: 1
A36: 2010-01-01T08:00:00 | B36: 11.77076867 | C36: 39.24374274 | D36: 0 | E36: 0 | F36: 0 | G36: 0 | J36: 0.4639015861 | K36: 9.278031722 | M36: 0 | N36: 250 | O36: 0 | P36: 0 | Q36: 0 | R36: 39.24374274 | S36: 9.278031722 | T36: =R36-S36 -> 29.96571102 | U36: 0 | V36: 0 | W36: 0 | X36: =IF(W36<0,-W36,0) -> 0 | Z36: =IF(AA36>0,AA36,0) -> 29.96571102 | AA36: =T36-W36 -> 29.96571102 | AB36: =IF(AA36<0,-AA36,0) -> 0 | AC36: =U36*(1-bat_soc*0.01)/bat_cap_use/1000+bat_soc*0.01 -> 0 | AD36: =MINUTE(A36)/60 + HOUR(A36) -> 8 | AE36: =MONTH(A36) -> 1
A37: 2010-01-01T08:15:00 | B37: 15.62301946 | C37: 52.08714688 | D37: 0 | E37: 0 | F37: 0 | G37: 0 | J37: 1.691197248 | K37: 33.82394496 | M37: 0 | N37: 250 | O37: 0 | P37: 0 | Q37: 0 | R37: 52.08714688 | S37: 33.82394496 | T37: 18.26320191 | U37: =U36-V36 -> 0 | V37: 0 | W37: 0 | X37: 0 | Z37: 18.26320191 | AA37: 18.26320191 | AB37: 0 | AC37: 0 | AD37: 8.25 | AE37: 1
A38: 2010-01-01T08:30:00 | B38: 12.41280957 | C38: 41.3843071 | D38: 0 | E38: 0 | F38: 0 | G38: 0 | J38: 2.601344997 | K38: 52.02689995 | M38: 0 | N38: 250 | O38: 0 | P38: 0 | Q38: 0 | R38: 41.3843071 | S38: 52.02689995 | T38: -10.64259284 | U38: 0 | V38: -10.42974099 | W38: -10.64259284 | X38: 10.64259284 | Z38: 0 | AA38: 0 | AB38: 0 | AC38: 0 | AD38: 8.5 | AE38: 1
A39: 2010-01-01T08:45:00 | B39: 14.17842519 | C39: 47.27086958 | D39: 0 | E39: 0 | F39: 0 | G39: 0 | J39: 6.001060559 | K39: 120.0212112 | M39: 0 | N39: 250 | O39: 0 | P39: 0 | Q39: 0 | R39: 47.27086958 | S39: 120.0212112 | T39: -72.75034159 | U39: 10.42974099 | V39: -71.29533476 | W39: -72.75034159 | X39: 72.75034159 | Z39: 0 | AA39: 0 | AB39: 0 | AC39: 0.0002607435247 | AD39: 8.75 | AE39: 1
A40: 2010-01-01T09:00:00 | B40: 13.00134904 | C40: 43.3464977 | D40: 0 | E40: 0 | F40: 0 | G40: 0 | J40: 8.943467825 | K40: 178.8693565 | M40: 0 | N40: 250 | O40: 0 | P40: 0 | Q40: 0 | R40: 43.3464977 | S40: 178.8693565 | T40: -135.5228588 | U40: 81.72507575 | V40: -132.8124016 | W40: -135.5228588 | X40: 135.5228588 | Z40: 0 | AA40: 0 | AB40: 0 | AC40: 0.002043126894 | AD40: 9 | AE40: 1
A41: 2010-01-01T09:15:00 | B41: 13.26886596 | C41: 44.23839913 | D41: 0 | E41: 0 | F41: 0 | G41: 0 | J41: 9.57436628 | K41: 191.4873256 | M41: 0 | N41: 250 | O41: 0 | P41: 0 | Q41: 0 | R41: 44.23839913 | S41: 191.4873256 | T41: -147.2489265 | U41: 214.5374774 | V41: -144.3039479 | W41: -147.2489265 | X41: 147.2489265 | Z41: 0 | AA41: 0 | AB41: 0 | AC41: 0.005363436934 | AD41: 9.25 | AE41: 1
A42: 2010-01-01T09:30:00 | B42: 12.09178962 | C42: 40.31402658 | D42: 0 | E42: 0 | F42: 0 | G42: 0 | J42: 11.70153035 | K42: 234.030607 | M42: 0 | N42: 250 | O42: 0 | P42: 0 | Q42: 0 | R42: 40.31402658 | S42: 234.030607 | T42: -193.7165804 | U42: 358.8414253 | V42: -189.8422488 | W42: -193.7165804 | X42: 193.7165804 | Z42: 0 | AA42: 0 | AB42: 0 | AC42: 0.008971035633 | AD42: 9.5 | AE42: 1
A43: 2010-01-01T09:45:00 | B43: 14.44594271 | C43: 48.162773 | D43: 0 | E43: 0 | F43: 0 | G43: 0 | J43: 15.65374765 | K43: 313.0749531 | M43: 0 | N43: 250 | O43: 0 | P43: 0 | Q43: 0 | R43: 48.162773 | S43: 313.0749531 | T43: -264.9121801 | U43: 548.6836741 | V43: -259.6139365 | W43: -264.9121801 | X43: 264.9121801 | Z43: 0 | AA43: 0 | AB43: 0 | AC43: 0.01371709185 | AD43: 9.75 | AE43: 1
A44: 2010-01-01T10:00:00 | B44: 11.8242709 | C44: 39.42211917 | D44: 0 | E44: 0 | F44: 0 | G44: 0 | J44: 21.88688233 | K44: 437.7376467 | M44: 0 | N44: 250 | O44: 0 | P44: 0 | Q44: 0 | R44: 39.42211917 | S44: 437.7376467 | T44: -398.3155275 | U44: 808.2976106 | V44: -390.349217 | W44: -398.3155275 | X44: 398.3155275 | Z44: 0 | AA44: 0 | AB44: 0 | AC44: 0.02020744026 | AD44: 10 | AE44: 1
A45: 2010-01-01T10:15:00 | B45: 10.7542016 | C45: 35.85450813 | D45: 0 | E45: 0 | F45: 0 | G45: 0 | J45: 19.38996528 | K45: 387.7993057 | M45: 0 | N45: 250 | O45: 0 | P45: 0 | Q45: 0 | R45: 35.85450813 | S45: 387.7993057 | T45: -351.9447975 | U45: 1198.646828 | V45: -344.9059016 | W45: -351.9447975 | X45: 351.9447975 | Z45: 0 | AA45: 0 | AB45: 0 | AC45: 0.02996617069 | AD45: 10.25 | AE45: 1
A46: 2010-01-01T10:30:00 | B46: 13.85740384 | C46: 46.2005844 | D46: 0 | E46: 0 | F46: 0 | G46: 0 | J46: 17.53264909 | K46: 350.6529817 | M46: 0 | N46: 250 | O46: 0 | P46: 0 | Q46: 0 | R46: 46.2005844 | S46: 350.6529817 | T46: -304.4523973 | U46: 1543.552729 | V46: -298.3633494 | W46: -304.4523973 | X46: 304.4523973 | Z46: 0 | AA46: 0 | AB46: 0 | AC46: 0.03858881823 | AD46: 10.5 | AE46: 1
A47: 2010-01-01T10:45:00 | B47: 11.87777512 | C47: 39.60050225 | D47: 0 | E47: 0 | F47: 0 | G47: 0 | J47: 19.40987799 | K47: 388.1975597 | M47: 0 | N47: 250 | O47: 0 | P47: 0 | Q47: 0 | R47: 39.60050225 | S47: 388.1975597 | T47: -348.5970575 | U47: 1841.916079 | V47: -341.6251163 | W47: -348.5970575 | X47: 348.5970575 | Z47: 0 | AA47: 0 | AB47: 0 | AC47: 0.04604790196 | AD47: 10.75 | AE47: 1
A48: 2010-01-01T11:00:00 | B48: 13.64339034 | C48: 45.48706339 | D48: 0 | E48: 0 | F48: 0 | G48: 0 | J48: 19.18992602 | K48: 383.7985204 | M48: 0 | N48: 250 | O48: 0 | P48: 0 | Q48: 0 | R48: 45.48706339 | S48: 383.7985204 | T48: -338.311457 | U48: 2183.541195 | V48: -331.5452278 | W48: -338.311457 | X48: 338.311457 | Z48: 0 | AA48: 0 | AB48: 0 | AC48: 0.05458852987 | AD48: 11 | AE48: 1
A49: 2010-01-01T11:15:00 | B49: 12.41280977 | C49: 41.38430777 | D49: 0 | E49: 0 | F49: 0 | G49: 0 | J49: 22.00544662 | K49: 440.1089324 | M49: 0 | N49: 250 | O49: 0 | P49: 0 | Q49: 0 | R49: 41.38430777 | S49: 440.1089324 | T49: -398.7246246 | U49: 2515.086423 | V49: -390.7501321 | W49: -398.7246246 | X49: 398.7246246 | Z49: 0 | AA49: 0 | AB49: 0 | AC49: 0.06287716057 | AD49: 11.25 | AE49: 1
A50: 2010-01-01T11:30:00 | B50: 11.71726444 | C50: 39.06535966 | D50: 0 | E50: 0 | F50: 0 | G50: 0 | J50: 24.93269137 | K50: 498.6538273 | M50: 0 | N50: 250 | O50: 0 | P50: 0 | Q50: 0 | R50: 39.06535966 | S50: 498.6538273 | T50: -459.5884677 | U50: 2905.836555 | V50: -450.3966983 | W50: -459.5884677 | X50: 459.5884677 | Z50: 0 | AA50: 0 | AB50: 0 | AC50: 0.07264591387 | AD50: 11.5 | AE50: 1
A51: 2010-01-01T11:45:00 | B51: 12.09178942 | C51: 40.31402592 | D51: 0 | E51: 0 | F51: 0 | G51: 0 | J51: 26.82971912 | K51: 536.5943823 | M51: 0 | N51: 250 | O51: 0 | P51: 0 | Q51: 0 | R51: 40.31402592 | S51: 536.5943823 | T51: -496.2803564 | U51: 3356.233253 | V51: -486.3547493 | W51: -496.2803564 | X51: 496.2803564 | Z51: 0 | AA51: 0 | AB51: 0 | AC51: 0.08390583133 | AD51: 11.75 | AE51: 1
A52: 2010-01-01T12:00:00 | B52: 13.37587262 | C52: 44.5951593 | D52: 0 | E52: 0 | F52: 0 | G52: 0 | J52: 24.83388792 | K52: 496.6777584 | M52: 0 | N52: 250 | O52: 0 | P52: 0 | Q52: 0 | R52: 44.5951593 | S52: 496.6777584 | T52: -452.0825991 | U52: 3842.588002 | V52: -443.0409471 | W52: -452.0825991 | X52: 452.0825991 | Z52: 0 | AA52: 0 | AB52: 0 | AC52: 0.09606470006 | AD52: 12 | AE52: 1
A53: 2010-01-01T12:15:00 | B53: 12.84083777 | C53: 42.81135311 | D53: 0 | E53: 0 | F53: 0 | G53: 0 | J53: 21.12305503 | K53: 422.4611006 | M53: 0 | N53: 250 | O53: 0 | P53: 0 | Q53: 0 | R53: 42.81135311 | S53: 422.4611006 | T53: -379.6497474 | U53: 4285.62895 | V53: -372.0567525 | W53: -379.6497474 | X53: 379.6497474 | Z53: 0 | AA53: 0 | AB53: 0 | AC53: 0.1071407237 | AD53: 12.25 | AE53: 1
A54: 2010-01-01T12:30:00 | B54: 76.56349578 | C54: 255.2626949 | D54: 0 | E54: 0 | F54: 0 | G54: 0 | J54: 23.7337485 | K54: 474.6749701 | M54: 0 | N54: 250 | O54: 0 | P54: 0 | Q54: 0 | R54: 255.2626949 | S54: 474.6749701 | T54: -219.4122752 | U54: 4657.685702 | V54: -215.0240297 | W54: -219.4122752 | X54: 219.4122752 | Z54: 0 | AA54: 0 | AB54: 0 | AC54: 0.1164421426 | AD54: 12.5 | AE54: 1
A55: 2010-01-01T12:45:00 | B55: 50.45379244 | C55: 168.212944 | D55: 0 | E55: 0 | F55: 0 | G55: 0 | J55: 30.6636761 | K55: 613.2735219 | M55: 0 | N55: 250 | O55: 0 | P55: 0 | Q55: 0 | R55: 168.212944 | S55: 613.2735219 | T55: -445.0605779 | U55: 4872.709732 | V55: -436.1593664 | W55: -445.0605779 | X55: 445.0605779 | Z55: 0 | AA55: 0 | AB55: 0 | AC55: 0.1218177433 | AD55: 12.75 | AE55: 1
A56: 2010-01-01T13:00:00 | B56: 15.14148804 | C56: 50.48172111 | D56: 0 | E56: 0 | F56: 0 | G56: 0 | J56: 28.99731655 | K56: 579.9463311 | M56: 0 | N56: 250 | O56: 0 | P56: 0 | Q56: 0 | R56: 50.48172111 | S56: 579.9463311 | T56: -529.46461 | U56: 5308.869098 | V56: -518.8753178 | W56: -529.46461 | X56: 529.46461 | Z56: 0 | AA56: 0 | AB56: 0 | AC56: 0.1327217275 | AD56: 13 | AE56: 1
A57: 2010-01-01T13:15:00 | B57: 14.82046689 | C57: 49.4114366 | D57: 0 | E57: 0 | F57: 0 | G57: 0 | J57: 30.4181873 | K57: 608.363746 | M57: 0 | N57: 250 | O57: 0 | P57: 0 | Q57: 0 | R57: 49.4114366 | S57: 608.363746 | T57: -558.9523094 | U57: 5827.744416 | V57: -547.7732632 | W57: -558.9523094 | X57: 558.9523094 | Z57: 0 | AA57: 0 | AB57: 0 | AC57: 0.1456936104 | AD57: 13.25 | AE57: 1
A58: 2010-01-01T13:30:00 | B58: 25.41415861 | C58: 84.7308048 | D58: 0 | E58: 0 | F58: 0 | G58: 0 | J58: 31.13907332 | K58: 622.7814664 | M58: 0 | N58: 250 | O58: 0 | P58: 0 | Q58: 0 | R58: 84.7308048 | S58: 622.7814664 | T58: -538.0506616 | U58: 6375.517679 | V58: -527.2896483 | W58: -538.0506616 | X58: 538.0506616 | Z58: 0 | AA58: 0 | AB58: 0 | AC58: 0.159387942 | AD58: 13.5 | AE58: 1
A59: 2010-01-01T13:45:00 | B59: 16.53257868 | C59: 55.11961733 | D59: 0 | E59: 0 | F59: 0 | G59: 0 | J59: 24.87074923 | K59: 497.4149846 | M59: 0 | N59: 250 | O59: 0 | P59: 0 | Q59: 0 | R59: 55.11961733 | S59: 497.4149846 | T59: -442.2953672 | U59: 6902.807327 | V59: -433.4494599 | W59: -442.2953672 | X59: 442.2953672 | Z59: 0 | AA59: 0 | AB59: 0 | AC59: 0.1725701832 | AD59: 13.75 | AE59: 1
A60: 2010-01-01T14:00:00 | B60: 10.43317985 | C60: 34.78422162 | D60: 0 | E60: 0 | F60: 0 | G60: 0 | J60: 19.29484774 | K60: 385.8969548 | M60: 0 | N60: 250 | O60: 0 | P60: 0 | Q60: 0 | R60: 34.78422162 | S60: 385.8969548 | T60: -351.1127332 | U60: 7336.256787 | V60: -344.0904786 | W60: -351.1127332 | X60: 351.1127332 | Z60: 0 | AA60: 0 | AB60: 0 | AC60: 0.1834064197 | AD60: 14 | AE60: 1
A61: 2010-01-01T14:15:00 | B61: 12.09178862 | C61: 40.31402326 | D61: 0 | E61: 0 | F61: 0 | G61: 0 | J61: 15.79838073 | K61: 315.9676146 | M61: 0 | N61: 250 | O61: 0 | P61: 0 | Q61: 0 | R61: 40.31402326 | S61: 315.9676146 | T61: -275.6535913 | U61: 7680.347266 | V61: -270.1405195 | W61: -275.6535913 | X61: 275.6535913 | Z61: 0 | AA61: 0 | AB61: 0 | AC61: 0.1920086816 | AD61: 14.25 | AE61: 1
A62: 2010-01-01T14:30:00 | B62: 13.26886656 | C62: 44.23840112 | D62: 0 | E62: 0 | F62: 0 | G62: 0 | J62: 17.03027082 | K62: 340.6054164 | M62: 0 | N62: 250 | O62: 0 | P62: 0 | Q62: 0 | R62: 44.23840112 | S62: 340.6054164 | T62: -296.3670153 | U62: 7950.487785 | V62: -290.439675 | W62: -296.3670153 | X62: 296.3670153 | Z62: 0 | AA62: 0 | AB62: 0 | AC62: 0.1987621946 | AD62: 14.5 | AE62: 1
A63: 2010-01-01T14:45:00 | B63: 13.21536274 | C63: 44.06001937 | D63: 0 | E63: 0 | F63: 0 | G63: 0 | J63: 15.55509609 | K63: 311.1019218 | M63: 0 | N63: 250 | O63: 0 | P63: 0 | Q63: 0 | R63: 44.06001937 | S63: 311.1019218 | T63: -267.0419024 | U63: 8240.92746 | V63: -261.7010643 | W63: -267.0419024 | X63: 267.0419024 | Z63: 0 | AA63: 0 | AB63: 0 | AC63: 0.2060231865 | AD63: 14.75 | AE63: 1
A64: 2010-01-01T15:00:00 | B64: 11.50325074 | C64: 38.35183798 | D64: 0 | E64: 0 | F64: 0 | G64: 0 | J64: 10.82514302 | K64: 216.5028604 | M64: 0 | N64: 250 | O64: 0 | P64: 0 | Q64: 0 | R64: 38.35183798 | S64: 216.5028604 | T64: -178.1510224 | U64: 8502.628525 | V64: -174.588002 | W64: -178.1510224 | X64: 178.1510224 | Z64: 0 | AA64: 0 | AB64: 0 | AC64: 0.2125657131 | AD64: 15 | AE64: 1
A65: 2010-01-01T15:15:00 | B65: 13.53638269 | C65: 45.13029989 | D65: 0 | E65: 0 | F65: 0 | G65: 0 | J65: 4.921859967 | K65: 98.43719935 | M65: 0 | N65: 250 | O65: 0 | P65: 0 | Q65: 0 | R65: 45.13029989 | S65: 98.43719935 | T65: -53.30689945 | U65: 8677.216527 | V65: -52.24076146 | W65: -53.30689945 | X65: 53.30689945 | Z65: 0 | AA65: 0 | AB65: 0 | AC65: 0.2169304132 | AD65: 15.25 | AE65: 1
A66: 2010-01-01T15:30:00 | B66: 13.00134844 | C66: 43.3464957 | D66: 0 | E66: 0 | F66: 0 | G66: 0 | J66: 2.554641339 | K66: 51.09282677 | M66: 0 | N66: 250 | O66: 0 | P66: 0 | Q66: 0 | R66: 43.3464957 | S66: 51.09282677 | T66: -7.746331072 | U66: 8729.457288 | V66: -7.591404451 | W66: -7.746331072 | X66: 7.746331072 | Z66: 0 | AA66: 0 | AB66: 0 | AC66: 0.2182364322 | AD66: 15.5 | AE66: 1
A67: 2010-01-01T15:45:00 | B67: 14.49944614 | C67: 48.34115342 | D67: 0 | E67: 0 | F67: 0 | G67: 0 | J67: 1.484857478 | K67: 29.69714957 | M67: 0 | N67: 250 | O67: 0 | P67: 0 | Q67: 0 | R67: 48.34115342 | S67: 29.69714957 | T67: 18.64400385 | U67: 8737.048693 | V67: 19.02449373 | W67: 18.64400385 | X67: 0 | Z67: 0 | AA67: 0 | AB67: 0 | AC67: 0.2184262173 | AD67: 15.75 | AE67: 1
A68: 2010-01-01T16:00:00 | B68: 13.75039739 | C68: 45.84382489 | D68: 0 | E68: 0 | F68: 0 | G68: =F68*$G$2 -> 0 | J68: 0.566459652 | K68: 11.32919304 | M68: 0 | N68: 250 | O68: =N68*$O$2 -> 0 | P68: 0 | Q68: 0 | R68: 45.84382489 | S68: 11.32919304 | T68: =R68-S68 -> 34.51463185 | U68: 8718.024199 | V68: 35.2190121 | W68: 34.51463185 | X68: =IF(W68<0,-W68,0) -> 0 | Z68: =IF(AA68>0,AA68,0) -> 0 | AA68: 0 | AB68: =IF(AA68<0,-AA68,0) -> 0 | AC68: =U68*(1-bat_soc*0.01)/bat_cap_use/1000+bat_soc*0.01 -> 0.217950605 | AD68: 16 | AE68: 1
A69: 2010-01-01T16:15:00 | B69: 12.09178822 | C69: =B69*$C$2 -> 40.31402193 | D69: 0 | E69: =D69*$E$2 -> 0 | F69: 0 | G69: 0 | J69: 0.06139499385 | K69: =IF(J69>(250*$J$2),250*$J$2*$K$2,J69 * $K$2) -> 1.227899877 | M69: =$M$2*L69 -> 0 | N69: 250 | O69: =N69*$O$2 -> 0 | P69: =J69*$K$2-K69 -> 0 | Q69: =P69*$Q$2 -> 0 | R69: =C69+E69+G69+I69 -> 40.31402193 | S69: 1.227899877 | T69: =R69-S69 -> 39.08612205 | U69: 8682.805187 | V69: =IF(T69>0, IF((U69-T69/$W$2)>0,T69/$W$2,U69), IF((U69-T69*$V$2)<($U$2),T69*$V$2,-$U$2+U69)) -> 39.88379801 | W69: =IF(T69>0,IF((U69-T69/$W$2)>0,T69,U69*$W$2),IF((U69-T69*$V$2)<$U$2,T69,(-$U$2+U69)/$V$2)) -> 39.08612205 | X69: =IF(W69<0,-W69,0) -> 0 | Z69: =IF(AA69>0,AA69,0) -> 0 | AA69: =T69-W69 -> 0 | AB69: =IF(AA69<0,-AA69,0) -> 0 | AC69: 0.2170701297 | AD69: =MINUTE(A69)/60 + HOUR(A69) -> 16.25 | AE69: =MONTH(A69) -> 1
A70: 2010-01-01T16:30:00 | B70: 30.17596942 | C70: 100.606682 | D70: 0 | E70: 0 | F70: 0 | G70: 0 | J70: 0 | K70: 0 | M70: 0 | N70: 250 | O70: 0 | P70: 0 | Q70: 0 | R70: 100.606682 | S70: =K70+M70+O70+Q70 -> 0 | T70: 100.606682 | U70: =U69-V69 -> 8642.921389 | V70: 102.6598796 | W70: 100.606682 | X70: 0 | Z70: 0 | AA70: 0 | AB70: 0 | AC70: 0.2160730347 | AD70: 16.5 | AE70: 1
A71: 2010-01-01T16:45:00 | B71: 14.17842439 | C71: 47.27086692 | D71: 0 | E71: 0 | F71: 0 | G71: 0 | J71: 0 | K71: 0 | M71: 0 | N71: 250 | O71: 0 | P71: 0 | Q71: 0 | R71: 47.27086692 | S71: 0 | T71: 47.27086692 | U71: 8540.261509 | V71: 48.23557849 | W71: 47.27086692 | X71: 0 | Z71: 0 | AA71: 0 | AB71: 0 | AC71: 0.2135065377 | AD71: 16.75 | AE71: 1
A72: 2010-01-01T17:00:00 | B72: 12.25229909 | C72: 40.84916518 | D72: 0 | E72: 0 | F72: 0 | G72: 0 | J72: 0 | K72: 0 | M72: 0 | N72: 250 | O72: 0 | P72: 0 | Q72: 0 | R72: 40.84916518 | S72: 0 | T72: 40.84916518 | U72: 8492.025931 | V72: 41.68282161 | W72: 40.84916518 | X72: 0 | Z72: 0 | AA72: 0 | AB72: 0 | AC72: 0.2123006483 | AD72: 17 | AE72: 1
A73: 2010-01-01T17:15:00 | B73: 14.71345964 | C73: 49.05467443 | D73: 0 | E73: 0 | F73: 0 | G73: 0 | J73: 0 | K73: 0 | M73: 0 | N73: 250 | O73: 0 | P73: 0 | Q73: 0 | R73: 49.05467443 | S73: 0 | T73: 49.05467443 | U73: 8450.343109 | V73: 50.05579024 | W73: 49.05467443 | X73: 0 | Z73: 0 | AA73: 0 | AB73: 0 | AC73: 0.2112585777 | AD73: 17.25 | AE73: 1
A74: 2010-01-01T17:30:00 | B74: 11.98478177 | C74: 39.95726242 | D74: 0 | E74: 0 | F74: 0 | G74: 0 | J74: 0 | K74: 0 | M74: 0 | N74: 250 | O74: 0 | P74: 0 | Q74: 0 | R74: 39.95726242 | S74: 0 | T74: 39.95726242 | U74: 8400.287319 | V74: 40.77271675 | W74: 39.95726242 | X74: 0 | Z74: 0 | AA74: 0 | AB74: 0 | AC74: 0.210007183 | AD74: 17.5 | AE74: 1
A75: 2010-01-01T17:45:00 | B75: 13.85740424 | C75: 46.20058573 | D75: 0 | E75: 0 | F75: 0 | G75: 0 | J75: 0 | K75: 0 | M75: 0 | N75: 250 | O75: 0 | P75: 0 | Q75: 0 | R75: 46.20058573 | S75: 0 | T75: 46.20058573 | U75: 8359.514602 | V75: 47.14345483 | W75: 46.20058573 | X75: 0 | Z75: 0 | AA75: 0 | AB75: 0 | AC75: 0.2089878651 | AD75: 17.75 | AE75: 1
A76: 2010-01-01T18:00:00 | B76: 14.17842559 | C76: 47.27087091 | D76: 0 | E76: 0 | F76: 0 | G76: 0 | J76: 0 | K76: 0 | M76: 0 | N76: 250 | O76: 0 | P76: 0 | Q76: 0 | R76: 47.27087091 | S76: 0 | T76: 47.27087091 | U76: 8312.371147 | V76: 48.23558256 | W76: 47.27087091 | X76: 0 | Z76: 0 | AA76: 0 | AB76: 0 | AC76: 0.2078092787 | AD76: 18 | AE76: 1
A77: 2010-01-01T18:15:00 | B77: 15.78353053 | C77: 52.62229079 | D77: 0 | E77: 0 | F77: 0 | G77: 0 | J77: 0 | K77: 0 | M77: 0 | N77: 250 | O77: 0 | P77: 0 | Q77: 0 | R77: 52.62229079 | S77: 0 | T77: 52.62229079 | U77: 8264.135565 | V77: 53.6962151 | W77: 52.62229079 | X77: 0 | Z77: 0 | AA77: 0 | AB77: 0 | AC77: 0.2066033891 | AD77: 18.25 | AE77: 1
A78: 2010-01-01T18:30:00 | B78: 13.58988711 | C78: 45.30868364 | D78: 0 | E78: 0 | F78: 0 | G78: 0 | J78: 0 | K78: 0 | M78: 0 | N78: 250 | O78: 0 | P78: 0 | Q78: 0 | R78: 45.30868364 | S78: 0 | T78: 45.30868364 | U78: 8210.43935 | V78: 46.23335065 | W78: 45.30868364 | X78: 0 | Z78: 0 | AA78: 0 | AB78: 0 | AC78: 0.2052609837 | AD78: 18.5 | AE78: 1
A79: 2010-01-01T18:45:00 | B79: 16.63958593 | C79: 55.47637949 | D79: 0 | E79: 0 | F79: 0 | G79: 0 | J79: 0 | K79: 0 | M79: 0 | N79: 250 | O79: 0 | P79: 0 | Q79: 0 | R79: 55.47637949 | S79: 0 | T79: 55.47637949 | U79: 8164.205999 | V79: 56.6085505 | W79: 55.47637949 | X79: 0 | Z79: 0 | AA79: 0 | AB79: 0 | AC79: 0.20410515 | AD79: 18.75 | AE79: 1
A80: 2010-01-01T19:00:00 | B80: 14.76696366 | C80: 49.23305685 | D80: 0 | E80: 0 | F80: 0 | G80: 0 | J80: 0 | K80: 0 | M80: 0 | N80: 250 | O80: 0 | P80: 0 | Q80: 0 | R80: 49.23305685 | S80: 0 | T80: 49.23305685 | U80: 8107.597448 | V80: 50.23781311 | W80: 49.23305685 | X80: 0 | Z80: 0 | AA80: 0 | AB80: 0 | AC80: 0.2026899362 | AD80: 19 | AE80: 1
A81: 2010-01-01T19:15:00 | B81: 18.45870498 | C81: 61.54132239 | D81: 0 | E81: 0 | F81: 0 | G81: 0 | J81: 0 | K81: 0 | M81: 0 | N81: 250 | O81: 0 | P81: 0 | Q81: 0 | R81: 61.54132239 | S81: 0 | T81: 61.54132239 | U81: 8057.359635 | V81: 62.79726774 | W81: 61.54132239 | X81: 0 | Z81: 0 | AA81: 0 | AB81: 0 | AC81: 0.2014339909 | AD81: 19.25 | AE81: 1
A82: 2010-01-01T19:30:00 | B82: 24.18357844 | C82: 80.6280505 | D82: 0 | E82: 0 | F82: 0 | G82: 0 | J82: 0 | K82: 0 | M82: 0 | N82: 250 | O82: 0 | P82: 0 | Q82: 0 | R82: 80.6280505 | S82: 0 | T82: 80.6280505 | U82: 7994.562368 | V82: 82.27352092 | W82: 80.6280505 | X82: 0 | Z82: 0 | AA82: 0 | AB82: 0 | AC82: 0.1998640592 | AD82: 19.5 | AE82: 1
A83: 2010-01-01T19:45:00 | B83: 35.09829051 | C83: 117.0177006 | D83: 0 | E83: 0 | F83: 0 | G83: 0 | J83: 0 | K83: 0 | M83: 0 | N83: 250 | O83: 0 | P83: 0 | Q83: 0 | R83: 117.0177006 | S83: 0 | T83: 117.0177006 | U83: 7912.288847 | V83: 119.4058169 | W83: 117.0177006 | X83: 0 | Z83: 0 | AA83: 0 | AB83: 0 | AC83: 0.1978072212 | AD83: 19.75 | AE83: 1
A84: 2010-01-01T20:00:00 | B84: 26.00269708 | C84: 86.69299207 | D84: 0 | E84: 0 | F84: 0 | G84: 0 | J84: 0 | K84: 0 | M84: 0 | N84: 250 | O84: 0 | P84: 0 | Q84: 0 | R84: 86.69299207 | S84: 0 | T84: 86.69299207 | U84: 7792.88303 | V84: 88.4622368 | W84: 86.69299207 | X84: 0 | Z84: 0 | AA84: 0 | AB84: 0 | AC84: 0.1948220757 | AD84: 20 | AE84: 1
A85: 2010-01-01T20:15:00 | B85: 90.90243204 | C85: 303.0687084 | D85: 0 | E85: 0 | F85: 0 | G85: 0 | J85: 0 | K85: 0 | M85: 0 | N85: 250 | O85: 0 | P85: 0 | Q85: 0 | R85: 303.0687084 | S85: 0 | T85: 303.0687084 | U85: 7704.420793 | V85: 309.2537841 | W85: 303.0687084 | X85: 0 | Z85: 0 | AA85: 0 | AB85: 0 | AC85: 0.1926105198 | AD85: 20.25 | AE85: 1
A86: 2010-01-01T20:30:00 | B86: 27.554298 | C86: 91.86602954 | D86: 0 | E86: 0 | F86: 0 | G86: 0 | J86: 0 | K86: 0 | M86: 0 | N86: 250 | O86: 0 | P86: 0 | Q86: 0 | R86: 91.86602954 | S86: 0 | T86: 91.86602954 | U86: 7395.167009 | V86: 93.74084647 | W86: 91.86602954 | X86: 0 | Z86: 0 | AA86: 0 | AB86: 0 | AC86: 0.1848791752 | AD86: 20.5 | AE86: 1
A87: 2010-01-01T20:45:00 | B87: 96.09227125 | C87: 320.3716323 | D87: 0 | E87: 0 | F87: 0 | G87: 0 | J87: 0 | K87: 0 | M87: 0 | N87: 250 | O87: 0 | P87: 0 | Q87: 0 | R87: 320.3716323 | S87: 0 | T87: 320.3716323 | U87: 7301.426162 | V87: 326.9098289 | W87: 320.3716323 | X87: 0 | Z87: 0 | AA87: 0 | AB87: 0 | AC87: 0.1825356541 | AD87: 20.75 | AE87: 1
A88: 2010-01-01T21:00:00 | B88: 79.72020264 | C88: 265.7871556 | D88: 0 | E88: 0 | F88: 0 | G88: 0 | J88: 0 | K88: 0 | M88: 0 | N88: 250 | O88: 0 | P88: 0 | Q88: 0 | R88: 265.7871556 | S88: 0 | T88: 265.7871556 | U88: 6974.516333 | V88: 271.2113833 | W88: 265.7871556 | X88: 0 | Z88: 0 | AA88: 0 | AB88: 0 | AC88: 0.1743629083 | AD88: 21 | AE88: 1
A89: 2010-01-01T21:15:00 | B89: 70.19658062 | C89: 234.0353998 | D89: 0 | E89: 0 | F89: 0 | G89: 0 | J89: 0 | K89: 0 | M89: 0 | N89: 250 | O89: 0 | P89: 0 | Q89: 0 | R89: 234.0353998 | S89: 0 | T89: 234.0353998 | U89: 6703.30495 | V89: 238.8116324 | W89: 234.0353998 | X89: 0 | Z89: 0 | AA89: 0 | AB89: 0 | AC89: 0.1675826238 | AD89: 21.25 | AE89: 1
A90: 2010-01-01T21:30:00 | B90: 61.58251861 | C90: 205.3161171 | D90: 0 | E90: 0 | F90: 0 | G90: 0 | J90: 0 | K90: 0 | M90: 0 | N90: 250 | O90: 0 | P90: 0 | Q90: 0 | R90: 205.3161171 | S90: 0 | T90: 205.3161171 | U90: 6464.493318 | V90: 209.5062419 | W90: 205.3161171 | X90: 0 | Z90: 0 | AA90: 0 | AB90: 0 | AC90: 0.1616123329 | AD90: 21.5 | AE90: 1
A91: 2010-01-01T21:45:00 | B91: 97.69737579 | C91: 325.7230509 | D91: 0 | E91: 0 | F91: 0 | G91: 0 | J91: 0 | K91: 0 | M91: 0 | N91: 250 | O91: 0 | P91: 0 | Q91: 0 | R91: 325.7230509 | S91: 0 | T91: 325.7230509 | U91: 6254.987076 | V91: 332.3704601 | W91: 325.7230509 | X91: 0 | Z91: 0 | AA91: 0 | AB91: 0 | AC91: 0.1563746769 | AD91: 21.75 | AE91: 1
A92: 2010-01-01T22:00:00 | B92: 20.59884397 | C92: 68.6765458 | D92: 0 | E92: 0 | F92: 0 | G92: 0 | J92: 0 | K92: 0 | M92: 0 | N92: 250 | O92: 0 | P92: 0 | Q92: 0 | R92: 68.6765458 | S92: 0 | T92: 68.6765458 | U92: 5922.616616 | V92: 70.07810796 | W92: 68.6765458 | X92: 0 | Z92: 0 | AA92: 0 | AB92: 0 | AC92: 0.1480654154 | AD92: 22 | AE92: 1
A93: 2010-01-01T22:15:00 | B93: 19.63578132 | C93: 65.46569493 | D93: 0 | E93: 0 | F93: 0 | G93: 0 | J93: 0 | K93: 0 | M93: 0 | N93: 250 | O93: 0 | P93: 0 | Q93: 0 | R93: 65.46569493 | S93: 0 | T93: 65.46569493 | U93: 5852.538508 | V93: 66.80172952 | W93: 65.46569493 | X93: 0 | Z93: 0 | AA93: 0 | AB93: 0 | AC93: 0.1463134627 | AD93: 22.25 | AE93: 1
A94: 2010-01-01T22:30:00 | B94: 21.02687197 | C94: 70.10359115 | D94: 0 | E94: 0 | F94: 0 | G94: 0 | J94: 0 | K94: 0 | M94: 0 | N94: 250 | O94: 0 | P94: 0 | Q94: 0 | R94: 70.10359115 | S94: 0 | T94: 70.10359115 | U94: 5785.736778 | V94: 71.53427668 | W94: 70.10359115 | X94: 0 | Z94: 0 | AA94: 0 | AB94: 0 | AC94: 0.1446434195 | AD94: 22.5 | AE94: 1
A95: 2010-01-01T22:45:00 | B95: 21.98993542 | C95: 73.31444468 | D95: 0 | E95: 0 | F95: 0 | G95: 0 | J95: 0 | K95: 0 | M95: 0 | N95: 250 | O95: 0 | P95: 0 | Q95: 0 | R95: 73.31444468 | S95: 0 | T95: 73.31444468 | U95: 5714.202502 | V95: 74.81065783 | W95: 73.31444468 | X95: 0 | Z95: 0 | AA95: 0 | AB95: 0 | AC95: 0.1428550625 | AD95: 22.75 | AE95: 1
A96: 2010-01-01T23:00:00 | B96: 16.31856498 | C96: 54.40609565 | D96: 0 | E96: 0 | F96: 0 | G96: 0 | J96: 0 | K96: 0 | M96: 0 | N96: 250 | O96: 0 | P96: 0 | Q96: 0 | R96: 54.40609565 | S96: 0 | T96: 54.40609565 | U96: 5639.391844 | V96: 55.51642413 | W96: 54.40609565 | X96: 0 | Z96: 0 | AA96: 0 | AB96: 0 | AC96: 0.1409847961 | AD96: 23 | AE96: 1
A97: 2010-01-01T23:15:00 | B97: 18.99373943 | C97: 63.32512724 | D97: 0 | E97: 0 | F97: 0 | G97: 0 | J97: 0 | K97: 0 | M97: 0 | N97: 250 | O97: 0 | P97: 0 | Q97: 0 | R97: 63.32512724 | S97: 0 | T97: 63.32512724 | U97: 5583.87542 | V97: 64.61747678 | W97: 63.32512724 | X97: 0 | Z97: 0 | AA97: 0 | AB97: 0 | AC97: 0.1395968855 | AD97: 23.25 | AE97: 1
A98: 2010-01-01T23:30:00 | B98: 15.40900596 | C98: 51.37362587 | D98: 0 | E98: 0 | F98: 0 | G98: 0 | J98: 0 | K98: 0 | M98: 0 | N98: 250 | O98: 0 | P98: 0 | Q98: 0 | R98: 51.37362587 | S98: 0 | T98: 51.37362587 | U98: 5519.257943 | V98: 52.42206721 | W98: 51.37362587 | X98: 0 | Z98: 0 | AA98: 0 | AB98: 0 | AC98: 0.1379814486 | AD98: 23.5 | AE98: 1
A99: 2010-01-01T23:45:00 | B99: 13.05485187 | C99: 43.52487612 | D99: 0 | E99: 0 | F99: 0 | G99: 0 | J99: 0 | K99: 0 | M99: 0 | N99: 250 | O99: 0 | P99: 0 | Q99: 0 | R99: 43.52487612 | S99: 0 | T99: 43.52487612 | U99: 5466.835876 | V99: 44.4131389 | W99: 43.52487612 | X99: 0 | Z99: 0 | AA99: 0 | AB99: 0 | AC99: 0.1366708969 | AD99: 23.75 | AE99: 1
A100: 2010-01-02 | B100: 12.78733454 | C100: 42.63297336 | D100: 0 | E100: 0 | F100: 0 | G100: 0 | J100: 0 | K100: 0 | M100: 0 | N100: 250 | O100: 0 | P100: 0 | Q100: 0 | R100: 42.63297336 | S100: 0 | T100: 42.63297336 | U100: 5422.422737 | V100: 43.50303404 | W100: 42.63297336 | X100: 0 | Z100: 0 | AA100: 0 | AB100: 0 | AC100: 0.1355605684 | AD100: 0 | AE100: 1
A101: 2010-01-02T00:15:00 | B101: 16.26506156 | C101: 54.22771523 | D101: 114.1552511 | E101: 380.4794521 | F101: 228.4946237 | G101: 761.5725806 | J101: 0 | K101: 0 | M101: 0 | N101: 250 | O101: 0 | P101: 0 | Q101: 0 | R101: 1196.279748 | S101: 0 | T101: 1196.279748 | U101: 5378.919703 | V101: 1220.69362 | W101: 1196.279748 | X101: 0 | Z101: 0 | AA101: 0 | AB101: 0 | AC101: 0.1344729926 | AD101: 0.25 | AE101: 1
A102: 2010-01-02T00:30:00 | B102: 14.82046788 | C102: 49.41143992 | D102: 114.1552511 | E102: 380.4794521 | F102: 228.4946237 | G102: 761.5725806 | J102: 0 | K102: 0 | M102: 0 | N102: 250 | O102: 0 | P102: 0 | Q102: 0 | R102: 1191.463473 | S102: 0 | T102: 1191.463473 | U102: 4158.226082 | V102: 1215.779054 | W102: 1191.463473 | X102: 0 | Z102: 0 | AA102: 0 | AB102: 0 | AC102: 0.1039556521 | AD102: 0.5 | AE102: 1
A103: 2010-01-02T00:45:00 | B103: 13.96441209 | C103: 46.55734989 | D103: 114.1552511 | E103: 380.4794521 | F103: 228.4946237 | G103: 761.5725806 | J103: 0 | K103: 0 | M103: 0 | N103: 250 | O103: 0 | P103: 0 | Q103: 0 | R103: 1188.609383 | S103: 0 | T103: 1188.609383 | U103: 2942.447029 | V103: 1212.866717 | W103: 1188.609383 | X103: 0 | Z103: 0 | AA103: 0 | AB103: 0 | AC103: 0.07356117572 | AD103: 0.75 | AE103: 1
A104: 2010-01-02T01:00:00 | B104: 17.4421383 | C104: 58.15208911 | D104: 114.1552511 | E104: 380.4794521 | F104: 228.4946237 | G104: 761.5725806 | J104: 0 | K104: 0 | M104: 0 | N104: 250 | O104: 0 | P104: 0 | Q104: 0 | R104: 1200.204122 | S104: 0 | T104: 1200.204122 | U104: 1729.580312 | V104: 1224.698083 | W104: 1200.204122 | X104: 0 | Z104: 0 | AA104: 0 | AB104: 0 | AC104: 0.04323950779 | AD104: 1 | AE104: 1
A105: 2010-01-02T01:15:00 | B105: 12.19879587 | C105: 40.67078543 | D105: 114.1552511 | E105: 380.4794521 | F105: 228.4946237 | G105: 761.5725806 | J105: 0 | K105: 0 | M105: 0 | N105: 250 | O105: 0 | P105: 0 | Q105: 0 | R105: 1182.722818 | S105: 0 | T105: 1182.722818 | U105: 504.8822282 | V105: 504.8822282 | W105: 494.7845837 | X105: 0 | Z105: 687.9382344 | AA105: 687.9382344 | AB105: 0 | AC105: 0.01262205571 | AD105: 1.25 | AE105: 1
A106: 2010-01-02T01:30:00 | B106: 13.64339034 | C106: 45.48706339 | D106: 114.1552511 | E106: 380.4794521 | F106: 228.4946237 | G106: 761.5725806 | J106: 0 | K106: 0 | M106: 0 | N106: 250 | O106: 0 | P106: 0 | Q106: 0 | R106: 1187.539096 | S106: 0 | T106: 1187.539096 | U106: 0 | V106: 0 | W106: 0 | X106: 0 | Z106: 1187.539096 | AA106: 1187.539096 | AB106: 0 | AC106: 0 | AD106: 1.5 | AE106: 1
A107: 2010-01-02T01:45:00 | B107: 12.78733474 | C107: 42.63297403 | D107: 114.1552511 | E107: 380.4794521 | F107: 228.4946237 | G107: 761.5725806 | J107: 0 | K107: 0 | M107: 0 | N107: 250 | O107: 0 | P107: 0 | Q107: 0 | R107: 1184.685007 | S107: 0 | T107: 1184.685007 | U107: 0 | V107: 0 | W107: 0 | X107: 0 | Z107: 1184.685007 | AA107: 1184.685007 | AB107: 0 | AC107: 0 | AD107: 1.75 | AE107: 1
A108: 2010-01-02T02:00:00 | B108: 13.75039699 | C108: 45.84382356 | D108: 114.1552511 | E108: 380.4794521 | F108: 228.4946237 | G108: 761.5725806 | J108: 0 | K108: 0 | M108: 0 | N108: 250 | O108: 0 | P108: 0 | Q108: 0 | R108: 1187.895856 | S108: 0 | T108: 1187.895856 | U108: 0 | V108: 0 | W108: 0 | X108: 0 | Z108: 1187.895856 | AA108: 1187.895856 | AB108: 0 | AC108: 0 | AD108: 2 | AE108: 1
A109: 2010-01-02T02:15:00 | B109: 12.35930654 | C109: 41.20592801 | D109: 114.1552511 | E109: 380.4794521 | F109: 228.4946237 | G109: 761.5725806 | J109: 0 | K109: 0 | M109: 0 | N109: 250 | O109: 0 | P109: 0 | Q109: 0 | R109: 1183.257961 | S109: 0 | T109: 1183.257961 | U109: 0 | V109: 0 | W109: 0 | X109: 0 | Z109: 1183.257961 | AA109: 1183.257961 | AB109: 0 | AC109: 0 | AD109: 2.25 | AE109: 1
A110: 2010-01-02T02:30:00 | B110: 13.80390121 | C110: 46.02220664 | D110: 114.1552511 | E110: 380.4794521 | F110: 228.4946237 | G110: 761.5725806 | J110: 0 | K110: 0 | M110: 0 | N110: 250 | O110: 0 | P110: 0 | Q110: 0 | R110: 1188.074239 | S110: 0 | T110: 1188.074239 | U110: 0 | V110: 0 | W110: 0 | X110: 0 | Z110: 1188.074239 | AA110: 1188.074239 | AB110: 0 | AC110: 0 | AD110: 2.5 | AE110: 1
A111: 2010-01-02T02:45:00 | B111: 13.37587321 | C111: 44.5951613 | D111: 114.1552511 | E111: 380.4794521 | F111: 228.4946237 | G111: 761.5725806 | J111: 0 | K111: 0 | M111: 0 | N111: 250 | O111: 0 | P111: 0 | Q111: 0 | R111: 1186.647194 | S111: 0 | T111: 1186.647194 | U111: 0 | V111: 0 | W111: 0 | X111: 0 | Z111: 1186.647194 | AA111: 1186.647194 | AB111: 0 | AC111: 0 | AD111: 2.75 | AE111: 1
A112: 2010-01-02T03:00:00 | B112: 12.25229949 | C112: 40.84916651 | D112: 114.1552511 | E112: 380.4794521 | F112: 228.4946237 | G112: 761.5725806 | J112: 0 | K112: 0 | M112: 0 | N112: 250 | O112: 0 | P112: 0 | Q112: 0 | R112: 1182.901199 | S112: 0 | T112: 1182.901199 | U112: 0 | V112: 0 | W112: 0 | X112: 0 | Z112: 1182.901199 | AA112: 1182.901199 | AB112: 0 | AC112: 0 | AD112: 3 | AE112: 1
A113: 2010-01-02T03:15:00 | B113: 14.12492176 | C113: 47.09248916 | D113: 114.1552511 | E113: 380.4794521 | F113: 228.4946237 | G113: 761.5725806 | J113: 0 | K113: 0 | M113: 0 | N113: 250 | O113: 0 | P113: 0 | Q113: 0 | R113: 1189.144522 | S113: 0 | T113: 1189.144522 | U113: 0 | V113: 0 | W113: 0 | X113: 0 | Z113: 1189.144522 | AA113: 1189.144522 | AB113: 0 | AC113: 0 | AD113: 3.25 | AE113: 1
A114: 2010-01-02T03:30:00 | B114: 12.30580272 | C114: 41.02754626 | D114: 114.1552511 | E114: 380.4794521 | F114: 228.4946237 | G114: 761.5725806 | J114: 0 | K114: 0 | M114: 0 | N114: 250 | O114: 0 | P114: 0 | Q114: 0 | R114: 1183.079579 | S114: 0 | T114: 1183.079579 | U114: 0 | V114: 0 | W114: 0 | X114: 0 | Z114: 1183.079579 | AA114: 1183.079579 | AB114: 0 | AC114: 0 | AD114: 3.5 | AE114: 1
A115: 2010-01-02T03:45:00 | B115: 15.67652308 | C115: 52.26552796 | D115: 114.1552511 | E115: 380.4794521 | F115: 228.4946237 | G115: 761.5725806 | J115: 0 | K115: 0 | M115: 0 | N115: 250 | O115: 0 | P115: 0 | Q115: 0 | R115: 1194.317561 | S115: 0 | T115: 1194.317561 | U115: 0 | V115: 0 | W115: 0 | X115: 0 | Z115: 1194.317561 | AA115: 1194.317561 | AB115: 0 | AC115: 0 | AD115: 3.75 | AE115: 1
A116: 2010-01-02T04:00:00 | B116: 12.46631359 | C116: 41.56268952 | D116: 114.1552511 | E116: 380.4794521 | F116: 228.4946237 | G116: 761.5725806 | J116: 0 | K116: 0 | M116: 0 | N116: 250 | O116: 0 | P116: 0 | Q116: 0 | R116: 1183.614722 | S116: 0 | T116: 1183.614722 | U116: 0 | V116: 0 | W116: 0 | X116: 0 | Z116: 1183.614722 | AA116: 1183.614722 | AB116: 0 | AC116: 0 | AD116: 4 | AE116: 1
A117: 2010-01-02T04:15:00 | B117: 13.58988652 | C117: 45.30868164 | D117: 114.1552511 | E117: 380.4794521 | F117: 228.4946237 | G117: 761.5725806 | J117: 0 | K117: 0 | M117: 0 | N117: 250 | O117: 0 | P117: 0 | Q117: 0 | R117: 1187.360714 | S117: 0 | T117: 1187.360714 | U117: 0 | V117: 0 | W117: 0 | X117: 0 | Z117: 1187.360714 | AA117: 1187.360714 | AB117: 0 | AC117: 0 | AD117: 4.25 | AE117: 1
A118: 2010-01-02T04:30:00 | B118: 12.68032749 | C118: 42.27621186 | D118: 114.1552511 | E118: 380.4794521 | F118: 228.4946237 | G118: 761.5725806 | J118: 0 | K118: 0 | M118: 0 | N118: 250 | O118: 0 | P118: 0 | Q118: 0 | R118: 1184.328245 | S118: 0 | T118: 1184.328245 | U118: 0 | V118: 0 | W118: 0 | X118: 0 | Z118: 1184.328245 | AA118: 1184.328245 | AB118: 0 | AC118: 0 | AD118: 4.5 | AE118: 1
A119: 2010-01-02T04:45:00 | B119: 12.84083817 | C119: 42.81135444 | D119: 114.1552511 | E119: 380.4794521 | F119: 228.4946237 | G119: 761.5725806 | J119: 0 | K119: 0 | M119: 0 | N119: 250 | O119: 0 | P119: 0 | Q119: 0 | R119: 1184.863387 | S119: 0 | T119: 1184.863387 | U119: 0 | V119: 0 | W119: 0 | X119: 0 | Z119: 1184.863387 | AA119: 1184.863387 | AB119: 0 | AC119: 0 | AD119: 4.75 | AE119: 1
A120: 2010-01-02T05:00:00 | B120: 14.07141874 | C120: 46.91411007 | D120: 114.1552511 | E120: 380.4794521 | F120: 228.4946237 | G120: 761.5725806 | J120: 0 | K120: 0 | M120: 0 | N120: 250 | O120: 0 | P120: 0 | Q120: 0 | R120: 1188.966143 | S120: 0 | T120: 1188.966143 | U120: 0 | V120: 0 | W120: 0 | X120: 0 | Z120: 1188.966143 | AA120: 1188.966143 | AB120: 0 | AC120: 0 | AD120: 5 | AE120: 1
A121: 2010-01-02T05:15:00 | B121: 11.98478217 | C121: 39.95726375 | D121: 114.1552511 | E121: 380.4794521 | F121: 228.4946237 | G121: 761.5725806 | J121: 0 | K121: 0 | M121: 0 | N121: 250 | O121: 0 | P121: 0 | Q121: 0 | R121: 1182.009296 | S121: 0 | T121: 1182.009296 | U121: 0 | V121: 0 | W121: 0 | X121: 0 | Z121: 1182.009296 | AA121: 1182.009296 | AB121: 0 | AC121: 0 | AD121: 5.25 | AE121: 1
A122: 2010-01-02T05:30:00 | B122: 13.96441129 | C122: 46.55734724 | D122: 114.1552511 | E122: 380.4794521 | F122: 228.4946237 | G122: 761.5725806 | J122: 0 | K122: 0 | M122: 0 | N122: 250 | O122: 0 | P122: 0 | Q122: 0 | R122: 1188.60938 | S122: 0 | T122: 1188.60938 | U122: 0 | V122: 0 | W122: 0 | X122: 0 | Z122: 1188.60938 | AA122: 1188.60938 | AB122: 0 | AC122: 0 | AD122: 5.5 | AE122: 1
A123: 2010-01-02T05:45:00 | B123: 12.78733414 | C123: 42.63297203 | D123: 114.1552511 | E123: 380.4794521 | F123: 228.4946237 | G123: 761.5725806 | J123: 0 | K123: 0 | M123: 0 | N123: 250 | O123: 0 | P123: 0 | Q123: 0 | R123: 1184.685005 | S123: 0 | T123: 1184.685005 | U123: 0 | V123: 0 | W123: 0 | X123: 0 | Z123: 1184.685005 | AA123: 1184.685005 | AB123: 0 | AC123: 0 | AD123: 5.75 | AE123: 1
A124: 2010-01-02T06:00:00 | B124: 13.37587282 | C124: 44.59515997 | D124: 114.1552511 | E124: 380.4794521 | F124: 228.4946237 | G124: 761.5725806 | J124: 0 | K124: 0 | M124: 0 | N124: 250 | O124: 0 | P124: 0 | Q124: 0 | R124: 1186.647193 | S124: 0 | T124: 1186.647193 | U124: 0 | V124: 0 | W124: 0 | X124: 0 | Z124: 1186.647193 | AA124: 1186.647193 | AB124: 0 | AC124: 0 | AD124: 6 | AE124: 1
A125: 2010-01-02T06:15:00 | B125: 12.51981702 | C125: 41.74106994 | D125: 0 | E125: 0 | F125: 0 | G125: 0 | J125: 0 | K125: 0 | M125: 0 | N125: 250 | O125: 0 | P125: 0 | Q125: 0 | R125: 41.74106994 | S125: 0 | T125: 41.74106994 | U125: 0 | V125: 0 | W125: 0 | X125: 0 | Z125: 41.74106994 | AA125: 41.74106994 | AB125: 0 | AC125: 0 | AD125: 6.25 | AE125: 1
A126: 2010-01-02T06:30:00 | B126: 13.48287967 | C126: 44.9519208 | D126: 0 | E126: 0 | F126: 0 | G126: 0 | J126: 0 | K126: 0 | M126: 0 | N126: 250 | O126: 0 | P126: 0 | Q126: 0 | R126: 44.9519208 | S126: 0 | T126: 44.9519208 | U126: 0 | V126: 0 | W126: 0 | X126: 0 | Z126: 44.9519208 | AA126: 44.9519208 | AB126: 0 | AC126: 0 | AD126: 6.5 | AE126: 1
A127: 2010-01-02T06:45:00 | B127: 13.32236939 | C127: 44.41677955 | D127: 0 | E127: 0 | F127: 0 | G127: 0 | J127: 0 | K127: 0 | M127: 0 | N127: 250 | O127: 0 | P127: 0 | Q127: 0 | R127: 44.41677955 | S127: 0 | T127: 44.41677955 | U127: 0 | V127: 0 | W127: 0 | X127: 0 | Z127: 44.41677955 | AA127: 44.41677955 | AB127: 0 | AC127: 0 | AD127: 6.75 | AE127: 1
A128: 2010-01-02T07:00:00 | B128: 12.03828559 | C128: 40.13564417 | D128: 0 | E128: 0 | F128: 0 | G128: 0 | J128: 0 | K128: 0 | M128: 0 | N128: 250 | O128: 0 | P128: 0 | Q128: 0 | R128: 40.13564417 | S128: 0 | T128: 40.13564417 | U128: 0 | V128: 0 | W128: 0 | X128: 0 | Z128: 40.13564417 | AA128: 40.13564417 | AB128: 0 | AC128: 0 | AD128: 7 | AE128: 1
A129: 2010-01-02T07:15:00 | B129: 15.99754423 | C129: 53.33581247 | D129: 0 | E129: 0 | F129: 0 | G129: 0 | J129: 0 | K129: 0 | M129: 0 | N129: 250 | O129: 0 | P129: 0 | Q129: 0 | R129: 53.33581247 | S129: 0 | T129: 53.33581247 | U129: 0 | V129: 0 | W129: 0 | X129: 0 | Z129: 53.33581247 | AA129: 53.33581247 | AB129: 0 | AC129: 0 | AD129: 7.25 | AE129: 1
A130: 2010-01-02T07:30:00 | B130: 13.69689356 | C130: 45.66544315 | D130: 0 | E130: 0 | F130: 0 | G130: 0 | J130: 0 | K130: 0 | M130: 0 | N130: 250 | O130: 0 | P130: 0 | Q130: 0 | R130: 45.66544315 | S130: 0 | T130: 45.66544315 | U130: 0 | V130: 0 | W130: 0 | X130: 0 | Z130: 45.66544315 | AA130: 45.66544315 | AB130: 0 | AC130: 0 | AD130: 7.5 | AE130: 1
A131: 2010-01-02T07:45:00 | B131: 43.81935956 | C131: 146.0937448 | D131: 0 | E131: 0 | F131: 0 | G131: 0 | J131: 0 | K131: 0 | M131: 0 | N131: 250 | O131: 0 | P131: 0 | Q131: 0 | R131: 146.0937448 | S131: 0 | T131: 146.0937448 | U131: 0 | V131: 0 | W131: 0 | X131: 0 | Z131: 146.0937448 | AA131: 146.0937448 | AB131: 0 | AC131: 0 | AD131: 7.75 | AE131: 1
A132: 2010-01-02T08:00:00 | B132: 29.74794142 | C132: 99.1796367 | D132: 0 | E132: 0 | F132: 0 | G132: =F132*$G$2 -> 0 | J132: 0.1264001163 | K132: 2.528002326 | M132: 0 | N132: 250 | O132: 0 | P132: 0 | Q132: 0 | R132: 99.1796367 | S132: 2.528002326 | T132: 96.65163437 | U132: 0 | V132: 0 | W132: 0 | X132: 0 | Z132: 96.65163437 | AA132: 96.65163437 | AB132: 0 | AC132: =U132*(1-bat_soc*0.01)/bat_cap_use/1000+bat_soc*0.01 -> 0 | AD132: 8 | AE132: 1
A133: 2010-01-02T08:15:00 | B133: 12.62682407 | C133: =B133*$C$2 -> 42.09783144 | D133: 0 | E133: =D133*$E$2 -> 0 | F133: 0 | G133: 0 | J133: 0.5032709902 | K133: =IF(J133>(250*$J$2),250*$J$2*$K$2,J133 * $K$2) -> 10.0654198 | M133: =$M$2*L133 -> 0 | N133: 250 | O133: =N133*$O$2 -> 0 | P133: =J133*$K$2-K133 -> 0 | Q133: =P133*$Q$2 -> 0 | R133: =C133+E133+G133+I133 -> 42.09783144 | S133: 10.0654198 | T133: =R133-S133 -> 32.03241163 | U133: 0 | V133: =IF(T133>0, IF((U133-T133/$W$2)>0,T133/$W$2,U133), IF((U133-T133*$V$2)<($U$2),T133*$V$2,-$U$2+U133)) -> 0 | W133: =IF(T133>0,IF((U133-T133/$W$2)>0,T133,U133*$W$2),IF((U133-T133*$V$2)<$U$2,T133,(-$U$2+U133)/$V$2)) -> 0 | X133: =IF(W133<0,-W133,0) -> 0 | Z133: =IF(AA133>0,AA133,0) -> 32.03241163 | AA133: =T133-W133 -> 32.03241163 | AB133: =IF(AA133<0,-AA133,0) -> 0 | AC133: 0 | AD133: =MINUTE(A133)/60 + HOUR(A133) -> 8.25 | AE133: =MONTH(A133) -> 1
A134: 2010-01-02T08:30:00 | B134: 12.51981742 | C134: 41.74107126 | D134: 0 | E134: 0 | F134: 0 | G134: 0 | J134: 1.12341517 | K134: 22.4683034 | M134: 0 | N134: 250 | O134: 0 | P134: 0 | Q134: 0 | R134: 41.74107126 | S134: =K134+M134+O134+Q134 -> 22.4683034 | T134: 19.27276787 | U134: =U133-V133 -> 0 | V134: 0 | W134: 0 | X134: 0 | Z134: 19.27276787 | AA134: 19.27276787 | AB134: 0 | AC134: 0 | AD134: 8.5 | AE134: 1
A135: 2010-01-02T08:45:00 | B135: 17.97717315 | C135: 59.93589529 | D135: 0 | E135: 0 | F135: 0 | G135: 0 | J135: 2.227901833 | K135: 44.55803665 | M135: 0 | N135: 250 | O135: 0 | P135: 0 | Q135: 0 | R135: 59.93589529 | S135: 44.55803665 | T135: 15.37785864 | U135: 0 | V135: 0 | W135: 0 | X135: 0 | Z135: 15.37785864 | AA135: 15.37785864 | AB135: 0 | AC135: 0 | AD135: 8.75 | AE135: 1
A136: 2010-01-02T09:00:00 | B136: 18.88673218 | C136: 62.96836508 | D136: 0 | E136: 0 | F136: 0 | G136: 0 | J136: 4.446956992 | K136: 88.93913985 | M136: 0 | N136: 250 | O136: 0 | P136: 0 | Q136: 0 | R136: 62.96836508 | S136: 88.93913985 | T136: -25.97077477 | U136: 0 | V136: -25.45135927 | W136: -25.97077477 | X136: 25.97077477 | Z136: 0 | AA136: 0 | AB136: 0 | AC136: 0 | AD136: 9 | AE136: 1
A137: 2010-01-02T09:15:00 | B137: 12.35930654 | C137: 41.20592801 | D137: 0 | E137: 0 | F137: 0 | G137: 0 | J137: 9.496539485 | K137: 189.9307897 | M137: 0 | N137: 250 | O137: 0 | P137: 0 | Q137: 0 | R137: 41.20592801 | S137: 189.9307897 | T137: -148.7248617 | U137: 25.45135927 | V137: -145.7503644 | W137: -148.7248617 | X137: 148.7248617 | Z137: 0 | AA137: 0 | AB137: 0 | AC137: 0.0006362839819 | AD137: 9.25 | AE137: 1
A138: 2010-01-02T09:30:00 | B138: 13.75039699 | C138: 45.84382356 | D138: 0 | E138: 0 | F138: 0 | G138: 0 | J138: 17.35324452 | K138: 347.0648904 | M138: 0 | N138: 250 | O138: 0 | P138: 0 | Q138: 0 | R138: 45.84382356 | S138: 347.0648904 | T138: -301.2210668 | U138: 171.2017237 | V138: -295.1966455 | W138: -301.2210668 | X138: 301.2210668 | Z138: 0 | AA138: 0 | AB138: 0 | AC138: 0.004280043093 | AD138: 9.5 | AE138: 1
A139: 2010-01-02T09:45:00 | B139: 12.51981662 | C139: 41.74106861 | D139: 0 | E139: 0 | F139: 0 | G139: 0 | J139: 16.95544602 | K139: 339.1089204 | M139: 0 | N139: 250 | O139: 0 | P139: 0 | Q139: 0 | R139: 41.74106861 | S139: 339.1089204 | T139: -297.3678518 | U139: 466.3983692 | V139: -291.4204948 | W139: -297.3678518 | X139: 297.3678518 | Z139: 0 | AA139: 0 | AB139: 0 | AC139: 0.01165995923 | AD139: 9.75 | AE139: 1
A140: 2010-01-02T10:00:00 | B140: 14.39243909 | C140: 47.98439192 | D140: 0 | E140: 0 | F140: 0 | G140: 0 | J140: 14.52575329 | K140: 290.5150659 | M140: 0 | N140: 250 | O140: 0 | P140: 0 | Q140: 0 | R140: 47.98439192 | S140: 290.5150659 | T140: -242.5306739 | U140: 757.8188639 | V140: -237.6800605 | W140: -242.5306739 | X140: 242.5306739 | Z140: 0 | AA140: 0 | AB140: 0 | AC140: 0.0189454716 | AD140: 10 | AE140: 1
A141: 2010-01-02T10:15:00 | B141: 19.10074608 | C141: 63.68188742 | D141: 0 | E141: 0 | F141: 0 | G141: 0 | J141: 22.79625497 | K141: 455.9250994 | M141: 0 | N141: 250 | O141: 0 | P141: 0 | Q141: 0 | R141: 63.68188742 | S141: 455.9250994 | T141: -392.243212 | U141: 995.4989244 | V141: -384.3983478 | W141: -392.243212 | X141: 392.243212 | Z141: 0 | AA141: 0 | AB141: 0 | AC141: 0.02488747311 | AD141: 10.25 | AE141: 1
A142: 2010-01-02T10:30:00 | B142: 10.80770442 | C142: 36.03288655 | D142: 0 | E142: 0 | F142: 0 | G142: 0 | J142: 32.20425141 | K142: 644.0850282 | M142: 0 | N142: 250 | O142: 0 | P142: 0 | Q142: 0 | R142: 36.03288655 | S142: 644.0850282 | T142: -608.0521417 | U142: 1379.897272 | V142: -595.8910988 | W142: -608.0521417 | X142: 608.0521417 | Z142: 0 | AA142: 0 | AB142: 0 | AC142: 0.0344974318 | AD142: 10.5 | AE142: 1
A143: 2010-01-02T10:45:00 | B143: 78.70363597 | C143: 262.3979223 | D143: 0 | E143: 0 | F143: 0 | G143: 0 | J143: 46.38407808 | K143: 927.6815616 | M143: 0 | N143: 250 | O143: 0 | P143: 0 | Q143: 0 | R143: 262.3979223 | S143: 927.6815616 | T143: -665.2836393 | U143: 1975.788371 | V143: -651.9779665 | W143: -665.2836393 | X143: 665.2836393 | Z143: 0 | AA143: 0 | AB143: 0 | AC143: 0.04939470928 | AD143: 10.75 | AE143: 1
A144: 2010-01-02T11:00:00 | B144: 42.96330396 | C144: 143.2396554 | D144: 0 | E144: 0 | F144: 0 | G144: 0 | J144: 50.00788829 | K144: 1000.157766 | M144: 0 | N144: 250 | O144: 0 | P144: 0 | Q144: 0 | R144: 143.2396554 | S144: 1000.157766 | T144: -856.9181104 | U144: 2627.766338 | V144: -839.7797482 | W144: -856.9181104 | X144: 856.9181104 | Z144: 0 | AA144: 0 | AB144: 0 | AC144: 0.06569415844 | AD144: 11 | AE144: 1
A145: 2010-01-02T11:15:00 | B145: 32.79764004 | C145: 109.3473319 | D145: 0 | E145: 0 | F145: 0 | G145: 0 | J145: 26.49074698 | K145: 529.8149396 | M145: 0 | N145: 250 | O145: 0 | P145: 0 | Q145: 0 | R145: 109.3473319 | S145: 529.8149396 | T145: -420.4676077 | U145: 3467.546086 | V145: -412.0582556 | W145: -420.4676077 | X145: 420.4676077 | Z145: 0 | AA145: 0 | AB145: 0 | AC145: 0.08668865214 | AD145: 11.25 | AE145: 1
A146: 2010-01-02T11:30:00 | B146: 18.61921505 | C146: 62.07646298 | D146: 0 | E146: 0 | F146: 0 | G146: 0 | J146: 19.53471231 | K146: 390.6942463 | M146: 0 | N146: 250 | O146: 0 | P146: 0 | Q146: 0 | R146: 62.07646298 | S146: 390.6942463 | T146: -328.6177833 | U146: 3879.604341 | V146: -322.0454276 | W146: -328.6177833 | X146: 328.6177833 | Z146: 0 | AA146: 0 | AB146: 0 | AC146: 0.09699010853 | AD146: 11.5 | AE146: 1
A147: 2010-01-02T11:45:00 | B147: 14.17842499 | C147: 47.27086891 | D147: 0 | E147: 0 | F147: 0 | G147: 0 | J147: 17.73458812 | K147: 354.6917623 | M147: 0 | N147: 250 | O147: 0 | P147: 0 | Q147: 0 | R147: 47.27086891 | S147: 354.6917623 | T147: -307.4208934 | U147: 4201.649769 | V147: -301.2724755 | W147: -307.4208934 | X147: 307.4208934 | Z147: 0 | AA147: 0 | AB147: 0 | AC147: 0.1050412442 | AD147: 11.75 | AE147: 1
A148: 2010-01-02T12:00:00 | B148: 11.55675477 | C148: 38.5302204 | D148: 0 | E148: 0 | F148: 0 | G148: 0 | J148: 28.84493111 | K148: 576.8986222 | M148: 0 | N148: 250 | O148: 0 | P148: 0 | Q148: 0 | R148: 38.5302204 | S148: 576.8986222 | T148: -538.3684019 | U148: 4502.922244 | V148: -527.6010338 | W148: -538.3684019 | X148: 538.3684019 | Z148: 0 | AA148: 0 | AB148: 0 | AC148: 0.1125730561 | AD148: 12 | AE148: 1
A149: 2010-01-02T12:15:00 | B149: 15.19499086 | C149: 50.66009954 | D149: 0 | E149: 0 | F149: 0 | G149: 0 | J149: 25.8831054 | K149: 517.6621079 | M149: 0 | N149: 250 | O149: 0 | P149: 0 | Q149: 0 | R149: 50.66009954 | S149: 517.6621079 | T149: -467.0020084 | U149: 5030.523278 | V149: -457.6619682 | W149: -467.0020084 | X149: 467.0020084 | Z149: 0 | AA149: 0 | AB149: 0 | AC149: 0.125763082 | AD149: 12.25 | AE149: 1
A150: 2010-01-02T12:30:00 | B150: 60.45894549 | C150: 201.5701243 | D150: 0 | E150: 0 | F150: 0 | G150: 0 | J150: 30.27644216 | K150: 605.5288432 | M150: 0 | N150: 250 | O150: 0 | P150: 0 | Q150: 0 | R150: 201.5701243 | S150: 605.5288432 | T150: -403.958719 | U150: 5488.185246 | V150: -395.8795446 | W150: -403.958719 | X150: 403.958719 | Z150: 0 | AA150: 0 | AB150: 0 | AC150: 0.1372046312 | AD150: 12.5 | AE150: 1
A151: 2010-01-02T12:45:00 | B151: 34.08172384 | C151: 113.6284673 | D151: 0 | E151: 0 | F151: 0 | G151: 0 | J151: 46.99209988 | K151: 939.8419975 | M151: 0 | N151: 250 | O151: 0 | P151: 0 | Q151: 0 | R151: 113.6284673 | S151: 939.8419975 | T151: -826.2135302 | U151: 5884.064791 | V151: -809.6892596 | W151: -826.2135302 | X151: 826.2135302 | Z151: 0 | AA151: 0 | AB151: 0 | AC151: 0.1471016198 | AD151: 12.75 | AE151: 1
A152: 2010-01-02T13:00:00 | B152: 12.19879547 | C152: 40.6707841 | D152: 0 | E152: 0 | F152: 0 | G152: 0 | J152: 53.92696766 | K152: 1078.539353 | M152: 0 | N152: 250 | O152: 0 | P152: 0 | Q152: 0 | R152: 40.6707841 | S152: 1078.539353 | T152: -1037.868569 | U152: 6693.754051 | V152: -1017.111198 | W152: -1037.868569 | X152: 1037.868569 | Z152: 0 | AA152: 0 | AB152: 0 | AC152: 0.1673438513 | AD152: 13 | AE152: 1
A153: 2010-01-02T13:15:00 | B153: 17.33513106 | C153: 57.79532694 | D153: 0 | E153: 0 | F153: 0 | G153: 0 | J153: 49.16159776 | K153: 983.2319552 | M153: 0 | N153: 250 | O153: 0 | P153: 0 | Q153: 0 | R153: 57.79532694 | S153: 983.2319552 | T153: -925.4366282 | U153: 7710.865248 | V153: -906.9278957 | W153: -925.4366282 | X153: 925.4366282 | Z153: 0 | AA153: 0 | AB153: 0 | AC153: 0.1927716312 | AD153: 13.25 | AE153: 1
A154: 2010-01-02T13:30:00 | B154: 12.62682327 | C154: 42.09782878 | D154: 0 | E154: 0 | F154: 0 | G154: 0 | J154: 45.39908334 | K154: 907.9816669 | M154: 0 | N154: 250 | O154: 0 | P154: 0 | Q154: 0 | R154: 42.09782878 | S154: 907.9816669 | T154: -865.8838381 | U154: 8617.793144 | V154: -848.5661613 | W154: -865.8838381 | X154: 865.8838381 | Z154: 0 | AA154: 0 | AB154: 0 | AC154: 0.2154448286 | AD154: 13.5 | AE154: 1
A155: 2010-01-02T13:45:00 | B155: 13.16185872 | C155: 43.88163696 | D155: 0 | E155: 0 | F155: 0 | G155: 0 | J155: 40.49424754 | K155: 809.8849509 | M155: 0 | N155: 250 | O155: 0 | P155: 0 | Q155: 0 | R155: 43.88163696 | S155: 809.8849509 | T155: -766.0033139 | U155: 9466.359305 | V155: -750.6832476 | W155: -766.0033139 | X155: 766.0033139 | Z155: 0 | AA155: 0 | AB155: 0 | AC155: 0.2366589826 | AD155: 13.75 | AE155: 1
A156: 2010-01-02T14:00:00 | B156: 14.44594291 | C156: 48.16277367 | D156: 0 | E156: 0 | F156: 0 | G156: 0 | J156: 37.38763683 | K156: 747.7527366 | M156: 0 | N156: 250 | O156: 0 | P156: 0 | Q156: 0 | R156: 48.16277367 | S156: 747.7527366 | T156: -699.589963 | U156: 10217.04255 | V156: -685.5981637 | W156: -699.589963 | X156: 699.589963 | Z156: 0 | AA156: 0 | AB156: 0 | AC156: 0.2554260638 | AD156: 14 | AE156: 1
A157: 2010-01-02T14:15:00 | B157: 25.78868278 | C157: 85.9794684 | D157: 0 | E157: 0 | F157: 0 | G157: 0 | J157: 24.1017158 | K157: 482.0343159 | M157: 0 | N157: 250 | O157: 0 | P157: 0 | Q157: 0 | R157: 85.9794684 | S157: 482.0343159 | T157: -396.0548475 | U157: 10902.64072 | V157: -388.1337506 | W157: -396.0548475 | X157: 396.0548475 | Z157: 0 | AA157: 0 | AB157: 0 | AC157: 0.2725660179 | AD157: 14.25 | AE157: 1
A158: 2010-01-02T14:30:00 | B158: 20.54534015 | C158: 68.49816405 | D158: 0 | E158: 0 | F158: 0 | G158: 0 | J158: 21.48855233 | K158: 429.7710466 | M158: 0 | N158: 250 | O158: 0 | P158: 0 | Q158: 0 | R158: 68.49816405 | S158: 429.7710466 | T158: -361.2728825 | U158: 11290.77447 | V158: -354.0474249 | W158: -361.2728825 | X158: 361.2728825 | Z158: 0 | AA158: 0 | AB158: 0 | AC158: 0.2822693617 | AD158: 14.5 | AE158: 1
A159: 2010-01-02T14:45:00 | B159: 11.34274027 | C159: 37.81669606 | D159: 0 | E159: 0 | F159: 0 | G159: 0 | J159: 18.19793862 | K159: 363.9587725 | M159: 0 | N159: 250 | O159: 0 | P159: 0 | Q159: 0 | R159: 37.81669606 | S159: 363.9587725 | T159: -326.1420764 | U159: 11644.82189 | V159: -319.6192349 | W159: -326.1420764 | X159: 326.1420764 | Z159: 0 | AA159: 0 | AB159: 0 | AC159: 0.2911205473 | AD159: 14.75 | AE159: 1
A160: 2010-01-02T15:00:00 | B160: 12.41281017 | C160: 41.3843091 | D160: 0 | E160: 0 | F160: 0 | G160: 0 | J160: 10.84079959 | K160: 216.8159918 | M160: 0 | N160: 250 | O160: 0 | P160: 0 | Q160: 0 | R160: 41.3843091 | S160: 216.8159918 | T160: -175.4316827 | U160: 11964.44113 | V160: -171.9230491 | W160: -175.4316827 | X160: 175.4316827 | Z160: 0 | AA160: 0 | AB160: 0 | AC160: 0.2991110282 | AD160: 15 | AE160: 1
A161: 2010-01-02T15:15:00 | B161: 10.05865588 | C161: 33.53555869 | D161: 0 | E161: 0 | F161: 0 | G161: 0 | J161: 8.866894995 | K161: 177.3378999 | M161: 0 | N161: 250 | O161: 0 | P161: 0 | Q161: 0 | R161: 33.53555869 | S161: 177.3378999 | T161: -143.8023412 | U161: 12136.36418 | V161: -140.9262944 | W161: -143.8023412 | X161: 143.8023412 | Z161: 0 | AA161: 0 | AB161: 0 | AC161: 0.3034091044 | AD161: 15.25 | AE161: 1
A162: 2010-01-02T15:30:00 | B162: 17.97717295 | C162: 59.93589463 | D162: 0 | E162: 0 | F162: 0 | G162: 0 | J162: 11.14705245 | K162: 222.9410491 | M162: 0 | N162: 250 | O162: 0 | P162: 0 | Q162: 0 | R162: 59.93589463 | S162: 222.9410491 | T162: -163.0051544 | U162: 12277.29047 | V162: -159.7450514 | W162: -163.0051544 | X162: 163.0051544 | Z162: 0 | AA162: 0 | AB162: 0 | AC162: 0.3069322618 | AD162: 15.5 | AE162: 1
A163: 2010-01-02T15:45:00 | B163: 47.02956925 | C163: 156.7965839 | D163: 0 | E163: 0 | F163: 0 | G163: 0 | J163: 8.863474859 | K163: 177.2694972 | M163: 0 | N163: 250 | O163: 0 | P163: 0 | Q163: 0 | R163: 156.7965839 | S163: 177.2694972 | T163: -20.4729133 | U163: 12437.03552 | V163: -20.06345504 | W163: -20.4729133 | X163: 20.4729133 | Z163: 0 | AA163: 0 | AB163: 0 | AC163: 0.310925888 | AD163: 15.75 | AE163: 1
A164: 2010-01-02T16:00:00 | B164: 23.96956454 | C164: 79.91452816 | D164: 0 | E164: 0 | F164: 0 | G164: 0 | J164: 5.394140829 | K164: 107.8828166 | M164: 0 | N164: 250 | O164: 0 | P164: 0 | Q164: 0 | R164: 79.91452816 | S164: 107.8828166 | T164: -27.96828841 | U164: 12457.09898 | V164: -27.40892264 | W164: -27.96828841 | X164: 27.96828841 | Z164: 0 | AA164: 0 | AB164: 0 | AC164: 0.3114274744 | AD164: 16 | AE164: 1
A165: 2010-01-02T16:15:00 | B165: 11.61025839 | C165: 38.70860148 | D165: 0 | E165: 0 | F165: 0 | G165: 0 | J165: 2.564118877 | K165: 51.28237755 | M165: 0 | N165: 250 | O165: 0 | P165: 0 | Q165: 0 | R165: 38.70860148 | S165: 51.28237755 | T165: -12.57377607 | U165: 12484.5079 | V165: -12.32230055 | W165: -12.57377607 | X165: 12.57377607 | Z165: 0 | AA165: 0 | AB165: 0 | AC165: 0.3121126975 | AD165: 16.25 | AE165: 1
A166: 2010-01-02T16:30:00 | B166: 11.93127914 | C166: 39.77888466 | D166: 0 | E166: 0 | F166: 0 | G166: 0 | J166: 0.2444513394 | K166: 4.889026788 | M166: 0 | N166: 250 | O166: 0 | P166: 0 | Q166: 0 | R166: 39.77888466 | S166: 4.889026788 | T166: 34.88985787 | U166: 12496.8302 | V166: 35.60189579 | W166: 34.88985787 | X166: 0 | Z166: 0 | AA166: 0 | AB166: 0 | AC166: 0.312420755 | AD166: 16.5 | AE166: 1
A167: 2010-01-02T16:45:00 | B167: 10.86120865 | C167: 36.21126963 | D167: 0 | E167: 0 | F167: 0 | G167: 0 | J167: 0 | K167: 0 | M167: 0 | N167: 250 | O167: 0 | P167: 0 | Q167: 0 | R167: 36.21126963 | S167: 0 | T167: 36.21126963 | U167: 12461.2283 | V167: 36.95027513 | W167: 36.21126963 | X167: 0 | Z167: 0 | AA167: 0 | AB167: 0 | AC167: 0.3115307076 | AD167: 16.75 | AE167: 1
A168: 2010-01-02T17:00:00 | B168: 12.14529244 | C168: 40.49240501 | D168: 0 | E168: 0 | F168: 0 | G168: 0 | J168: 0 | K168: 0 | M168: 0 | N168: 250 | O168: 0 | P168: 0 | Q168: 0 | R168: 40.49240501 | S168: 0 | T168: 40.49240501 | U168: 12424.27803 | V168: 41.31878062 | W168: 40.49240501 | X168: 0 | Z168: 0 | AA168: 0 | AB168: 0 | AC168: 0.3106069507 | AD168: 17 | AE168: 1
A169: 2010-01-02T17:15:00 | B169: 13.16185892 | C169: 43.88163762 | D169: 0 | E169: 0 | F169: 0 | G169: 0 | J169: 0 | K169: 0 | M169: 0 | N169: 250 | O169: 0 | P169: 0 | Q169: 0 | R169: 43.88163762 | S169: 0 | T169: 43.88163762 | U169: 12382.95925 | V169: 44.77718125 | W169: 43.88163762 | X169: 0 | Z169: 0 | AA169: 0 | AB169: 0 | AC169: 0.3095739812 | AD169: 17.25 | AE169: 1
A170: 2010-01-02T17:30:00 | B170: 23.86255649 | C170: 79.55776334 | D170: 0 | E170: 0 | F170: 0 | G170: 0 | J170: 0 | K170: 0 | M170: 0 | N170: 250 | O170: 0 | P170: 0 | Q170: 0 | R170: 79.55776334 | S170: 0 | T170: 79.55776334 | U170: 12338.18207 | V170: 81.18139116 | W170: 79.55776334 | X170: 0 | Z170: 0 | AA170: 0 | AB170: 0 | AC170: 0.3084545517 | AD170: 17.5 | AE170: 1
A171: 2010-01-02T17:45:00 | B171: 12.68032729 | C171: 42.27621119 | D171: 0 | E171: 0 | F171: 0 | G171: 0 | J171: 0 | K171: 0 | M171: 0 | N171: 250 | O171: 0 | P171: 0 | Q171: 0 | R171: 42.27621119 | S171: 0 | T171: 42.27621119 | U171: 12257.00068 | V171: 43.13899101 | W171: 42.27621119 | X171: 0 | Z171: 0 | AA171: 0 | AB171: 0 | AC171: 0.3064250169 | AD171: 17.75 | AE171: 1
A172: 2010-01-02T18:00:00 | B172: 12.68032749 | C172: 42.27621186 | D172: 0 | E172: 0 | F172: 0 | G172: 0 | J172: 0 | K172: 0 | M172: 0 | N172: 250 | O172: 0 | P172: 0 | Q172: 0 | R172: 42.27621186 | S172: 0 | T172: 42.27621186 | U172: 12213.86169 | V172: 43.13899169 | W172: 42.27621186 | X172: 0 | Z172: 0 | AA172: 0 | AB172: 0 | AC172: 0.3053465421 | AD172: 18 | AE172: 1
A173: 2010-01-02T18:15:00 | B173: 18.88673277 | C173: 62.96836707 | D173: 0 | E173: 0 | F173: 0 | G173: 0 | J173: 0 | K173: 0 | M173: 0 | N173: 250 | O173: 0 | P173: 0 | Q173: 0 | R173: 62.96836707 | S173: 0 | T173: 62.96836707 | U173: 12170.72269 | V173: 64.25343579 | W173: 62.96836707 | X173: 0 | Z173: 0 | AA173: 0 | AB173: 0 | AC173: 0.3042680673 | AD173: 18.25 | AE173: 1
A174: 2010-01-02T18:30:00 | B174: 28.6243681 | C174: 95.43364324 | D174: 0 | E174: 0 | F174: 0 | G174: 0 | J174: 0 | K174: 0 | M174: 0 | N174: 250 | O174: 0 | P174: 0 | Q174: 0 | R174: 95.43364324 | S174: 0 | T174: 95.43364324 | U174: 12106.46926 | V174: 97.38126862 | W174: 95.43364324 | X174: 0 | Z174: 0 | AA174: 0 | AB174: 0 | AC174: 0.3026617314 | AD174: 18.5 | AE174: 1
A175: 2010-01-02T18:45:00 | B175: 41.30469539 | C175: 137.7098544 | D175: 0 | E175: 0 | F175: 0 | G175: 0 | J175: 0 | K175: 0 | M175: 0 | N175: 250 | O175: 0 | P175: 0 | Q175: 0 | R175: 137.7098544 | S175: 0 | T175: 137.7098544 | U175: 12009.08799 | V175: 140.5202596 | W175: 137.7098544 | X175: 0 | Z175: 0 | AA175: 0 | AB175: 0 | AC175: 0.3002271997 | AD175: 18.75 | AE175: 1
A176: 2010-01-02T19:00:00 | B176: 58.42581295 | C176: 194.7916604 | D176: 0 | E176: 0 | F176: 0 | G176: 0 | J176: 0 | K176: 0 | M176: 0 | N176: 250 | O176: 0 | P176: 0 | Q176: 0 | R176: 194.7916604 | S176: 0 | T176: 194.7916604 | U176: 11868.56773 | V176: 198.7670004 | W176: 194.7916604 | X176: 0 | Z176: 0 | AA176: 0 | AB176: 0 | AC176: 0.2967141932 | AD176: 19 | AE176: 1
A177: 2010-01-02T19:15:00 | B177: 74.58386725 | C177: 248.6626134 | D177: 0 | E177: 0 | F177: 0 | G177: 0 | J177: 0 | K177: 0 | M177: 0 | N177: 250 | O177: 0 | P177: 0 | Q177: 0 | R177: 248.6626134 | S177: 0 | T177: 248.6626134 | U177: 11669.80073 | V177: 253.7373606 | W177: 248.6626134 | X177: 0 | Z177: 0 | AA177: 0 | AB177: 0 | AC177: 0.2917450182 | AD177: 19.25 | AE177: 1
A178: 2010-01-02T19:30:00 | B178: 25.62817231 | C178: 85.44432648 | D178: 0 | E178: 0 | F178: 0 | G178: 0 | J178: 0 | K178: 0 | M178: 0 | N178: 250 | O178: 0 | P178: 0 | Q178: 0 | R178: 85.44432648 | S178: 0 | T178: 85.44432648 | U178: 11416.06337 | V178: 87.18808824 | W178: 85.44432648 | X178: 0 | Z178: 0 | AA178: 0 | AB178: 0 | AC178: 0.2854015842 | AD178: 19.5 | AE178: 1
A179: 2010-01-02T19:45:00 | B179: 23.64854339 | C179: 78.84424365 | D179: 0 | E179: 0 | F179: 0 | G179: 0 | J179: 0 | K179: 0 | M179: 0 | N179: 250 | O179: 0 | P179: 0 | Q179: 0 | R179: 78.84424365 | S179: 0 | T179: 78.84424365 | U179: 11328.87528 | V179: 80.45330985 | W179: 78.84424365 | X179: 0 | Z179: 0 | AA179: 0 | AB179: 0 | AC179: 0.283221882 | AD179: 19.75 | AE179: 1
A180: 2010-01-02T20:00:00 | B180: 27.554298 | C180: 91.86602954 | D180: 0 | E180: 0 | F180: 0 | G180: 0 | J180: 0 | K180: 0 | M180: 0 | N180: 250 | O180: 0 | P180: 0 | Q180: 0 | R180: 91.86602954 | S180: 0 | T180: 91.86602954 | U180: 11248.42197 | V180: 93.74084647 | W180: 91.86602954 | X180: 0 | Z180: 0 | AA180: 0 | AB180: 0 | AC180: 0.2812105493 | AD180: 20 | AE180: 1
A181: 2010-01-02T20:15:00 | B181: 30.44348714 | C181: 101.4985861 | D181: 0 | E181: 0 | F181: 0 | G181: 0 | J181: 0 | K181: 0 | M181: 0 | N181: 250 | O181: 0 | P181: 0 | Q181: 0 | R181: 101.4985861 | S181: 0 | T181: 101.4985861 | U181: 11154.68112 | V181: 103.5699859 | W181: 101.4985861 | X181: 0 | Z181: 0 | AA181: 0 | AB181: 0 | AC181: 0.2788670281 | AD181: 20.25 | AE181: 1
A182: 2010-01-02T20:30:00 | B182: 30.49698997 | C182: 101.6769646 | D182: 0 | E182: 0 | F182: 0 | G182: 0 | J182: 0 | K182: 0 | M182: 0 | N182: 250 | O182: 0 | P182: 0 | Q182: 0 | R182: 101.6769646 | S182: 0 | T182: 101.6769646 | U182: 11051.11114 | V182: 103.7520047 | W182: 101.6769646 | X182: 0 | Z182: 0 | AA182: 0 | AB182: 0 | AC182: 0.2762777784 | AD182: 20.5 | AE182: 1
A183: 2010-01-02T20:45:00 | B183: 27.87531895 | C183: 92.93631339 | D183: 0 | E183: 0 | F183: 0 | G183: 0 | J183: 0 | K183: 0 | M183: 0 | N183: 250 | O183: 0 | P183: 0 | Q183: 0 | R183: 92.93631339 | S183: 0 | T183: 92.93631339 | U183: 10947.35913 | V183: 94.83297284 | W183: 92.93631339 | X183: 0 | Z183: 0 | AA183: 0 | AB183: 0 | AC183: 0.2736839783 | AD183: 20.75 | AE183: 1
A184: 2010-01-02T21:00:00 | B184: 31.08552884 | C184: 103.6391532 | D184: 0 | E184: 0 | F184: 0 | G184: 0 | J184: 0 | K184: 0 | M184: 0 | N184: 250 | O184: 0 | P184: 0 | Q184: 0 | R184: 103.6391532 | S184: 0 | T184: 103.6391532 | U184: 10852.52616 | V184: 105.7542379 | W184: 103.6391532 | X184: 0 | Z184: 0 | AA184: 0 | AB184: 0 | AC184: 0.271313154 | AD184: 21 | AE184: 1
A185: 2010-01-02T21:15:00 | B185: 26.4842285 | C185: 88.29841784 | D185: 0 | E185: 0 | F185: 0 | G185: 0 | J185: 0 | K185: 0 | M185: 0 | N185: 250 | O185: 0 | P185: 0 | Q185: 0 | R185: 88.29841784 | S185: 0 | T185: 88.29841784 | U185: 10746.77192 | V185: 90.10042636 | W185: 88.29841784 | X185: 0 | Z185: 0 | AA185: 0 | AB185: 0 | AC185: 0.2686692981 | AD185: 21.25 | AE185: 1
A186: 2010-01-02T21:30:00 | B186: 30.97852139 | C186: 103.2823903 | D186: 0 | E186: 0 | F186: 0 | G186: 0 | J186: 0 | K186: 0 | M186: 0 | N186: 250 | O186: 0 | P186: 0 | Q186: 0 | R186: 103.2823903 | S186: 0 | T186: 103.2823903 | U186: 10656.6715 | V186: 105.3901942 | W186: 103.2823903 | X186: 0 | Z186: 0 | AA186: 0 | AB186: 0 | AC186: 0.2664167874 | AD186: 21.5 | AE186: 1
A187: 2010-01-02T21:45:00 | B187: 55.37611353 | C187: 184.6239625 | D187: 0 | E187: 0 | F187: 0 | G187: 0 | J187: 0 | K187: 0 | M187: 0 | N187: 250 | O187: 0 | P187: 0 | Q187: 0 | R187: 184.6239625 | S187: 0 | T187: 184.6239625 | U187: 10551.2813 | V187: 188.3917985 | W187: 184.6239625 | X187: 0 | Z187: 0 | AA187: 0 | AB187: 0 | AC187: 0.2637820325 | AD187: 21.75 | AE187: 1
A188: 2010-01-02T22:00:00 | B188: 31.03202522 | C188: 103.4607721 | D188: 0 | E188: 0 | F188: 0 | G188: 0 | J188: 0 | K188: 0 | M188: 0 | N188: 250 | O188: 0 | P188: 0 | Q188: 0 | R188: 103.4607721 | S188: 0 | T188: 103.4607721 | U188: 10362.8895 | V188: 105.5722164 | W188: 103.4607721 | X188: 0 | Z188: 0 | AA188: 0 | AB188: 0 | AC188: 0.2590722376 | AD188: 22 | AE188: 1
A189: 2010-01-02T22:15:00 | B189: 73.08576936 | C189: 243.667955 | D189: 0 | E189: 0 | F189: 0 | G189: 0 | J189: 0 | K189: 0 | M189: 0 | N189: 250 | O189: 0 | P189: 0 | Q189: 0 | R189: 243.667955 | S189: 0 | T189: 243.667955 | U189: 10257.31729 | V189: 248.6407704 | W189: 243.667955 | X189: 0 | Z189: 0 | AA189: 0 | AB189: 0 | AC189: 0.2564329322 | AD189: 22.25 | AE189: 1
A190: 2010-01-02T22:30:00 | B190: 90.09987926 | C190: 300.3929975 | D190: 0 | E190: 0 | F190: 0 | G190: 0 | J190: 0 | K190: 0 | M190: 0 | N190: 250 | O190: 0 | P190: 0 | Q190: 0 | R190: 300.3929975 | S190: 0 | T190: 300.3929975 | U190: 10008.67652 | V190: 306.5234668 | W190: 300.3929975 | X190: 0 | Z190: 0 | AA190: 0 | AB190: 0 | AC190: 0.2502169129 | AD190: 22.5 | AE190: 1
A191: 2010-01-02T22:45:00 | B191: 69.76855262 | C191: 232.6083544 | D191: 0 | E191: 0 | F191: 0 | G191: 0 | J191: 0 | K191: 0 | M191: 0 | N191: 250 | O191: 0 | P191: 0 | Q191: 0 | R191: 232.6083544 | S191: 0 | T191: 232.6083544 | U191: 9702.15305 | V191: 237.3554637 | W191: 232.6083544 | X191: 0 | Z191: 0 | AA191: 0 | AB191: 0 | AC191: 0.2425538262 | AD191: 22.75 | AE191: 1
A192: 2010-01-02T23:00:00 | B192: 37.13142285 | C192: 123.7961638 | D192: 0 | E192: 0 | F192: 0 | G192: 0 | J192: 0 | K192: 0 | M192: 0 | N192: 250 | O192: 0 | P192: 0 | Q192: 0 | R192: 123.7961638 | S192: 0 | T192: 123.7961638 | U192: 9464.797586 | V192: 126.3226161 | W192: 123.7961638 | X192: 0 | Z192: 0 | AA192: 0 | AB192: 0 | AC192: 0.2366199397 | AD192: 23 | AE192: 1
A193: 2010-01-02T23:15:00 | B193: 97.64387217 | C193: 325.5446698 | D193: 0 | E193: 0 | F193: 0 | G193: 0 | J193: 0 | K193: 0 | M193: 0 | N193: 250 | O193: 0 | P193: 0 | Q193: 0 | R193: 325.5446698 | S193: 0 | T193: 325.5446698 | U193: 9338.47497 | V193: 332.1884386 | W193: 325.5446698 | X193: 0 | Z193: 0 | AA193: 0 | AB193: 0 | AC193: 0.2334618742 | AD193: 23.25 | AE193: 1
A194: 2010-01-02T23:30:00 | B194: 47.83212123 | C194: 159.4722922 | D194: 0 | E194: 0 | F194: 0 | G194: 0 | J194: 0 | K194: 0 | M194: 0 | N194: 250 | O194: 0 | P194: 0 | Q194: 0 | R194: 159.4722922 | S194: 0 | T194: 159.4722922 | U194: 9006.286531 | V194: 162.7268287 | W194: 159.4722922 | X194: 0 | Z194: 0 | AA194: 0 | AB194: 0 | AC194: 0.2251571633 | AD194: 23.5 | AE194: 1
A195: 2010-01-02T23:45:00 | B195: 13.80390081 | C195: 46.02220531 | D195: 0 | E195: 0 | F195: 0 | G195: 0 | J195: 0 | K195: 0 | M195: 0 | N195: 250 | O195: 0 | P195: 0 | Q195: 0 | R195: 46.02220531 | S195: 0 | T195: 46.02220531 | U195: 8843.559703 | V195: 46.96143399 | W195: 46.02220531 | X195: 0 | Z195: 0 | AA195: 0 | AB195: 0 | AC195: 0.2210889926 | AD195: 23.75 | AE195: 1
A196: 2010-01-03 | B196: 14.60645299 | C196: 48.69791426 | D196: 0 | E196: 0 | F196: 0 | G196: =F196*$G$2 -> 0 | J196: 0 | K196: 0 | M196: 0 | N196: 250 | O196: 0 | P196: 0 | Q196: 0 | R196: 48.69791426 | S196: 0 | T196: 48.69791426 | U196: 8796.598269 | V196: 49.69174924 | W196: 48.69791426 | X196: 0 | Z196: 0 | AA196: 0 | AB196: 0 | AC196: =U196*(1-bat_soc*0.01)/bat_cap_use/1000+bat_soc*0.01 -> 0.2199149567 | AD196: 0 | AE196: 1
A197: 2010-01-03T00:15:00 | B197: 15.62301966 | C197: =B197*$C$2 -> 52.08714754 | D197: 114.1552511 | E197: =D197*$E$2 -> 380.4794521 | F197: 228.4946237 | G197: 761.5725806 | J197: 0 | K197: =IF(J197>(250*$J$2),250*$J$2*$K$2,J197 * $K$2) -> 0 | M197: =$M$2*L197 -> 0 | N197: 250 | O197: =N197*$O$2 -> 0 | P197: =J197*$K$2-K197 -> 0 | Q197: =P197*$Q$2 -> 0 | R197: =C197+E197+G197+I197 -> 1194.13918 | S197: 0 | T197: =R197-S197 -> 1194.13918 | U197: 8746.906519 | V197: =IF(T197>0, IF((U197-T197/$W$2)>0,T197/$W$2,U197), IF((U197-T197*$V$2)<($U$2),T197*$V$2,-$U$2+U197)) -> 1218.509368 | W197: =IF(T197>0,IF((U197-T197/$W$2)>0,T197,U197*$W$2),IF((U197-T197*$V$2)<$U$2,T197,(-$U$2+U197)/$V$2)) -> 1194.13918 | X197: =IF(W197<0,-W197,0) -> 0 | Z197: =IF(AA197>0,AA197,0) -> 0 | AA197: =T197-W197 -> 0 | AB197: =IF(AA197<0,-AA197,0) -> 0 | AC197: 0.218672663 | AD197: =MINUTE(A197)/60 + HOUR(A197) -> 0.25 | AE197: =MONTH(A197) -> 1
A198: 2010-01-03T00:30:00 | B198: 16.53257908 | C198: 55.11961866 | D198: 114.1552511 | E198: 380.4794521 | F198: 228.4946237 | G198: 761.5725806 | J198: 0 | K198: 0 | M198: 0 | N198: 250 | O198: 0 | P198: 0 | Q198: 0 | R198: 1197.171651 | S198: =K198+M198+O198+Q198 -> 0 | T198: 1197.171651 | U198: =U197-V197 -> 7528.397152 | V198: 1221.603726 | W198: 1197.171651 | X198: 0 | Z198: 0 | AA198: 0 | AB198: 0 | AC198: 0.1882099288 | AD198: 0.5 | AE198: 1
A199: 2010-01-03T00:45:00 | B199: 14.55294996 | C199: 48.51953517 | D199: 114.1552511 | E199: 380.4794521 | F199: 228.4946237 | G199: 761.5725806 | J199: 0 | K199: 0 | M199: 0 | N199: 250 | O199: 0 | P199: 0 | Q199: 0 | R199: 1190.571568 | S199: 0 | T199: 1190.571568 | U199: 6306.793426 | V199: 1214.868947 | W199: 1190.571568 | X199: 0 | Z199: 0 | AA199: 0 | AB199: 0 | AC199: 0.1576698356 | AD199: 0.75 | AE199: 1
A200: 2010-01-03T01:00:00 | B200: 16.31856478 | C200: 54.40609499 | D200: 114.1552511 | E200: 380.4794521 | F200: 228.4946237 | G200: 761.5725806 | J200: 0 | K200: 0 | M200: 0 | N200: 250 | O200: 0 | P200: 0 | Q200: 0 | R200: 1196.458128 | S200: 0 | T200: 1196.458128 | U200: 5091.924479 | V200: 1220.87564 | W200: 1196.458128 | X200: 0 | Z200: 0 | AA200: 0 | AB200: 0 | AC200: 0.127298112 | AD200: 1 | AE200: 1
... 2050 more rows

Sheet (5) Robustness Analysis
B1: Procedure | C1: Cooming soon (6) Robustness Analysis
B2: Attention: Like Monte Carlo Simulation it takes some time to reckon. But not as long. ^^
B3: 1. Define what you want to be varied and select how to vary it.
B4: 2. Press Monte Carlo Simulation to Start | F4: Start Values | O4: =1-G13*0.01 -> 0.8 | Q4: Requirements for RA Macro
E5: Generation | F5: PV | G5: 1 | H5: Wind | I5: 0 | J5: CHP | K5: 0 | L5: GENX | M5: 0 | O5: =1-G13/5*4*0.01 -> 0.84 | Q5: Select maximum three Parameters to variate | AA5: Variation possibilities: | AB5: Log 0.1, 0.3, 0.5, 0.8, 1 in log scale to 1000
E6: Loads | F6: Load | G6: 3334 | H6: HP | I6: 3333 | J6: Car | K6: 3333 | L6: LOADX | M6: 0 | O6: =1-G13/5*3*0.01 -> 0.88 | Q6: one / three parameters allows only a small variation (e.g. 3 different Values; 0.1 1 10 ; 0.5 1 2 ...) | AB6: 0.1 to 1 step 0.1
E7: Battery | F7: Bat_total | G7: 0 | J7: 1 | K7: 2 | L7: small | O7: =1-G13/5*2*0.01 -> 0.92 | Q7: Variate each Load and Generation
F8: Bat_Soc | G8: 0 | H8: % | I8: Variation | O8: =1-G13/5*0.01 -> 0.96 | Q8: Variate Load and Generation overall
F9: Maximum Charge | G9: 1 | I9: Bandwith | O9: 1 | Q9: Variate battery size or even SoC?
F10: Limited Capacity: | G10: =(G9-G8/100)*G7 -> 0 | O10: =1+G13/5*0.01 -> 1.04
F11: Useable Capacity: | G11: =G7*(100-G8)/100 -> 0 | O11: =1+G13/5*2*0.01 -> 1.08 | Q11: Schwankung von Verbrauch und Last um 10%
O12: =1+G13/5*3*0.01 -> 1.12 | Q12: Batterie in fünfer Schritten zwischen
F13: Variate for +- | G13: 20 | H13: % | I13: Status: | J13: 1 | O13: =1+G13/5*4*0.01 -> 1.16
O14: =1+G13*0.01 -> 1.2
A17: Internal Consumption
A18: PV/Load
A19: Battery/Load*1000 | B19: 1 | C19: 2 | D19: 3 | E19: 4 | F19: 5 | G19: 6 | H19: 7 | I19: 8 | J19: 9 | K19: 10 | L19: 11 | M19: 12 | N19: 13 | O19: 14 | P19: 15 | Q19: 16 | R19: 17 | S19: 18 | T19: 19 | U19: 20
A20: 0 | B20: 0.0678634392 | C20: 0.09675100324 | D20: 0.1129820837 | E20: 0.1229054142 | F20: 0.1298122776 | G20: 0.1349907811 | H20: 0.1390957103 | I20: 0.1425129446 | J20: 0.145390805 | K20: 0.1478408342 | L20: 0.1499577254 | M20: 0.1517999163 | N20: 0.1534016112 | O20: 0.1547927271 | P20: 0.1560428354 | Q20: 0.1571803355 | R20: 0.158216407 | S20: 0.1591774955 | T20: 0.1600658783 | U20: 0.1608880555
A21: 0.2 | B21: 0.09031707902 | C21: 0.1474282668 | D21: 0.1730881393 | E21: 0.1886116233 | F21: 0.1994270407 | G21: 0.2072716806 | H21: 0.2130223662 | I21: 0.2172625113 | J21: 0.2203909399 | K21: 0.2229467413 | L21: 0.2251800942 | M21: 0.2271059057 | N21: 0.2287317477 | O21: 0.2301516507 | P21: 0.231408401 | Q21: 0.2325380247 | R21: 0.2334806084 | S21: 0.234325347 | T21: 0.2351114607 | U21: 0.2358534059
A22: 0.4 | B22: 0.09081266004 | C22: 0.1705780063 | D22: 0.212429559 | E22: 0.2352743598 | F22: 0.2515242433 | G22: 0.2634404441 | H22: 0.2726341647 | I22: 0.2800502134 | J22: 0.2859039808 | K22: 0.2903953969 | L22: 0.2938757892 | M22: 0.2965421433 | N22: 0.2987289307 | O22: 0.3005499851 | P22: 0.3021975854 | Q22: 0.3036990071 | R22: 0.3050570276 | S22: 0.3062650906 | T22: 0.3073575649 | U22: 0.3083334297
A23: 0.6 | B23: 0.09081266004 | C23: 0.1797783952 | D23: 0.2398146958 | E23: 0.2738984816 | F23: 0.2953966329 | G23: 0.3116804455 | H23: 0.3247207989 | I23: 0.3349132635 | J23: 0.3432136063 | K23: 0.3502953958 | L23: 0.3563513551 | M23: 0.3611635115 | N23: 0.3648609917 | O23: 0.3679082847 | P23: 0.37042277 | Q23: 0.3724611291 | R23: 0.374209154 | S23: 0.3757240548 | T23: 0.3771526274 | U23: 0.3784649326
A24: 0.8 | B24: 0.09081266004 | C24: 0.1811768444 | D24: 0.2576823574 | E24: 0.304468005 | F24: 0.3336296797 | G24: 0.3543901818 | H24: 0.3706449878 | I24: 0.3844110077 | J24: 0.3952050715 | K24: 0.4045731819 | L24: 0.4123474203 | M24: 0.4192413523 | N24: 0.4252872773 | O24: 0.4303271268 | P24: 0.4343968215 | Q24: 0.4377947032 | R24: 0.4405519106 | S24: 0.4429273149 | T24: 0.444987095 | U24: 0.4466875801
A25: 1 | B25: 0.09081266004 | C25: 0.1811768444 | D25: 0.2670252141 | E25: 0.3268247455 | F25: 0.3656343216 | G25: 0.3923603769 | H25: 0.4125123039 | I25: 0.4287851941 | J25: 0.442919616 | K25: 0.4545062098 | L25: 0.4642298561 | M25: 0.473038297 | N25: 0.4805047407 | O25: 0.4872135732 | P25: 0.4931949399 | Q25: 0.4984698471 | R25: 0.5027756059 | S25: 0.5064829928 | T25: 0.5096509684 | U25: 0.5122532884
A26: 1.2 | B26: 0.09081266004 | C26: 0.1811768444 | D26: 0.2706345942 | E26: 0.3425080014 | F26: 0.3920861278 | G26: 0.4251252776 | H26: 0.4502711092 | I26: 0.4700155538 | J26: 0.4862955196 | K26: 0.5006457534 | L26: 0.5128658326 | M26: 0.5231150507 | N26: 0.5323700756 | O26: 0.5406067041 | P26: 0.5479042804 | Q26: 0.5544820747 | R26: 0.5604548491 | S26: 0.5657748972 | T26: 0.5703662453 | U26: 0.5742631667
A27: 1.4 | B27: 0.09081266004 | C27: 0.1811768444 | D27: 0.2709648251 | E27: 0.3525031486 | F27: 0.4110474929 | G27: 0.4532070108 | H27: 0.4825282353 | I27: 0.5062311033 | J27: 0.5255811663 | K27: 0.541774172 | L27: 0.5561562954 | M27: 0.5687675883 | N27: 0.5793418067 | O27: 0.5889063183 | P27: 0.5975410732 | Q27: 0.605182173 | R27: 0.6122511142 | S27: 0.6186166301 | T27: 0.6244918168 | U27: 0.6296999673
A28: 1.6 | B28: 0.09081266004 | C28: 0.1811768444 | D28: 0.2709648251 | E28: 0.3565183424 | F28: 0.4209315347 | G28: 0.4700112431 | H28: 0.5049436155 | I28: 0.5317166942 | J28: 0.5536717404 | K28: 0.5721953571 | L28: 0.5880978823 | M28: 0.6021266858 | N28: 0.614370149 | O28: 0.6250992539 | P28: 0.6348420324 | Q28: 0.6434449043 | R28: 0.6513812079 | S28: 0.6586996364 | T28: 0.665552341 | U28: 0.6717970902
A29: 1.8 | B29: 0.09081266004 | C29: 0.1811768444 | D29: 0.2709648251 | E29: 0.3578595929 | F29: 0.4259713119 | G29: 0.4797230049 | H29: 0.5208008045 | I29: 0.5504022337 | J29: 0.5746157513 | K29: 0.5954705517 | L29: 0.612910492 | M29: 0.6281272992 | N29: 0.6415148148 | O29: 0.6537749551 | P29: 0.6643016827 | Q29: 0.6737981202 | R29: 0.6826402988 | S29: 0.6907059651 | T29: 0.6982396283 | U29: 0.7052892266
A30: 2 | B30: 0.09081266004 | C30: 0.1811768444 | D30: 0.2709648251 | E30: 0.3584575022 | F30: 0.4289800714 | G30: 0.4858512297 | H30: 0.5310354531 | I30: 0.5631805802 | J30: 0.5886852293 | K30: 0.6105290246 | L30: 0.6298330432 | M30: 0.6460721045 | N30: 0.6607464476 | O30: 0.6736579474 | P30: 0.6853256303 | Q30: 0.6957273474 | R30: 0.7049638214 | S30: 0.7138577151 | T30: 0.7220491189 | U30: 0.7297976507
A31: 2.2 | B31: 0.09081266004 | C31: 0.1811768444 | D31: 0.2709648251 | E31: 0.3590553828 | F31: 0.4309525408 | G31: 0.4903370565 | H31: 0.5383698708 | I31: 0.5734060083 | J31: 0.6000988242 | K31: 0.6229803545 | L31: 0.6431173741 | M31: 0.6607738319 | N31: 0.676459725 | O31: 0.6904951303 | P31: 0.7030773256 | Q31: 0.7143773638 | R31: 0.7247138409 | S31: 0.734110322 | T31: 0.7429139804 | U31: 0.7513473948
A32: 2.4 | B32: 0.09081266004 | C32: 0.1811768444 | D32: 0.2709648251 | E32: 0.3596532346 | F32: 0.4320183268 | G32: 0.493129934 | H32: 0.5420508857 | I32: 0.5798841783 | J32: 0.6078770054 | K32: 0.6315085551 | L32: 0.6521940619 | M32: 0.6706043509 | N32: 0.6871708176 | O32: 0.702048724 | P32: 0.7153366248 | Q32: 0.7273754268 | R32: 0.738588754 | S32: 0.7490666398 | T32: 0.7583728869 | U32: 0.7670275041
A33: 2.6 | B33: 0.09081266004 | C33: 0.1811768444 | D33: 0.2709648251 | E33: 0.3599687181 | F33: 0.4328576382 | G33: 0.4947392831 | H33: 0.5446707647 | I33: 0.583762156 | J33: 0.6131723631 | K33: 0.63794852 | L33: 0.6592258903 | M33: 0.6783239886 | N33: 0.6953060366 | O33: 0.710421867 | P33: 0.7241761065 | Q33: 0.7368413998 | R33: 0.7488833154 | S33: 0.7600881546 | T33: 0.7703740297 | U33: 0.7796474764
A34: 2.8 | B34: 0.09081266004 | C34: 0.1811768444 | D34: 0.2709648251 | E34: 0.3601376317 | F34: 0.433650266 | G34: 0.4962226589 | H34: 0.5467638052 | I34: 0.58619249 | J34: 0.6176861107 | K34: 0.6432890244 | L34: 0.6654807716 | M34: 0.6846864016 | N34: 0.7023130272 | O34: 0.7176514959 | P34: 0.7319260408 | Q34: 0.7452486206 | R34: 0.7578056195 | S34: 0.769671885 | T34: 0.780568689 | U34: 0.7907607825
A35: 3 | B35: 0.09081266004 | C35: 0.1811768444 | D35: 0.2709648251 | E35: 0.3601376317 | F35: 0.4343905017 | G35: 0.4974348631 | H35: 0.5486607482 | I35: 0.588119006 | J35: 0.6206275339 | K35: 0.6470473823 | L35: 0.6700915848 | M35: 0.6894573216 | N35: 0.7069432839 | O35: 0.7226767101 | P35: 0.7374005693 | Q35: 0.7511687382 | R35: 0.7642442759 | S35: 0.7759190212 | T35: 0.7871101841 | U35: 0.7973183206
A36: 3.2 | B36: 0.09081266004 | C36: 0.1811768444 | D36: 0.2709648251 | E36: 0.3601376317 | F36: 0.4349849039 | G36: 0.4984280825 | H36: 0.5503608011 | I36: 0.5897508529 | J36: 0.6228736057 | K36: 0.650048479 | L36: 0.6728685602 | M36: 0.6926441238 | N36: 0.7100606785 | O36: 0.7264116759 | P36: 0.7415026443 | Q36: 0.7553547013 | R36: 0.768269538 | S36: 0.7802216352 | T36: 0.7910135109 | U36: 0.8012677262
A37: 3.4 | B37: 0.09081266004 | C37: 0.1811768444 | D37: 0.2709648251 | E37: 0.3601376317 | F37: 0.435431846 | G37: 0.4992968506 | H37: 0.5518506417 | I37: 0.5913168724 | J37: 0.6250212977 | K37: 0.652315756 | L37: 0.6751805958 | M37: 0.6954061946 | N37: 0.7131475395 | O37: 0.729560806 | P37: 0.7452322327 | Q37: 0.758866272 | R37: 0.7715960546 | S37: 0.7834736135 | T37: 0.7941629529 | U37: 0.8043251633
A38: 3.6 | B38: 0.09081266004 | C38: 0.1811768444 | D38: 0.2709648251 | E38: 0.3601376317 | F38: 0.435828084 | G38: 0.5000854032 | H38: 0.553206232 | I38: 0.5928826929 | J38: 0.626793487 | K38: 0.6541665585 | L38: 0.6771100612 | M38: 0.6977359289 | N38: 0.7159560611 | O38: 0.7325764228 | P38: 0.748103036 | Q38: 0.7616171957 | R38: 0.7741562394 | S38: 0.7858683302 | T38: 0.7966530225 | U38: 0.8069367132
A39: 3.8 | B39: 0.09081266004 | C39: 0.1811768444 | D39: 0.2709648251 | E39: 0.3601376317 | F39: 0.4362243094 | G39: 0.5008739055 | H39: 0.5543840882 | I39: 0.5944483146 | J39: 0.628118983 | K39: 0.6557430096 | L39: 0.6788598795 | M39: 0.7000185533 | N39: 0.7180076587 | O39: 0.735145094 | P39: 0.7505668564 | Q39: 0.7641280022 | R39: 0.7762787142 | S39: 0.7879888557 | T39: 0.7986944926 | U39: 0.8089824351
A40: 4 | B40: 0.09081266004 | C40: 0.1811768444 | D40: 0.2709648251 | E40: 0.3601376317 | F40: 0.4366205221 | G40: 0.5016623576 | H40: 0.555561832 | I40: 0.5959242107 | J40: 0.6292544646 | K40: 0.6571837616 | L40: 0.6805213131 | M40: 0.7014450324 | N40: 0.7195581054 | O40: 0.7371854161 | P40: 0.7528865289 | Q40: 0.7661467911 | R40: 0.7783509212 | S40: 0.7897618232 | T40: 0.8004503708 | U40: 0.8106058581
A50: 0.2 | B50: 22.18939945 | C50: 9.808922972 | D50: 8.261725501 | E50: 7.552888096 | F50: 7.12574521 | G50: 6.860754007 | H50: 6.706477433 | I50: 6.631522295 | J50: 6.608540803 | K50: 6.598560027 | L50: 6.587755903 | M50: 6.57993433 | N50: 6.577397756 | O50: 6.574512074 | P50: 6.573602472 | Q50: 6.573992743 | R50: 6.581910616 | S50: 6.591878821 | T50: 6.600654676 | U50: 6.607523175
A51: 0.4 | B51: 43.41955537 | C51: 13.45382738 | D51: 9.971041394 | E51: 8.816395487 | F51: 8.13432657 | G51: 7.703971617 | H51: 7.40766538 | I51: 7.19015506 | J51: 7.036225026 | K51: 6.93421762 | L51: 6.867563686 | M51: 6.82772997 | N51: 6.799645232 | O51: 6.779093503 | P51: 6.760210096 | Q51: 6.743013241 | R51: 6.7278628 | S51: 6.716240736 | T51: 6.706640741 | U51: 6.699388025
A52: 0.6 | B52: 65.12933305 | C52: 17.93787349 | D52: 11.71435602 | E52: 9.82651658 | F52: 8.952886898 | G52: 8.384701932 | H52: 7.976912882 | I52: 7.692863764 | J52: 7.479502746 | K52: 7.306307847 | L52: 7.165121748 | M52: 7.06211382 | N52: 6.991081848 | O52: 6.935902702 | P52: 6.894299003 | Q52: 6.864886718 | R52: 6.841777907 | S52: 6.823864604 | T52: 6.806493407 | U52: 6.790802308
A53: 0.8 | B53: 86.83911073 | C53: 23.51967851 | D53: 13.6806888 | E53: 10.88269971 | F53: 9.683080624 | G53: 8.987879623 | H53: 8.510704766 | I53: 8.142094542 | J53: 7.880661796 | K53: 7.665413388 | L53: 7.497793263 | M53: 7.354124222 | N53: 7.232152438 | O53: 7.134932446 | P53: 7.061500941 | Q53: 7.003660508 | R53: 6.960192129 | S53: 6.924836768 | T53: 6.895794008 | U53: 6.874130813
A54: 1 | B54: 108.5488884 | C54: 29.39959814 | D54: 16.05766685 | E54: 12.10110435 | F54: 10.44773104 | G54: 9.56273996 | H54: 8.994197728 | I54: 8.584665406 | J54: 8.255173106 | K54: 8.00548321 | L54: 7.80865192 | M54: 7.636601402 | N54: 7.497421853 | O54: 7.37548768 | P54: 7.27023074 | Q54: 7.180564317 | R54: 7.111187154 | S54: 7.053898887 | T54: 7.007004171 | U54: 6.970770836
A55: 1.2 | B55: 130.2586661 | C55: 35.27951777 | D55: 18.82531822 | E55: 13.4757734 | F55: 11.26083513 | G55: 10.16596258 | H55: 9.46896323 | I55: 8.989736896 | J55: 8.630645882 | K55: 8.334698886 | L55: 8.098663897 | M55: 7.9120206 | N55: 7.749334336 | O55: 7.609301004 | P55: 7.489656481 | Q55: 7.385132699 | R55: 7.292730133 | S55: 7.212993233 | T55: 7.146566332 | U55: 7.092289064
A56: 1.4 | B56: 151.9684438 | C56: 41.1594374 | D56: 21.91667231 | E56: 15.03127983 | F56: 12.24253063 | G56: 10.80141634 | H56: 9.99649423 | I56: 9.429926411 | J56: 9.014308325 | K56: 8.694132079 | L56: 8.426703325 | M56: 8.204872763 | N56: 8.028594084 | O56: 7.874379445 | P56: 7.739958933 | Q56: 7.625234482 | R56: 7.521758023 | S56: 7.431358357 | T56: 7.349810136 | U56: 7.279509043
A57: 1.6 | B57: 173.6782215 | C57: 47.03935703 | D57: 25.0476255 | E57: 16.88062657 | F57: 13.51104766 | G57: 11.7173444 | H57: 10.71487847 | I57: 10.06098821 | J57: 9.582363126 | K57: 9.212489703 | L57: 8.916878213 | M57: 8.67063714 | N57: 8.466262068 | O57: 8.294549542 | P57: 8.14420201 | Q57: 8.0163656 | R57: 7.901653425 | S57: 7.798769423 | T57: 7.704602843 | U57: 7.620893197
A58: 1.8 | B58: 195.3879991 | C58: 52.91927666 | D58: 28.17857869 | E58: 18.88127753 | F58: 14.9382361 | G58: 12.80562878 | H58: 11.54606431 | I58: 10.79193781 | J58: 10.24544469 | K58: 9.815889174 | L58: 9.48428412 | M58: 9.212285136 | N58: 8.984960369 | O58: 8.784867657 | P58: 8.620837268 | Q58: 8.47807516 | R58: 8.348873254 | S58: 8.23457527 | T58: 8.130401362 | U58: 8.035089729
A59: 2 | B59: 217.0977768 | C59: 58.79919629 | D59: 31.30953188 | E59: 20.92544228 | F59: 16.42912014 | G59: 13.97649891 | H59: 12.48878892 | I59: 11.62078255 | J59: 11.01623736 | K59: 10.54513853 | L59: 10.15948999 | M59: 9.857064532 | N59: 9.597352195 | O59: 9.379334358 | P59: 9.190361088 | Q59: 9.028441709 | R59: 8.889683277 | S59: 8.759371719 | T59: 8.642656694 | U59: 8.534737229
A60: 2.2 | B60: 238.8075545 | C60: 64.67911591 | D60: 34.44048506 | E60: 22.95915828 | F60: 17.95223331 | G60: 15.17731832 | H60: 13.48131392 | I60: 12.47434429 | J60: 11.80822384 | K60: 11.28996797 | L60: 10.86853663 | M60: 10.52328543 | N60: 10.23339659 | O60: 9.986148899 | P60: 9.774271003 | Q60: 9.591583869 | R60: 9.430140839 | S60: 9.288222292 | T60: 9.158795084 | U60: 9.037623867
A61: 2.4 | B61: 260.5173322 | C61: 70.55903554 | D61: 37.57143825 | E61: 24.98250544 | F61: 19.51434882 | G61: 16.42610421 | H61: 14.57036896 | I61: 13.403294 | J61: 12.66105539 | K61: 12.09497292 | L61: 11.6380123 | M61: 11.25791843 | N61: 10.93491611 | O61: 10.65897179 | P61: 10.42391121 | Q61: 10.21960426 | R61: 10.03580502 | S61: 9.869674776 | T61: 9.727117722 | U61: 9.598032693
A62: 2.6 | B62: 282.2271099 | C62: 76.43895517 | D62: 40.70239144 | E62: 27.02802095 | F62: 21.08128082 | G62: 17.71418812 | H62: 15.68094039 | I62: 14.39035965 | J62: 13.55796039 | K62: 12.92733417 | L62: 12.43020669 | M62: 12.01349116 | N62: 11.66445682 | O62: 11.36932751 | P62: 11.11286629 | Q62: 10.88623887 | R62: 10.67814859 | S62: 10.49131783 | T62: 10.3254347 | U62: 10.18054777
A63: 2.8 | B63: 303.9368876 | C63: 82.3188748 | D63: 43.83334463 | E63: 29.08617725 | F63: 22.64296895 | G63: 18.99734171 | H63: 16.79904145 | I63: 15.4109025 | J63: 14.45868964 | K63: 13.7686918 | L63: 13.22059488 | M63: 12.77982703 | N63: 12.39783039 | O63: 12.08306396 | P63: 11.8029164 | Q63: 11.55207353 | R63: 11.32429821 | S63: 11.11662553 | T63: 10.93245128 | U63: 10.76533567
A64: 3 | B64: 325.6466652 | C64: 88.19879443 | D64: 46.96429782 | E64: 31.16376134 | F64: 24.20064047 | G64: 20.28522568 | H64: 17.91423307 | I64: 16.43901108 | J64: 15.39373216 | K64: 14.63886944 | L64: 14.03672272 | M64: 13.5685338 | N64: 13.16979248 | O64: 12.82895101 | P64: 12.52410021 | Q64: 12.25090098 | R64: 12.00111381 | S64: 11.78701533 | T64: 11.58804535 | U64: 11.41238289
A65: 3.2 | B65: 347.3564429 | C65: 94.07871406 | D65: 50.095251 | E65: 33.24134543 | F65: 25.76311984 | G65: 21.5775759 | H65: 19.02821636 | I65: 17.46980895 | J65: 16.34125125 | K65: 15.51958972 | L65: 14.89130855 | M65: 14.38595641 | N65: 13.96733418 | O65: 13.59273144 | P65: 13.2632191 | Q65: 12.9739647 | R65: 12.71463261 | S65: 12.48351654 | T65: 12.28215358 | U65: 12.09617882
A66: 3.4 | B66: 369.0662206 | C66: 99.95863368 | D66: 53.22620419 | E66: 35.31892952 | F66: 27.33279136 | G66: 22.87069902 | H66: 20.14328966 | I66: 18.49572979 | J66: 17.28332581 | K66: 16.41394159 | L66: 15.75088484 | M66: 15.20570458 | N66: 14.7565956 | O66: 14.36130417 | P66: 14.00083555 | Q66: 13.70242156 | R66: 13.43420715 | S66: 13.19289162 | T66: 12.98330039 | U66: 12.78952038
A67: 3.6 | B67: 390.7759983 | C67: 105.8385533 | D67: 56.35715738 | E67: 37.3965136 | F67: 28.90266789 | G67: 24.16296115 | H67: 21.25720441 | I67: 19.51438706 | J67: 18.23131205 | K67: 17.31463647 | L67: 16.61506078 | M67: 16.02993074 | N67: 15.54484609 | O67: 15.12486161 | P67: 14.7508047 | Q67: 14.4407931 | R67: 14.16384848 | S67: 13.91420386 | T67: 13.69185701 | U67: 13.48566356
A68: 3.8 | B68: 412.485776 | C68: 111.7184729 | D68: 59.48811057 | E68: 39.47409769 | F68: 30.46843429 | G68: 25.44957128 | H68: 22.37345313 | I68: 20.52585763 | J68: 19.19028816 | K68: 18.21866528 | L68: 17.47885192 | M68: 16.84846392 | N68: 16.34745851 | O68: 15.89280395 | P68: 15.50420844 | Q68: 15.17844591 | R68: 14.89809498 | S68: 14.63641711 | T68: 14.40511349 | U68: 14.18874692
A69: 4 | B69: 434.1955537 | C69: 117.5983926 | D69: 62.61906375 | E69: 41.55168178 | F69: 32.03010668 | G69: 26.73056642 | H69: 23.48328229 | I69: 21.53454667 | J69: 20.15196994 | K69: 19.12217562 | L69: 18.33993643 | M69: 17.68816962 | N69: 17.15964199 | O69: 16.66927151 | P69: 16.25525061 | Q69: 15.92303212 | R69: 15.62847912 | S69: 15.36232334 | T69: 15.12061512 | U69: 14.89721478
A127: Battery Lifetime
A128: PV/Load
A129: Battery/Load*1000

Sheet (6) Monte Carlo Simulation
B1: Procedure | D1: (5) Monte Carlo Simulation | Y1: Gauss | Z1: Gauss | AA1: Weibull
B2: Attention: Monte Carlo Simulation requires around 20 to 25 minutes for calculation, depending on hardware configuration! | O2: Distributions | Y2: PV | Z2: Load | AA2: Battery
B3: 1.Press Copy Data from Main Menu OR Enter Start Values | O3: Gauss | P3: Gauss Value | Q3: Weilbull Values | R3: Weibull | T3: Weibull squared | Y3: =P4*gen_pv -> 18 | Z3: =P4*load_load -> 3000.6 | AA3: =bat_cap_use*Q4 -> 31
B4: 2. Press Monte Carlo Simulation to Start | F4: Start Values | O4: 0.002752339489 | P4: =1-G13*0.01 -> 0.9 | Q4: 0.775 | R4: 0.004955710187 | T4: =Q4*Q4 -> 0.600625 | U4: 0.004955710187 | Y4: 18.4 | Z4: 3067.28 | AA4: 32
E5: Generation | F5: PV | G5: 1 | H5: Wind | I5: 0 | J5: CHP | K5: 0 | L5: GENX | M5: 0 | O5: 0.01381173998 | P5: =1-G13/5*4*0.01 -> 0.92 | Q5: 0.8 | R5: 0.01053863445 | T5: =Q5*Q5 -> 0.64 | U5: 0.01053863445 | Y5: 18.8 | Z5: 3133.96 | AA5: 33 | AE5: s | AF5: min | AG5: hours | AH5: days | AI5: years
E6: Loads | F6: Load | G6: 3125 | H6: HP | I6: 3750 | J6: Car | K6: 3125 | L6: LOADX | M6: 0 | O6: 0.04794074964 | P6: =1-G13/5*3*0.01 -> 0.94 | Q6: 0.825 | R6: 0.02171043977 | T6: 0.680625 | U6: 0.02171043977 | Y6: 19.2 | Z6: 3200.64 | AA6: 34 | AD6: Number of Parameters | AE6: Expected Runtime:
E7: Battery | F7: Bat_total | G7: 0 | O7: 0.1168993645 | P7: =1-G13/5*2*0.01 -> 0.96 | Q7: 0.85 | R7: 0.04301976184 | T7: 0.7225 | U7: 0.04301976184 | Y7: 19.6 | Z7: 3267.32 | AA7: 35 | AD7: 3 | AE7: 1996.5 | AF7: 33.275
F8: Bat_Soc | G8: 0 | H8: % | O8: 0.1994195066 | P8: =1-G13/5*0.01 -> 0.98 | Q8: 0.875 | R8: 0.08075245328 | T8: 0.765625 | U8: 0.08075245328 | Y8: 20 | Z8: 3334 | AA8: 36 | AD8: 4 | AE8: 21961.5 | AF8: 366.025 | AG8: 6.100416667
F9: Maximum Charge | G9: 1 | O9: 0.2383525997 | P9: 1 | Q9: 0.9 | R9: 0.1393035431 | T9: 0.81 | U9: 0.1393035431 | Y9: 20.4 | Z9: 3400.68 | AA9: 37 | AD9: 5 | AE9: 241576.5 | AF9: 4026.275 | AG9: 67.10458333 | AH9: 2.796024306
F10: Limited Capacity: | G10: =(G9-G8/100)*G7 -> 0 | O10: 0.1994195066 | P10: =1+G13/5*0.01 -> 1.02 | Q10: 0.925 | R10: 0.2084374148 | T10: 0.855625 | U10: 0.2084374148 | Y10: 20.8 | Z10: 3467.36 | AA10: 38 | AD10: 6 | AE10: 2657341.5 | AF10: 44289.025 | AG10: 738.1504167 | AH10: 30.75626736 | AI10: =AH10/365 -> 0.08426374619
F11: Useable Capacity: | G11: =G7*(100-G8)/100 -> 0 | O11: 0.1168993645 | P11: =1+G13/5*2*0.01 -> 1.04 | Q11: 0.95 | R11: 0.243002952 | T11: 0.9025 | U11: 0.243002952 | Y11: 21.2 | Z11: 3534.04 | AA11: 39 | AD11: 7 | AE11: 29230756.5 | AF11: 487179.275 | AG11: 8119.654583 | AH11: 338.318941 | AI11: =AH11/365 -> 0.9269012081
O12: 0.04794074964 | P12: =1+G13/5*3*0.01 -> 1.06 | Q12: 0.975 | R12: 0.1816565827 | T12: 0.950625 | U12: 0.1816565827 | Y12: 21.6 | Z12: 3600.72 | AA12: 40 | AD12: 8 | AE12: 321538321.5 | AF12: 5358972.025 | AG12: 89316.20042 | AH12: 3721.508351 | AI12: 10.19591329
F13: Variate for +- | G13: 10 | H13: % | I13: Status: | J13: 1 | O13: 0.01381173998 | P13: =1+G13/5*4*0.01 -> 1.08 | Q13: 1 | R13: 0.06150229451 | T13: 1 | U13: 0.06150229451 | Y13: 22 | Z13: 3667.4 | AA13: 41
O14: 0.002752339489 | P14: =1+G13*0.01 -> 1.1 | Q14: 1.025 | R14: 0.005120213375 | T14: 1.050625 | U14: 0.005120213375
D15: probability | E15: Internal Consumption | F15: Feed in | G15: Feed in max | H15: Battery Cycles per Year | I15: Battery Losses | J15: Battery Lifetime | O15: =SUM(O4:O14) -> 1 | R15: =SUM(R4:R14) -> 1
C16: min | D16: =MIN(D21:D1351) -> 3.754135146e-08 | E16: 0.06290873385 | F16: =MIN(F20:F1350) -> 0 | G16: =MIN(G20:G1350) -> 0 | H16: =MIN(H20:H1350) -> 0 | I16: =MIN(I20:I1350) -> -137.8486027 | J16: =MIN(J20:J1350) -> 0
C17: max | D17: =MAX(D20:D1350) -> 0.01380547442 | E17: 1 | F17: =MAX(F20:F1350) -> 8240.154803 | G17: =MAX(G20:G1350) -> 5923.968582 | H17: 340.4267776 | I17: =MAX(I20:I1350) -> 0 | J17: =IF(MAX(J20:J1350)>100,30,MAX(J20:J1350)) -> 30 | N17: xSteps | O17: 20
A19: PV | B19: Load | C19: Battery | D19: probability | E19: Internal Consumption | F19: Feed in | G19: Feed in max | H19: Battery Cycles per Year | I19: Battery Losses | J19: Battery Lifetime | M19: MCS_IC | P19: MCS_FeedIntoGrid | S19: Battery Lifetime
A20: 1 | B20: 1 | C20: 1 | D20: 3.754135146e-08 | E20: 0.7898080408 | F20: 100.4877886 | G20: 271.9685816 | H20: 50.07856506 | I20: -16.61106003 | J20: =IF(H20>0,bat_data_lifetime_cycles/H20,) -> 49.92155819 | L20: 1 | M20: =IF(N20<$E$16,0,(IF(O20<$E$17, -SUMIF($E$20:$E$1350,"<"&N20,$D$20:$D$1350)+SUMIF($E$20:$E$1350,"<"&O20,$D$20:$D$1350), ))) -> 0.001048156108 | N20: =E16 -> 0.06290873385 | O20: =E16+(E17-E16)/O17 -> 0.1097632972 | P20: =IF(Q20<$F$16,0,(IF(R20<$F$17, -SUMIF($F$20:$F$1350,"<"&Q20,$D$20:$D$1350)+SUMIF($F$20:$F$1350,"<"&R20,$D$20:$D$1350), ))) -> 0.1060596984 | Q20: =F16 -> 0 | R20: =F16+(F17-F16)/O17 -> 412.0077401 | S20: =IF(T20<$J$16,0,(IF(U20<$J$17, -SUMIF($J$20:$J$1350,"<"&T20,$D$20:$D$1350)+SUMIF($J$20:$J$1350,"<"&U20,$D$20:$D$1350), ))) -> 0.002253053563 | T20: =J16 -> 0 | U20: =T20+($J$17-$J$16)/$O$17 -> 1.5
A21: 1 | B21: 1 | C21: 2 | D21: 7.983408329e-08 | E21: 0.7906313324 | F21: 100.1028167 | G21: 271.9685816 | H21: 48.63391362 | I21: -16.65225202 | J21: 51.40445861 | L21: 2 | M21: =IF(N21<$E$16,0,(IF(O21<$E$17, -SUMIF($E$20:$E$1350,"<"&N21,$D$20:$D$1350)+SUMIF($E$20:$E$1350,"<"&O21,$D$20:$D$1350), ))) -> 0.001204897455 | N21: =O20 -> 0.1097632972 | O21: =N21+($E$17-$E$16)/$O$17 -> 0.1566178605 | P21: =IF(Q21<$F$16,0,(IF(R21<$F$17, -SUMIF($F$20:$F$1350,"<"&Q21,$D$20:$D$1350)+SUMIF($F$20:$F$1350,"<"&R21,$D$20:$D$1350), ))) -> 0.09994392014 | Q21: =R20 -> 412.0077401 | R21: =Q21+($F$17-$F$16)/$O$17 -> 824.0154803 | S21: =IF(T21<$J$16,0,(IF(U21<$J$17, -SUMIF($J$20:$J$1350,"<"&T21,$D$20:$D$1350)+SUMIF($J$20:$J$1350,"<"&U21,$D$20:$D$1350), ))) -> 0 | T21: =U20 -> 1.5 | U21: =T21+($J$17-$J$16)/$O$17 -> 3
A22: 1 | B22: 1 | C22: 3 | D22: 1.644646719e-07 | E22: 0.7910862878 | F22: 99.89005077 | G22: 271.9685816 | H22: 47.2246332 | I22: -16.67501798 | J22: 52.93847365 | L22: 3 | M22: 0.0005505254956 | N22: =O21 -> 0.1566178605 | O22: =N22+($E$17-$E$16)/$O$17 -> 0.2034724238 | P22: 0.1536982854 | Q22: =R21 -> 824.0154803 | R22: =Q22+($F$17-$F$16)/$O$17 -> 1236.02322 | S22: 0 | T22: =U21 -> 3 | U22: =T22+($J$17-$J$16)/$O$17 -> 4.5
A23: 1 | B23: 1 | C23: 4 | D23: 3.258907277e-07 | E23: 0.7915411997 | F23: 99.67728481 | G23: 271.9685816 | H23: 45.89825162 | I23: -16.69778394 | J23: 54.46830569 | L23: 4 | M23: 0.002276728794 | N23: 0.2034724238 | O23: 0.2503269871 | P23: 0.1527588207 | Q23: 1236.02322 | R23: 1648.030961 | S23: 0 | T23: 4.5 | U23: 6
A24: 1 | B24: 1 | C24: 5 | D24: 6.117299268e-07 | E24: 0.7919960684 | F24: 99.46451885 | G24: 271.9685816 | H24: 44.64766328 | I24: -16.7205499 | J24: 55.99397184 | L24: 5 | M24: 0.003680373977 | N24: 0.2503269871 | O24: 0.2971815504 | P24: 0.1249695053 | Q24: 1648.030961 | R24: 2060.038701 | S24: 2.526616144e-05 | T24: 6 | U24: 7.5
A25: 1 | B25: 1 | C25: 6 | D25: 1.055276252e-06 | E25: 0.7924508938 | F25: 99.2517529 | G25: 271.9685816 | H25: 43.46655206 | I25: -16.74331585 | J25: 57.51548907 | L25: 6 | M25: 0.006839297508 | N25: 0.2971815504 | O25: 0.3440361137 | P25: 0.1035423912 | Q25: 2060.038701 | R25: 2472.046441 | S25: 0.1432168122 | T25: 7.5 | U25: 9
A26: 1 | B26: 1 | C26: 7 | D26: 1.578991093e-06 | E26: 0.7929056758 | F26: 99.03898694 | G26: 271.9685816 | H26: 42.3492847 | I26: -16.76608181 | J26: 59.03287429 | L26: 7 | M26: 0.02443771551 | N26: 0.3440361137 | O26: 0.390890677 | P26: 0.08253531383 | Q26: 2472.046441 | R26: 2884.054181 | S26: 0.393369809 | T26: 9 | U26: 10.5
A27: 1 | B27: 1 | C27: 8 | D27: 1.840837919e-06 | E27: 0.7933604146 | F27: 98.82622098 | G27: 271.9685816 | H27: 41.29082088 | I27: -16.78884777 | J27: 60.54614432 | L27: 8 | M27: 0.0241513448 | N27: 0.390890677 | O27: 0.4377452403 | P27: 0.07896937977 | Q27: 2884.054181 | R27: 3296.061921 | S27: 0.2368117775 | T27: 10.5 | U27: 12
A28: 1 | B28: 1 | C28: 9 | D28: 1.37611631e-06 | E28: 0.79381511 | F28: 98.61345502 | G28: 271.9685816 | H28: 40.28663726 | I28: -16.81161373 | J28: 62.05531586 | L28: 9 | M28: 0.05446098844 | N28: 0.4377452403 | O28: 0.4845998036 | P28: 0.04754056786 | Q28: 3296.061921 | R28: 3708.069661 | S28: 0.0933006693 | T28: 12 | U28: 13.5
A29: 1 | B29: 1 | C29: 10 | D29: 4.659028004e-07 | E29: 0.7942697622 | F29: 98.40068907 | G29: 271.9685816 | H29: 39.33266281 | I29: -16.83437968 | J29: 63.56040556 | L29: 10 | M29: 0.06413662551 | N29: 0.4845998036 | O29: 0.5314543669 | P29: 0.02038501113 | Q29: 3708.069661 | R29: 4120.077401 | S29: 0.04341353976 | T29: 13.5 | U29: 15
A30: 1 | B30: 1 | C30: 11 | D30: 3.878752442e-08 | E30: 0.7947243711 | F30: 98.18792311 | G30: 271.9685816 | H30: 38.42522371 | I30: -16.85714564 | J30: 65.06142993 | L30: 11 | M30: 0.1072578832 | N30: 0.5314543669 | O30: 0.5783089302 | P30: 0.01614226006 | Q30: 4120.077401 | R30: 4532.085142 | S30: 0.02347873106 | T30: 15 | U30: 16.5
A31: 1 | B31: 2 | C31: 1 | D31: 1.883893273e-07 | E31: 1 | F31: 0 | G31: 0 | H31: 26.94136102 | I31: -8.93644945 | J31: 92.79412419 | L31: 12 | M31: =IF(N31<$E$16,0,(IF(O31<$E$17, -SUMIF($E$20:$E$1350,"<"&N31,$D$20:$D$1350)+SUMIF($E$20:$E$1350,"<"&O31,$D$20:$D$1350), ))) -> 0.1486447923 | N31: 0.5783089302 | O31: 0.6251634935 | P31: =IF(Q31<$F$16,0,(IF(R31<$F$17, -SUMIF($F$20:$F$1350,"<"&Q31,$D$20:$D$1350)+SUMIF($F$20:$F$1350,"<"&R31,$D$20:$D$1350), ))) -> 0.006357589464 | Q31: 4532.085142 | R31: 4944.092882 | S31: 0.01049583871 | T31: 16.5 | U31: 18
A32: 1 | B32: 2 | C32: 2 | D32: 4.006219453e-07 | E32: 1 | F32: 0 | G32: 0 | H32: 26.09944349 | I32: -8.93644945 | J32: 95.78748303 | L32: 13 | M32: 0.1175878966 | N32: 0.6251634935 | O32: 0.6720180568 | P32: 0.004042335559 | Q32: 4944.092882 | R32: 5356.100622 | S32: 0.01355027483 | T32: 18 | U32: 19.5
A33: 1 | B33: 2 | C33: 3 | D33: 8.253136263e-07 | E33: 1 | F33: 0 | G33: 0 | H33: 25.30855126 | I33: -8.93644945 | J33: 98.78084188 | L33: 14 | M33: 0.1088368142 | N33: 0.6720180568 | O33: 0.7188726202 | P33: 0.002088317114 | Q33: 5356.100622 | R33: 5768.108362 | S33: 0.003711872977 | T33: 19.5 | U33: 21
A34: 1 | B34: 2 | C34: 4 | D34: 1.635378924e-06 | E34: 1 | F34: 0 | G34: 0 | H34: 24.5641821 | I34: -8.93644945 | J34: 101.7742007 | L34: 15 | M34: 0.08997598481 | N34: 0.7188726202 | O34: 0.7657271835 | P34: 0.0004283368794 | Q34: 5768.108362 | R34: 6180.116102 | S34: 0.001685115521 | T34: 21 | U34: 22.5
A35: 1 | B35: 2 | C35: 5 | D35: 3.069771996e-06 | E35: 1 | F35: 0 | G35: 0 | H35: 23.86234833 | I35: -8.93644945 | J35: 104.7675596 | L35: 16 | M35: 0.07826012519 | N35: 0.7657271835 | O35: 0.8125817468 | P35: 0.0004497534557 | Q35: 6180.116102 | R35: 6592.123842 | S35: 0.007082264619 | T35: 22.5 | U35: 24
A36: 1 | B36: 2 | C36: 6 | D36: 5.295568102e-06 | E36: 1 | F36: 0 | G36: 0 | H36: 23.19950532 | I36: -8.93644945 | J36: 107.7609184 | L36: 17 | M36: 0.06237565504 | N36: 0.8125817468 | O36: 0.8594363101 | P36: 4.909142222e-06 | Q36: 6592.123842 | R36: 7004.131582 | S36: 0.002748066744 | T36: 24 | U36: 25.5
A37: 1 | B37: 2 | C37: 7 | D37: 7.923664395e-06 | E37: 1 | F37: 0 | G37: 0 | H37: 22.57249166 | I37: -8.93644945 | J37: 110.7542773 | L37: 18 | M37: 0.02991557981 | N37: 0.8594363101 | O37: 0.9062908734 | P37: 7.60291947e-05 | Q37: 7004.131582 | R37: 7416.139323 | S37: 0.0002639638105 | T37: 25.5 | U37: 27
A38: 1 | B38: 2 | C38: 8 | D38: 9.237659375e-06 | E38: 1 | F38: 0 | G38: 0 | H38: 21.97847872 | I38: -8.93644945 | J38: 113.7476361 | L38: 19 | M38: 0.03314585909 | N38: 0.9062908734 | O38: 0.9531454367 | P38: 0 | Q38: 7416.139323 | R38: 7828.147063 | S38: 0.001674181112 | T38: 27 | U38: 28.5
A39: 1 | B39: 2 | C39: 9 | D39: 6.905601846e-06 | E39: 1 | F39: 0 | G39: 0 | H39: 21.41492799 | I39: -8.93644945 | J39: 116.7409949 | L39: 20 | M39: 0 | N39: 0.9531454367 | O39: 1 | P39: 0 | Q39: 7828.147063 | R39: 8240.154803 | S39: 0 | T39: 28.5 | U39: 30
A40: 1 | B40: 2 | C40: 10 | D40: 2.337984962e-06 | E40: 1 | F40: 0 | G40: 0 | H40: 20.87955479 | I40: -8.93644945 | J40: 119.7343538 | S40: =SUM(S20:S39) -> 0.9770812369
A41: 1 | B41: 2 | C41: 11 | D41: 1.946428498e-07 | E41: 1 | F41: 0 | G41: 0 | H41: 20.37029735 | I41: -8.93644945 | J41: 122.7277126
A42: 1 | B42: 3 | C42: 1 | D42: 6.539020855e-07 | E42: 1 | F42: 0 | G42: 0 | H42: 5.836991314 | I42: -1.936130019 | J42: 428.3028474
A43: 1 | B43: 3 | C43: 2 | D43: 1.390564578e-06 | E43: 1 | F43: 0 | G43: 0 | H43: 5.654585335 | I43: -1.936130019 | J43: 442.1190683
A44: 1 | B44: 3 | C44: 3 | D44: 2.864675558e-06 | E44: 1 | F44: 0 | G44: 0 | H44: 5.483234265 | I44: -1.936130019 | J44: 455.9352892
A45: 1 | B45: 3 | C45: 4 | D45: 5.676423947e-06 | E45: 1 | F45: 0 | G45: 0 | H45: 5.321962669 | I45: -1.936130019 | J45: 469.7515101
A46: 1 | B46: 3 | C46: 5 | D46: 1.065522309e-05 | E46: 1 | F46: 0 | G46: 0 | H46: 5.169906592 | I46: -1.936130019 | J46: 483.5677309
A47: 1 | B47: 3 | C47: 6 | D47: 1.838099363e-05 | E47: 1 | F47: 0 | G47: 0 | H47: 5.026298076 | I47: -1.936130019 | J47: 497.3839518
A48: 1 | B48: 3 | C48: 7 | D48: 2.750315395e-05 | E48: 1 | F48: 0 | G48: 0 | H48: 4.890452182 | I48: -1.936130019 | J48: 511.2001727
A49: 1 | B49: 3 | C49: 8 | D49: 3.206404957e-05 | E49: 1 | F49: 0 | G49: 0 | H49: 4.761756072 | I49: -1.936130019 | J49: 525.0163936
A50: 1 | B50: 3 | C50: 9 | D50: 2.396944409e-05 | E50: 1 | F50: 0 | G50: 0 | H50: 4.639659762 | I50: -1.936130019 | J50: 538.8326145
A51: 1 | B51: 3 | C51: 10 | D51: 8.115179687e-06 | E51: 1 | F51: 0 | G51: 0 | H51: 4.523668268 | I51: -1.936130019 | J51: 552.6488354
A52: 1 | B52: 3 | C52: 11 | D52: 6.756081526e-07 | E52: 1 | F52: 0 | G52: 0 | H52: 4.413334896 | I52: -1.936130019 | J52: 566.4650562
A53: 1 | B53: 4 | C53: 1 | D53: 1.594483582e-06 | E53: 1 | F53: 0 | G53: 0 | H53: 0.3130360009 | I53: -0.1038340415 | J53: 7986.301873
A54: 1 | B54: 4 | C54: 2 | D54: 3.390771247e-06 | E54: 1 | F54: 0 | G54: 0 | H54: 0.3032536258 | I54: -0.1038340415 | J54: 8243.924514
A55: 1 | B55: 4 | C55: 3 | D55: 6.985263156e-06 | E55: 1 | F55: 0 | G55: 0 | H55: 0.294064122 | I55: -0.1038340415 | J55: 8501.547155
A56: 1 | B56: 4 | C56: 4 | D56: 1.3841468e-05 | E56: 1 | F56: 0 | G56: 0 | H56: 0.2854151772 | I56: -0.1038340415 | J56: 8759.169796
A57: 1 | B57: 4 | C57: 5 | D57: 2.598183835e-05 | E57: 1 | F57: 0 | G57: 0 | H57: 0.2772604579 | I57: -0.1038340415 | J57: 9016.792438
A58: 1 | B58: 4 | C58: 6 | D58: 4.482046046e-05 | E58: 1 | F58: 0 | G58: 0 | H58: 0.2695587785 | I58: -0.1038340415 | J58: 9274.415079
A59: 1 | B59: 4 | C59: 7 | D59: 6.706405807e-05 | E59: 1 | F59: 0 | G59: 0 | H59: 0.2622734061 | I59: -0.1038340415 | J59: 9532.03772
A60: 1 | B60: 4 | C60: 8 | D60: 7.818540688e-05 | E60: 1 | F60: 0 | G60: 0 | H60: 0.2553714744 | I60: -0.1038340415 | J60: 9789.660361
A61: 1 | B61: 4 | C61: 9 | D61: 5.844741273e-05 | E61: 1 | F61: 0 | G61: 0 | H61: 0.2488234879 | I61: -0.1038340415 | J61: 10047.283
A62: 1 | B62: 4 | C62: 10 | D62: 1.978816258e-05 | E62: 1 | F62: 0 | G62: 0 | H62: 0.2426029007 | I62: -0.1038340415 | J62: 10304.90564
A63: 1 | B63: 4 | C63: 11 | D63: 1.647411946e-06 | E63: 1 | F63: 0 | G63: 0 | H63: 0.2366857567 | I63: -0.1038340415 | J63: 10562.52828
A64: 1 | B64: 5 | C64: 1 | D64: 2.720041556e-06 | E64: 1 | F64: 0 | G64: 0 | H64: 0 | I64: 0 | J64: 0
A65: 1 | B65: 5 | C65: 2 | D65: 5.784342217e-06 | E65: 1 | F65: 0 | G65: 0 | H65: 0 | I65: 0 | J65: 0
A66: 1 | B66: 5 | C66: 3 | D66: 1.191621305e-05 | E66: 1 | F66: 0 | G66: 0 | H66: 0 | I66: 0 | J66: 0
A67: 1 | B67: 5 | C67: 4 | D67: 2.361226454e-05 | E67: 1 | F67: 0 | G67: 0 | H67: 0 | I67: 0 | J67: 0
A68: 1 | B68: 5 | C68: 5 | D68: 4.432261379e-05 | E68: 1 | F68: 0 | G68: 0 | H68: 0 | I68: 0 | J68: 0
A69: 1 | B69: 5 | C69: 6 | D69: 7.645956119e-05 | E69: 1 | F69: 0 | G69: 0 | H69: 0 | I69: 0 | J69: 0
A70: 1 | B70: 5 | C70: 7 | D70: 0.0001144050819 | E70: 1 | F70: 0 | G70: 0 | H70: 0 | I70: 0 | J70: 0
A71: 1 | B71: 5 | C71: 8 | D71: 0.0001333770747 | E71: 1 | F71: 0 | G71: 0 | H71: 0 | I71: 0 | J71: 0
A72: 1 | B72: 5 | C72: 9 | D72: 9.970588173e-05 | E72: 1 | F72: 0 | G72: 0 | H72: 0 | I72: 0 | J72: 0
A73: 1 | B73: 5 | C73: 10 | D73: 3.375677563e-05 | E73: 1 | F73: 0 | G73: 0 | H73: 0 | I73: 0 | J73: 0
A74: 1 | B74: 5 | C74: 11 | D74: 2.810332451e-06 | E74: 1 | F74: 0 | G74: 0 | H74: 0 | I74: 0 | J74: 0
A75: 1 | B75: 6 | C75: 1 | D75: 3.251081037e-06 | E75: 1 | F75: 0 | G75: 0 | H75: 0 | I75: 0 | J75: 0
A76: 1 | B76: 6 | C76: 2 | D76: 6.913631613e-06 | E76: 1 | F76: 0 | G76: 0 | H76: 0 | I76: 0 | J76: 0
A77: 1 | B77: 6 | C77: 3 | D77: 1.424264059e-05 | E77: 1 | F77: 0 | G77: 0 | H77: 0 | I77: 0 | J77: 0
A78: 1 | B78: 6 | C78: 4 | D78: 2.822213702e-05 | E78: 1 | F78: 0 | G78: 0 | H78: 0 | I78: 0 | J78: 0
A79: 1 | B79: 6 | C79: 5 | D79: 5.297581166e-05 | E79: 1 | F79: 0 | G79: 0 | H79: 0 | I79: 0 | J79: 0
A80: 1 | B80: 6 | C80: 6 | D80: 9.138692344e-05 | E80: 1 | F80: 0 | G80: 0 | H80: 0 | I80: 0 | J80: 0
A81: 1 | B81: 6 | C81: 7 | D81: 0.0001367406287 | E81: 1 | F81: 0 | G81: 0 | H81: 0 | I81: 0 | J81: 0
A82: 1 | B82: 6 | C82: 8 | D82: 0.0001594165638 | E82: 1 | F82: 0 | G82: 0 | H82: 0 | I82: 0 | J82: 0
A83: 1 | B83: 6 | C83: 9 | D83: 0.0001191716724 | E83: 1 | F83: 0 | G83: 0 | H83: 0 | I83: 0 | J83: 0
A84: 1 | B84: 6 | C84: 10 | D84: 4.034718251e-05 | E84: 1 | F84: 0 | G84: 0 | H84: 0 | I84: 0 | J84: =IF(H84>0,bat_data_lifetime_cycles/H84,) -> 0
A85: 1 | B85: 6 | C85: 11 | D85: 3.358999615e-06 | E85: 1 | F85: 0 | G85: 0 | H85: 0 | I85: 0 | J85: 0
A86: 1 | B86: 7 | C86: 1 | D86: 2.720041556e-06 | E86: 1 | F86: 0 | G86: 0 | H86: 0 | I86: 0 | J86: 0
A87: 1 | B87: 7 | C87: 2 | D87: 5.784342217e-06 | E87: 1 | F87: 0 | G87: 0 | H87: 0 | I87: 0 | J87: 0
A88: 1 | B88: 7 | C88: 3 | D88: 1.191621305e-05 | E88: 1 | F88: 0 | G88: 0 | H88: 0 | I88: 0 | J88: 0
A89: 1 | B89: 7 | C89: 4 | D89: 2.361226454e-05 | E89: 1 | F89: 0 | G89: 0 | H89: 0 | I89: 0 | J89: 0
A90: 1 | B90: 7 | C90: 5 | D90: 4.432261379e-05 | E90: 1 | F90: 0 | G90: 0 | H90: 0 | I90: 0 | J90: 0
A91: 1 | B91: 7 | C91: 6 | D91: 7.645956119e-05 | E91: 1 | F91: 0 | G91: 0 | H91: 0 | I91: 0 | J91: 0
A92: 1 | B92: 7 | C92: 7 | D92: 0.0001144050819 | E92: 1 | F92: 0 | G92: 0 | H92: 0 | I92: 0 | J92: 0
A93: 1 | B93: 7 | C93: 8 | D93: 0.0001333770747 | E93: 1 | F93: 0 | G93: 0 | H93: 0 | I93: 0 | J93: 0
A94: 1 | B94: 7 | C94: 9 | D94: 9.970588173e-05 | E94: 1 | F94: 0 | G94: 0 | H94: 0 | I94: 0 | J94: 0
A95: 1 | B95: 7 | C95: 10 | D95: 3.375677563e-05 | E95: 1 | F95: 0 | G95: 0 | H95: 0 | I95: 0 | J95: 0
A96: 1 | B96: 7 | C96: 11 | D96: 2.810332451e-06 | E96: 1 | F96: 0 | G96: 0 | H96: 0 | I96: 0 | J96: 0
A97: 1 | B97: 8 | C97: 1 | D97: 1.594483582e-06 | E97: 1 | F97: 0 | G97: 0 | H97: 0 | I97: 0 | J97: 0
A98: 1 | B98: 8 | C98: 2 | D98: 3.390771247e-06 | E98: 1 | F98: 0 | G98: 0 | H98: 0 | I98: 0 | J98: 0
A99: 1 | B99: 8 | C99: 3 | D99: 6.985263156e-06 | E99: 1 | F99: 0 | G99: 0 | H99: 0 | I99: 0 | J99: 0
A100: 1 | B100: 8 | C100: 4 | D100: 1.3841468e-05 | E100: 1 | F100: 0 | G100: 0 | H100: 0 | I100: 0 | J100: 0
A101: 1 | B101: 8 | C101: 5 | D101: 2.598183835e-05 | E101: 1 | F101: 0 | G101: 0 | H101: 0 | I101: 0 | J101: 0
A102: 1 | B102: 8 | C102: 6 | D102: 4.482046046e-05 | E102: 1 | F102: 0 | G102: 0 | H102: 0 | I102: 0 | J102: 0
A103: 1 | B103: 8 | C103: 7 | D103: 6.706405807e-05 | E103: 1 | F103: 0 | G103: 0 | H103: 0 | I103: 0 | J103: 0
A104: 1 | B104: 8 | C104: 8 | D104: 7.818540688e-05 | E104: 1 | F104: 0 | G104: 0 | H104: 0 | I104: 0 | J104: 0
A105: 1 | B105: 8 | C105: 9 | D105: 5.844741273e-05 | E105: 1 | F105: 0 | G105: 0 | H105: 0 | I105: 0 | J105: 0
A106: 1 | B106: 8 | C106: 10 | D106: 1.978816258e-05 | E106: 1 | F106: 0 | G106: 0 | H106: 0 | I106: 0 | J106: 0
A107: 1 | B107: 8 | C107: 11 | D107: 1.647411946e-06 | E107: 1 | F107: 0 | G107: 0 | H107: 0 | I107: 0 | J107: 0
A108: 1 | B108: 9 | C108: 1 | D108: 6.539020855e-07 | E108: 1 | F108: 0 | G108: 0 | H108: 0 | I108: 0 | J108: 0
A109: 1 | B109: 9 | C109: 2 | D109: 1.390564578e-06 | E109: 1 | F109: 0 | G109: 0 | H109: 0 | I109: 0 | J109: 0
A110: 1 | B110: 9 | C110: 3 | D110: 2.864675558e-06 | E110: 1 | F110: 0 | G110: 0 | H110: 0 | I110: 0 | J110: 0
A111: 1 | B111: 9 | C111: 4 | D111: 5.676423947e-06 | E111: 1 | F111: 0 | G111: 0 | H111: 0 | I111: 0 | J111: 0
A112: 1 | B112: 9 | C112: 5 | D112: 1.065522309e-05 | E112: 1 | F112: 0 | G112: 0 | H112: 0 | I112: 0 | J112: 0
A113: 1 | B113: 9 | C113: 6 | D113: 1.838099363e-05 | E113: 1 | F113: 0 | G113: 0 | H113: 0 | I113: 0 | J113: 0
A114: 1 | B114: 9 | C114: 7 | D114: 2.750315395e-05 | E114: 1 | F114: 0 | G114: 0 | H114: 0 | I114: 0 | J114: 0
A115: 1 | B115: 9 | C115: 8 | D115: 3.206404957e-05 | E115: 1 | F115: 0 | G115: 0 | H115: 0 | I115: 0 | J115: 0
A116: 1 | B116: 9 | C116: 9 | D116: 2.396944409e-05 | E116: 1 | F116: 0 | G116: 0 | H116: 0 | I116: 0 | J116: 0
A117: 1 | B117: 9 | C117: 10 | D117: 8.115179687e-06 | E117: 1 | F117: 0 | G117: 0 | H117: 0 | I117: 0 | J117: 0
A118: 1 | B118: 9 | C118: 11 | D118: 6.756081526e-07 | E118: 1 | F118: 0 | G118: 0 | H118: 0 | I118: 0 | J118: 0
A119: 1 | B119: 10 | C119: 1 | D119: 1.883893273e-07 | E119: 1 | F119: 0 | G119: 0 | H119: 0 | I119: 0 | J119: 0
A120: 1 | B120: 10 | C120: 2 | D120: 4.006219453e-07 | E120: 1 | F120: 0 | G120: 0 | H120: 0 | I120: 0 | J120: 0
A121: 1 | B121: 10 | C121: 3 | D121: 8.253136263e-07 | E121: 1 | F121: 0 | G121: 0 | H121: 0 | I121: 0 | J121: 0
A122: 1 | B122: 10 | C122: 4 | D122: 1.635378924e-06 | E122: 1 | F122: 0 | G122: 0 | H122: 0 | I122: 0 | J122: 0
A123: 1 | B123: 10 | C123: 5 | D123: 3.069771996e-06 | E123: 1 | F123: 0 | G123: 0 | H123: 0 | I123: 0 | J123: 0
A124: 1 | B124: 10 | C124: 6 | D124: 5.295568102e-06 | E124: 1 | F124: 0 | G124: 0 | H124: 0 | I124: 0 | J124: 0
A125: 1 | B125: 10 | C125: 7 | D125: 7.923664395e-06 | E125: 1 | F125: 0 | G125: 0 | H125: 0 | I125: 0 | J125: 0
A126: 1 | B126: 10 | C126: 8 | D126: 9.237659375e-06 | E126: 1 | F126: 0 | G126: 0 | H126: 0 | I126: 0 | J126: 0
A127: 1 | B127: 10 | C127: 9 | D127: 6.905601846e-06 | E127: 1 | F127: 0 | G127: 0 | H127: 0 | I127: 0 | J127: 0
A128: 1 | B128: 10 | C128: 10 | D128: 2.337984962e-06 | E128: 1 | F128: 0 | G128: 0 | H128: 0 | I128: 0 | J128: 0
A129: 1 | B129: 10 | C129: 11 | D129: 1.946428498e-07 | E129: 1 | F129: 0 | G129: 0 | H129: 0 | I129: 0 | J129: 0
A130: 1 | B130: 11 | C130: 1 | D130: 3.754135146e-08 | E130: 1 | F130: 0 | G130: 0 | H130: 0 | I130: 0 | J130: 0
A131: 1 | B131: 11 | C131: 2 | D131: 7.983408329e-08 | E131: 1 | F131: 0 | G131: 0 | H131: 0 | I131: 0 | J131: 0
A132: 1 | B132: 11 | C132: 3 | D132: 1.644646719e-07 | E132: 1 | F132: 0 | G132: 0 | H132: 0 | I132: 0 | J132: 0
A133: 1 | B133: 11 | C133: 4 | D133: 3.258907277e-07 | E133: 1 | F133: 0 | G133: 0 | H133: 0 | I133: 0 | J133: 0
A134: 1 | B134: 11 | C134: 5 | D134: 6.117299268e-07 | E134: 1 | F134: 0 | G134: 0 | H134: 0 | I134: 0 | J134: 0
A135: 1 | B135: 11 | C135: 6 | D135: 1.055276252e-06 | E135: 1 | F135: 0 | G135: 0 | H135: 0 | I135: 0 | J135: 0
A136: 1 | B136: 11 | C136: 7 | D136: 1.578991093e-06 | E136: 1 | F136: 0 | G136: 0 | H136: 0 | I136: 0 | J136: 0
A137: 1 | B137: 11 | C137: 8 | D137: 1.840837919e-06 | E137: 1 | F137: 0 | G137: 0 | H137: 0 | I137: 0 | J137: 0
A138: 1 | B138: 11 | C138: 9 | D138: 1.37611631e-06 | E138: 1 | F138: 0 | G138: 0 | H138: 0 | I138: 0 | J138: 0
A139: 1 | B139: 11 | C139: 10 | D139: 4.659028004e-07 | E139: 1 | F139: 0 | G139: 0 | H139: 0 | I139: 0 | J139: 0
A140: 1 | B140: 11 | C140: 11 | D140: 3.878752442e-08 | E140: 1 | F140: 0 | G140: 0 | H140: 0 | I140: 0 | J140: 0
A141: 2 | B141: 1 | C141: 1 | D141: 1.883893273e-07 | E141: 0.3797821983 | F141: 816.158485 | G141: 837.1685816 | H141: 71.8112169 | I141: -23.81978064 | J141: 34.81350279
A142: 2 | B142: 1 | C142: 2 | D142: 4.006219453e-07 | E142: 0.3799546111 | F142: 815.945719 | G142: 837.1685816 | H142: 69.63360573 | I142: -23.8425466 | J142: 35.90220518
A143: 2 | B143: 1 | C143: 3 | D143: 8.253136263e-07 | E143: 0.3801229628 | F143: 815.7379577 | G143: 837.1685816 | H143: 67.58645444 | I143: -23.86477706 | J143: 36.98966044
A144: 2 | B144: 1 | C144: 4 | D144: 1.635378924e-06 | E144: 0.380209164 | F144: 815.6315747 | G144: 837.1685816 | H144: 65.62990666 | I144: -23.87616004 | J144: 38.09239
A145: 2 | B145: 1 | C145: 5 | D145: 3.069771996e-06 | E145: 0.3802953638 | F145: 815.5251918 | G145: 837.1685816 | H145: 63.78516161 | I145: -23.88754302 | J145: 39.19406861
A146: 2 | B146: 1 | C146: 6 | D146: 5.295568102e-06 | E146: 0.3803815621 | F146: 815.4188088 | G146: 837.1685816 | H146: 62.04290239 | I146: -23.898926 | J146: 40.29469776
A147: 2 | B147: 1 | C147: 7 | D147: 7.923664395e-06 | E147: 0.3804677588 | F147: 815.3124258 | G147: 837.1685816 | H147: 60.39481934 | I147: -23.91030898 | J147: 41.39427897
A148: 2 | B148: 1 | C148: 8 | D148: 9.237659375e-06 | E148: 0.3805539541 | F148: 815.2060428 | G148: 837.1685816 | H148: 58.83347751 | I148: -23.92169196 | J148: =IF(H148>0,bat_data_lifetime_cycles/H148,) -> 42.49281371
A149: 2 | B149: 1 | C149: 9 | D149: 6.905601846e-06 | E149: 0.3806401479 | F149: 815.0996599 | G149: 837.1685816 | H149: 57.3522045 | I149: -23.93307494 | J149: 43.59030349
A150: 2 | B150: 1 | C150: 10 | D150: 2.337984962e-06 | E150: 0.3807263403 | F150: 814.9932769 | G150: 837.1685816 | H150: 55.94499513 | I150: -23.94445791 | J150: 44.6867498
A151: 2 | B151: 1 | C151: 11 | D151: 1.946428498e-07 | E151: 0.3808125311 | F151: 814.8868939 | G151: 837.1685816 | H151: 54.60643012 | I151: -23.95584089 | J151: 45.78215413
A152: 2 | B152: 2 | C152: 1 | D152: 9.453718972e-07 | E152: 0.7564393552 | F152: 324.8990636 | G152: 761.5120285 | H152: 126.1769965 | I152: -41.85290975 | J152: 19.81343722
A153: 2 | B153: 2 | C153: 2 | D153: 2.010393762e-06 | E153: 0.7576134429 | F153: 323.3724755 | G153: 761.5120285 | H153: 122.7110242 | I153: -42.01625468 | J153: 20.37306768
A154: 2 | B154: 2 | C154: 3 | D154: 4.141573834e-06 | E154: 0.758758623 | F154: 321.8831138 | G154: 761.5120285 | H154: 119.44383 | I154: -42.17561638 | J154: 20.93034022
A155: 2 | B155: 2 | C155: 4 | D155: 8.206628784e-06 | E155: 0.7599035295 | F155: 320.3937521 | G155: 761.5120285 | H155: 116.3688238 | I155: -42.33497808 | J155: 21.48341729
A156: 2 | B156: 2 | C156: 5 | D156: 1.540467402e-05 | E156: 0.7609862119 | F156: 318.985008 | G156: 761.5120285 | H156: 113.4464985 | I156: -42.4857137 | J156: 22.0368194
A157: 2 | B157: 2 | C157: 6 | D157: 2.657412357e-05 | E157: 0.7620488545 | F157: 317.6020293 | G157: 761.5120285 | H157: 110.6793677 | I157: -42.63369242 | J157: 22.58776909
A158: 2 | B158: 2 | C158: 7 | D158: 3.97623886e-05 | E158: 0.7631112615 | F158: 316.2190506 | G158: 761.5120285 | H158: 108.0618114 | I158: -42.78167115 | J158: 23.13490739
A159: 2 | B159: 2 | C159: 8 | D159: 4.635625432e-05 | E159: 0.7641587794 | F159: 314.8551534 | G159: 761.5120285 | H159: 105.5769999 | I159: -42.92760814 | J159: 23.6793999
A160: 2 | B160: 2 | C160: 9 | D160: 3.465356563e-05 | E160: 0.7651390394 | F160: 313.5785577 | G160: 761.5120285 | H160: 103.1972295 | I160: -43.06420389 | J160: 24.22545655
A161: 2 | B161: 2 | C161: 10 | D161: 1.173243363e-05 | E161: 0.7660445399 | F161: 312.3990894 | G161: 761.5120285 | H161: 100.9121659 | I161: -43.190407 | J161: 24.77401984
A162: 2 | B162: 2 | C162: 11 | D162: 9.7675321e-07 | E162: 0.7669427656 | F162: 311.2288766 | G162: 761.5120285 | H162: 98.73631129 | I162: -43.31561976 | J162: 25.31996555
A163: 2 | B163: 3 | C163: 1 | D163: 3.281399556e-06 | E163: 0.918512854 | F163: 108.6531751 | G163: 685.8554754 | H163: 124.4362143 | I163: -41.27549228 | J163: 20.09061441
A164: 2 | B164: 3 | C164: 2 | D164: 6.978105883e-06 | E164: 0.9200219057 | F164: 106.6581117 | G164: 685.8554754 | H164: 121.1710399 | I164: -41.48896407 | J164: 20.63199261
A165: 2 | B165: 3 | C165: 3 | D165: 1.43754628e-05 | E165: 0.9212856665 | F165: 104.9868471 | G165: 685.8554754 | H165: 118.0056341 | I165: -41.66778939 | J165: 21.18542915
A166: 2 | B166: 3 | C166: 4 | D166: 2.848532744e-05 | E166: 0.9224265845 | F166: 103.4776513 | G166: 685.8554754 | H166: 114.9787612 | I166: -41.82927334 | J166: 21.74314607
A167: 2 | B167: 3 | C167: 5 | D167: 5.346984677e-05 | E167: 0.9234778272 | F167: 102.0867537 | G167: 685.8554754 | H167: 112.0910531 | I167: -41.97809937 | J167: 22.30329658
A168: 2 | B168: 3 | C168: 6 | D168: 9.223916803e-05 | E168: 0.9245228522 | F168: 100.703775 | G168: 685.8554754 | H168: 109.3615735 | I168: -42.1260781 | J168: 22.85994907
A169: 2 | B169: 3 | C169: 7 | D169: 0.0001380158271 | E169: 0.9254938537 | F169: 99.41848349 | G169: 685.8554754 | H169: 106.7532313 | I169: -42.26360429 | J169: 23.41849486
A170: 2 | B170: 3 | C170: 8 | D170: 0.0001609032306 | E170: 0.9264206571 | F170: 98.19144874 | G170: 685.8554754 | H170: 104.2668397 | I170: -42.39489701 | J170: 23.97694231
A171: 2 | B171: 3 | C171: 9 | D171: 0.0001202830285 | E171: 0.9271634106 | F171: 97.20791134 | G171: 685.8554754 | H171: 101.84552 | I171: -42.50013551 | J171: 24.54698056
A172: 2 | B172: 3 | C172: 10 | D172: 4.072344716e-05 | E172: 0.9278863483 | F172: 96.25046453 | G172: 685.8554754 | H172: 99.53874374 | I172: -42.60258232 | J172: 25.11584842
A173: 2 | B173: 3 | C173: 11 | D173: 3.390324548e-06 | E173: 0.928609175 | F173: 95.29301772 | G173: 685.8554754 | H173: 97.34449311 | I173: -42.70502913 | J173: 25.68198693
A174: 2 | B174: 4 | C174: 1 | D174: 8.001408521e-06 | E174: 0.982211319 | F174: 23.57114639 | G174: 610.1989222 | H174: 99.37207459 | I174: -32.96171714 | J174: 25.15797331
A175: 2 | B175: 4 | C175: 2 | D175: 1.701550662e-05 | E175: 0.9832629559 | F175: 22.18015092 | G175: 610.1989222 | H175: 96.70138335 | I175: -33.11055366 | J175: 25.85278425
A176: 2 | B176: 4 | C176: 3 | D176: 3.505332056e-05 | E176: 0.9841153471 | F176: 21.05246755 | G176: 610.1989222 | H176: 94.11276063 | I176: -33.23121578 | J176: 26.56387915
A177: 2 | B177: 4 | C177: 4 | D177: 6.945900304e-05 | E177: 0.9847585449 | F177: 20.20140372 | G177: 610.1989222 | H177: 91.59505115 | I177: -33.32227961 | J177: 27.29405103
A178: 2 | B178: 4 | C178: 5 | D178: 0.0001303815888 | E178: 0.9853976494 | F178: 19.35564018 | G178: 610.1989222 | H178: 89.21969641 | I178: -33.41277631 | J178: 28.02071852
A179: 2 | B179: 4 | C179: 6 | D179: 0.0002249172198 | E179: 0.9859602982 | F179: 18.61095933 | G179: 610.1989222 | H179: 86.94822731 | I179: -33.49245716 | J179: 28.75274261
A180: 2 | B180: 4 | C180: 7 | D180: 0.0003365396369 | E180: 0.9864521664 | F180: 17.95988508 | G180: 610.1989222 | H180: 84.77424123 | I180: -33.5621221 | J180: 29.49008996
A181: 2 | B181: 4 | C181: 8 | D181: 0.0003923485873 | E181: 0.9869343322 | F181: 17.3215872 | G181: 610.1989222 | H181: 82.71131327 | I181: -33.63041998 | J181: 30.22561124
A182: 2 | B182: 4 | C182: 9 | D182: 0.0002932997439 | E182: 0.987365505 | F182: 16.75073893 | G182: 610.1989222 | H182: 80.73688172 | I182: -33.69150074 | J182: 30.96478272
A183: 2 | B183: 4 | C183: 10 | D183: 9.930059766e-05 | E183: 0.9877672349 | F183: 16.21882403 | G183: 610.1989222 | H183: 78.8514384 | I183: -33.74841563 | J183: 31.70519208
A184: 2 | B184: 4 | C184: 11 | D184: 8.267012676e-06 | E184: 0.9881689303 | F184: 15.68690914 | G184: 610.1989222 | H184: 77.05796792 | I184: -33.80533053 | J184: 32.44310832
A185: 2 | B185: 5 | C185: 1 | D185: 1.364966308e-05 | E185: 0.9998298454 | F185: 0.2237346982 | G185: 265.1506978 | H185: 68.70070289 | I185: -22.78802315 | J185: 36.38972958
A186: 2 | B186: 5 | C186: 2 | D186: 2.902688094e-05 | E186: 0.999944896 | F186: 0.07245665246 | G186: 129.6147839 | H186: 66.60108031 | I186: -22.8042099 | J186: 37.53692865
A187: 2 | B187: 5 | C187: 3 | D187: 5.979772365e-05 | E187: 1 | F187: 0 | G187: 0 | H187: 64.60482232 | I187: -22.81196276 | J187: 38.69680173
A188: 2 | B188: 5 | C188: 4 | D188: 0.0001184906366 | E188: 1 | F188: 0 | G188: 0 | H188: 62.70468049 | I188: -22.81196276 | J188: 39.86943208
A189: 2 | B189: 5 | C189: 5 | D189: 0.0002224189346 | E189: 1 | F189: 0 | G189: 0 | H189: 60.91311819 | I189: -22.81196276 | J189: 41.04206244
A190: 2 | B190: 5 | C190: 6 | D190: 0.0003836879798 | E190: 1 | F190: 0 | G190: 0 | H190: 59.22108713 | I190: -22.81196276 | J190: 42.2146928
A191: 2 | B191: 5 | C191: 7 | D191: 0.0005741055021 | E191: 1 | F191: 0 | G191: 0 | H191: 57.6205172 | I191: -22.81196276 | J191: 43.38732315
A192: 2 | B192: 5 | C192: 8 | D192: 0.000669310411 | E192: 1 | F192: 0 | G192: 0 | H192: 56.1041878 | I192: -22.81196276 | J192: 44.55995351
A193: 2 | B193: 5 | C193: 9 | D193: 0.0005003422429 | E193: 1 | F193: 0 | G193: 0 | H193: 54.66561888 | I193: -22.81196276 | J193: 45.73258386
A194: 2 | B194: 5 | C194: 10 | D194: 0.0001693976377 | E194: 1 | F194: 0 | G194: 0 | H194: 53.29897841 | I194: -22.81196276 | J194: 46.90521422
A195: 2 | B195: 5 | C195: 11 | D195: 1.410275921e-05 | E195: 1 | F195: 0 | G195: 0 | H195: 51.99900333 | I195: -22.81196276 | J195: 48.07784457
A196: 2 | B196: 6 | C196: 1 | D196: 1.631451575e-05 | E196: 1 | F196: 0 | G196: 0 | H196: 42.16388705 | I196: -13.98576133 | J196: 59.29244609
A197: 2 | B197: 6 | C197: 2 | D197: 3.469386046e-05 | E197: 1 | F197: 0 | G197: 0 | H197: 40.84626558 | I197: -13.98576133 | J197: 61.20510565
A198: 2 | B198: 6 | C198: 3 | D198: 7.147216004e-05 | E198: 1 | F198: 0 | G198: 0 | H198: 39.60849996 | I198: -13.98576133 | J198: 63.1177652
A199: 2 | B199: 6 | C199: 4 | D199: 0.0001416238148 | E199: 1 | F199: 0 | G199: 0 | H199: 38.44354407 | I199: -13.98576133 | J199: 65.03042475
A200: 2 | B200: 6 | C200: 5 | D200: 0.0002658422549 | E200: 1 | F200: 0 | G200: 0 | H200: 37.3451571 | I200: -13.98576133 | J200: 66.9430843
A201: 2 | B201: 6 | C201: 6 | D201: 0.0004585961976 | E201: 1 | F201: 0 | G201: 0 | H201: 36.30779163 | I201: -13.98576133 | J201: 68.85574385
... 1150 more rows

Sheet (7) Economics
B2: Costs significant | G2: Investment-Cost per kWh
G3: PV-Ratio --> | H3: 1 | I3: 2
B4: PV | C4: 2200 | D4: €/kWp | F4: Battery-Ratio | G4: 0 | H4: =H$3*cost_pv+G4*cost_bat -> 2200 | I4: =I$3*cost_pv+$G4*cost_bat -> 4400
B5: Wind | C5: 1500 | D5: €/kWp | G5: 0.5 | H5: =H$3*cost_pv+G5*cost_bat -> 2550 | I5: =I$3*cost_pv+$G5*cost_bat -> 4750
B6: CHP | C6: 2000 | D6: €/kWp | G6: 1 | H6: =H$3*cost_pv+G6*cost_bat -> 2900 | I6: =I$3*cost_pv+$G6*cost_bat -> 5100
B7: GENX | C7: 0 | D7: €/kWp | G7: 1.5 | H7: =H$3*cost_pv+G7*cost_bat -> 3250 | I7: =I$3*cost_pv+$G7*cost_bat -> 5450
F8: --> | G8: 2 | H8: =H$3*cost_pv+G8*cost_bat -> 3600 | I8: =I$3*cost_pv+$G8*cost_bat -> 5800
B9: Battery total | C9: 700 | D9: €/kWh | G9: 2.5 | H9: =H$3*cost_pv+G9*cost_bat -> 3950 | I9: =I$3*cost_pv+$G9*cost_bat -> 6150
G10: 3 | H10: =H$3*cost_pv+G10*cost_bat -> 4300 | I10: =I$3*cost_pv+$G10*cost_bat -> 6500
B11: kWh ESC | C11: 0.35 | D11: €/kWh | G11: 3.5 | H11: =H$3*cost_pv+G11*cost_bat -> 4650 | I11: =I$3*cost_pv+$G11*cost_bat -> 6850
G12: 4 | H12: =H$3*cost_pv+G12*cost_bat -> 5000 | I12: =I$3*cost_pv+$G12*cost_bat -> 7200
B16: Economic EEG 2012 PV Cost and Subsidies
C18: Battery System | E18: No Battery | G18: no Internal Load
B19: PV Subsidy | C19: ='(1) Main Menu'!D16*'(3) Parameter Settings'!J4 -> 4440.969915 | E19: =C19 -> 4440.969915 | G19: =C19 -> 4440.969915
B20: Electricity from ESC | C20: =cost_esc_kWh*'(1) Main Menu'!H22 -> 680.5022817 | E20: =load_data_total*(1-'(1) Main Menu'!H16)*cost_esc_kWh -> 2936.888809 | G20: =load_data_total*cost_esc_kWh -> 3500
B21: Internal Consumption | C21: =IF('(1) Main Menu'!L18>0.3, 0.3*'(1) Main Menu'!D16*(100+'(3) Parameter Settings'!C33)*0.01*('(3) Parameter Settings'!J4-'(3) Parameter Settings'!J5) + ('(1) Main Menu'!L18-0.3)*'(1) Main Menu'!D16*(100+'(3) Parameter Settings'!C33)*0.01*('(3) Parameter Settings'!J4-'(3) Parameter Settings'!J6), '(1) Main Menu'!L18*'(1) Main Menu'!D16*(100+'(3) Parameter Settings'!C33)*0.01*('(3) Parameter Settings'!J4-'(3) Parameter Settings'!J5)) -> 1472.560504 | E21: =IF('(1) Main Menu'!L16>0.3, 0.3*'(1) Main Menu'!D16*(100+'(3) Parameter Settings'!C33)*0.01*('(3) Parameter Settings'!J4-'(3) Parameter Settings'!J5) + ('(1) Main Menu'!L16-0.3)*'(1) Main Menu'!D16*(100+'(3) Parameter Settings'!C33)*0.01*('(3) Parameter Settings'!J4-'(3) Parameter Settings'!J6), '(1) Main Menu'!L16*'(1) Main Menu'!D16*(100+'(3) Parameter Settings'!C33)*0.01*('(3) Parameter Settings'!J4-'(3) Parameter Settings'!J5)) -> 313.6078844
B22: Total credit | C22: =C19-C20-C21 -> 2287.907129 | E22: =E19-E20-E21 -> 1190.473222 | G22: =G19-G20-G21 -> 940.9699152
B24: Cost over 20 years | C24: =C22*20 -> 45758.14258 | E24: =E22*20 -> 23809.46443 | G24: =G22*20 -> 18819.3983
C25: Rentability of battery | G25: PV rentability after
B26: ROI in years | C26: =(cost_bat*'(3) Parameter Settings'!C28/1000)/(C22-E22) -> 25.51406495 | D26: <-- | E26: <-- | F26: <-- | G26: =(gen_pv*cost_pv)/G19 -> 9.907745569
C27: years | G27: years
